Unique Reference Number,Vendor Name,Subj Mapping 1,Subj Mapping 2,Subjective  Desc,Line Amount,Capital/Revenue,GL Posting Date,Directorate
WC49-0001,13 & 14 OLD SQUARE,Supplies & Services,Other Supplies & Services,63109-EXTERNAL SOLICITORS-SERVICES-FEES,Revenue,27/10/2014,"1,250.00",Neighbourhood Services
WC49-0002,1ST HAND CARE LTD,Third Party Payments,Private Contractor Fees,73372-DOMICILIARY CARE,Revenue,14/10/2014,"13,013.17",Social Care & Inclusion
WC49-0003,247 CARS (WILLENHALL) LIMITED,Transport,Hire,52000-WITH DRIVER-HIRE OF VEHICLES,Revenue,14/10/2014,319.00,Childrens
WC49-0004,247 CARS (WILLENHALL) LIMITED,Transport,Hire,52000-WITH DRIVER-HIRE OF VEHICLES,Revenue,14/10/2014,336.00,Childrens
WC49-0005,247 CARS (WILLENHALL) LIMITED,Transport,Hire,52000-WITH DRIVER-HIRE OF VEHICLES,Revenue,14/10/2014,336.00,Childrens
WC49-0006,247 CARS (WILLENHALL) LIMITED,Transport,Hire,52000-WITH DRIVER-HIRE OF VEHICLES,Revenue,14/10/2014,339.00,Childrens
WC49-0007,247 CARS (WILLENHALL) LIMITED,Transport,Hire,52000-WITH DRIVER-HIRE OF VEHICLES,Revenue,14/10/2014,468.00,Childrens
WC49-0008,247 CARS (WILLENHALL) LIMITED,Transport,Hire,52000-WITH DRIVER-HIRE OF VEHICLES,Revenue,14/10/2014,560.00,Childrens
WC49-0009,247 CARS (WILLENHALL) LIMITED,Transport,Hire,52000-WITH DRIVER-HIRE OF VEHICLES,Revenue,14/10/2014,615.80,Childrens
WC49-0010,247 CARS (WILLENHALL) LIMITED,Transport,Hire,52000-WITH DRIVER-HIRE OF VEHICLES,Revenue,14/10/2014,621.60,Childrens
WC49-0011,247 CARS (WILLENHALL) LIMITED,Transport,Hire,52000-WITH DRIVER-HIRE OF VEHICLES,Revenue,14/10/2014,714.00,Childrens
WC49-0012,247 CARS (WILLENHALL) LIMITED,Transport,Hire,52000-WITH DRIVER-HIRE OF VEHICLES,Revenue,14/10/2014,992.00,Childrens
WC49-0013,247 CARS (WILLENHALL) LIMITED,Transport,Hire,52000-WITH DRIVER-HIRE OF VEHICLES,Revenue,14/10/2014,"1,000.00",Childrens
WC49-0014,247 CARS (WILLENHALL) LIMITED,Transport,Hire,52000-WITH DRIVER-HIRE OF VEHICLES,Revenue,14/10/2014,"1,000.00",Childrens
WC49-0015,247 CARS (WILLENHALL) LIMITED,Transport,Hire,52000-WITH DRIVER-HIRE OF VEHICLES,Revenue,14/10/2014,"1,144.80",Childrens
WC49-0016,39 ESSEX STREET LLP PFA,Supplies & Services,Other Supplies & Services,63116-EXTERNAL BARRISTERS-SERVICES-FEES,Revenue,27/10/2014,"6,330.00",Resources
WC49-0017,A 2 Z TAXIS (A2Z CARS),Transport,Hire,52000-WITH DRIVER-HIRE OF VEHICLES,Revenue,09/10/2014,"2,499.00",Childrens
WC49-0018,A AND J MCDOWALL EDUCATIONAL CONSULTANATS LTD,Supplies & Services,Services,63102-CONSULTANTS FEES - CORPORATE,Revenue,27/10/2014,"1,800.00",Childrens
WC49-0019,A ASHTON,Supplies & Services,"Equip,Furniture & Materials",60006-NEW-FURNITURE & EQUIPMENT,Revenue,06/10/2014,660.00,Neighbourhood Services
WC49-0020,A ASHTON,Supplies & Services,"Equip,Furniture & Materials",60006-NEW-FURNITURE & EQUIPMENT,Revenue,16/10/2014,749.90,Neighbourhood Services
WC49-0021,A D T FIRE AND SECURITY PLC,Capital,Capital,01006-SITE WORKS MAIN CONTRACTORS,Capital,01/10/2014,331.00,Childrens
WC49-0022,A D T FIRE AND SECURITY PLC,Capital,Capital,01006-SITE WORKS MAIN CONTRACTORS,Capital,01/10/2014,345.00,Childrens
WC49-0023,A D T FIRE AND SECURITY PLC,Supplies & Services,"Equip,Furniture & Materials",60008-MAINTENANCE-FURNITURE & EQUIPMENT,Revenue,01/10/2014,552.92,Childrens
WC49-0024,A D T FIRE AND SECURITY PLC,Capital,Capital,01044-PURCHASE OF FURNITURE & EQUIPMENT,Capital,13/10/2014,"3,693.00",Regeneration
WC49-0025,A D T FIRE AND SECURITY PLC,Supplies & Services,"Equip,Furniture & Materials",60008-MAINTENANCE-FURNITURE & EQUIPMENT,Revenue,06/10/2014,"4,050.00",Social Care & Inclusion
WC49-0026,A D T FIRE AND SECURITY PLC,Supplies & Services,"Equip,Furniture & Materials",60008-MAINTENANCE-FURNITURE & EQUIPMENT,Revenue,10/10/2014,"4,050.00",Social Care & Inclusion
WC49-0027,A DUNFORD & SON,Premises,Premises-Repairs & Maintenance,41090-LANDSCAPING GROUNDS MAINTENANCE,Revenue,20/10/2014,540.00,Childrens
WC49-0028,A F BLAKEMORE & SON LTD,Supplies & Services,Provisions,61002-DRY FOODS-PROVISIONS,Revenue,16/10/2014,192.59,Neighbourhood Services
WC49-0029,A F BLAKEMORE & SON LTD,Supplies & Services,Provisions,61009-BEVERAGES-PROVISIONS,Revenue,16/10/2014,237.39,Neighbourhood Services
WC49-0030,A F BLAKEMORE & SON LTD,Third Party Payments,Private Contractor Fees,73019-PSE'S-PRIV CONTRACTOR FEES,Revenue,14/10/2014,295.92,Neighbourhood Services
WC49-0031,A F BLAKEMORE & SON LTD,Supplies & Services,Provisions,61305-CATERING,Revenue,13/10/2014,331.96,Social Care & Inclusion
WC49-0032,A F BLAKEMORE & SON LTD,Supplies & Services,Provisions,61002-DRY FOODS-PROVISIONS,Revenue,20/10/2014,351.67,Neighbourhood Services
WC49-0033,A F BLAKEMORE & SON LTD,Supplies & Services,Provisions,61006-FRUIT & VEGETABLES OTHER-PROVISIONS,Revenue,14/10/2014,375.65,Social Care & Inclusion
WC49-0034,A F BLAKEMORE & SON LTD,Supplies & Services,Provisions,61008-CONFECTIONERY/SNACKS-PROVISIONS,Revenue,29/10/2014,432.44,Neighbourhood Services
WC49-0035,A F BLAKEMORE & SON LTD,Supplies & Services,Provisions,61016-FOOD AND BEVERAGES-PROVISIONS,Revenue,02/10/2014,435.12,Neighbourhood Services
WC49-0036,A F BLAKEMORE & SON LTD,Supplies & Services,Provisions,61305-CATERING,Revenue,08/10/2014,447.92,Neighbourhood Services
WC49-0037,A F BLAKEMORE & SON LTD,Supplies & Services,Provisions,61006-FRUIT & VEGETABLES OTHER-PROVISIONS,Revenue,14/10/2014,489.38,Social Care & Inclusion
WC49-0038,A F BLAKEMORE & SON LTD,Supplies & Services,Provisions,61006-FRUIT & VEGETABLES OTHER-PROVISIONS,Revenue,09/10/2014,583.63,Social Care & Inclusion
WC49-0039,A F BLAKEMORE & SON LTD,Supplies & Services,Provisions,61002-DRY FOODS-PROVISIONS,Revenue,01/10/2014,689.82,Neighbourhood Services
WC49-0040,A F BLAKEMORE & SON LTD,Supplies & Services,Provisions,61002-DRY FOODS-PROVISIONS,Revenue,16/10/2014,700.34,Neighbourhood Services
WC49-0041,REDACTED,Third Party Payments,Private Contractor Fees,74006-HOLIDAY/CHRISTMAS ALLOWANCE-FOSTER CARERS-OTH AGENCY PROVISION,Revenue,01/10/2014,333.92,Childrens
WC49-0042,REDACTED,Third Party Payments,Private Contractor Fees,74006-HOLIDAY/CHRISTMAS ALLOWANCE-FOSTER CARERS-OTH AGENCY PROVISION,Revenue,27/10/2014,333.92,Childrens
WC49-0043,A KARIMS CHUCKERY PHARMACY,Supplies & Services,Services,63000-PROFESSIONAL FEES AND SERVICES,Revenue,21/10/2014,37.50,Neighbourhood Services
WC49-0044,A KARIMS CHUCKERY PHARMACY,Supplies & Services,Services,63000-PROFESSIONAL FEES AND SERVICES,Revenue,21/10/2014,94.76,Neighbourhood Services
WC49-0045,A KARIMS CHUCKERY PHARMACY,Supplies & Services,Services,63000-PROFESSIONAL FEES AND SERVICES,Revenue,21/10/2014,"1,299.86",Neighbourhood Services
WC49-0046,A KARIMS CHUCKERY PHARMACY,Supplies & Services,Services,63102-CONSULTANTS FEES - CORPORATE,Revenue,27/10/2014,"1,447.44",Neighbourhood Services
WC49-0047,REDACTED,Third Party Payments,Private Contractor Fees,74006-HOLIDAY/CHRISTMAS ALLOWANCE-FOSTER CARERS-OTH AGENCY PROVISION,Revenue,13/10/2014,968.32,Childrens
WC49-0048,REDACTED,Supplies & Services,Other Supplies & Services,62515-MISCELLANEOUS SUPPLIES,Revenue,13/10/2014,"1,190.68",Childrens
WC49-0049,A QUICK KILL PEST CONTROL LTD,Third Party Payments,Private Contractor Fees,73025-PROFESSIONAL SERVICES-PRIV CONTRACTOR & OTHER AGENCIES,Revenue,01/10/2014,400.00,Social Care & Inclusion
WC49-0050,A&R VEHICLE SERVICES LIMITED,Third Party Payments,Private Contractor Fees,73025-PROFESSIONAL SERVICES-PRIV CONTRACTOR & OTHER AGENCIES,Revenue,16/10/2014,590.00,Neighbourhood Services
WC49-0051,AAA BEE JAY TRAVEL,Transport,Hire,52000-WITH DRIVER-HIRE OF VEHICLES,Revenue,28/10/2014,"1,978.00",Childrens
WC49-0052,AAF LTD,Premises,Premises-Repairs & Maintenance,"40000-REPAIRS,ALTERATIONS & MAINTENANCE-PREM",Revenue,24/10/2014,"4,233.81",Regeneration
WC49-0053,REDACTED,Transfer Payments,Transfer Payments,76422-DIRECT PAYMENTS TO SOCIAL SERVICES CLIENTS,Revenue,13/10/2014,345.24,Childrens
WC49-0054,ABACUS FOSTERING LTD,Third Party Payments,Private Contractor Fees,74037-INDEPENDENT FOSTER CARE-OTH AGENCY PROVISION,Revenue,02/10/2014,"3,728.57",Childrens
WC49-0055,ABACUS FOSTERING LTD,Third Party Payments,Private Contractor Fees,74037-INDEPENDENT FOSTER CARE-OTH AGENCY PROVISION,Revenue,13/10/2014,"3,852.86",Childrens
WC49-0056,REDACTED,Third Party Payments,Private Contractor Fees,74006-HOLIDAY/CHRISTMAS ALLOWANCE-FOSTER CARERS-OTH AGENCY PROVISION,Revenue,01/10/2014,639.40,Childrens
WC49-0057,REDACTED,Third Party Payments,Private Contractor Fees,74006-HOLIDAY/CHRISTMAS ALLOWANCE-FOSTER CARERS-OTH AGENCY PROVISION,Revenue,27/10/2014,639.40,Childrens
WC49-0058,ABBEY COURT NURSING & RESIDEN,Third Party Payments,Private Contractor Fees,73373-RESIDENTIAL & NURSING CARE PLACEMENTS,Revenue,01/10/2014,"1,494.00",Social Care & Inclusion
WC49-0059,ABBEY COURT NURSING & RESIDEN,Third Party Payments,Private Contractor Fees,73373-RESIDENTIAL & NURSING CARE PLACEMENTS,Revenue,15/10/2014,"1,494.00",Social Care & Inclusion
WC49-0060,ABBEY COURT NURSING & RESIDEN,Third Party Payments,Private Contractor Fees,73373-RESIDENTIAL & NURSING CARE PLACEMENTS,Revenue,15/10/2014,"1,494.00",Social Care & Inclusion
WC49-0061,ABBEY COURT NURSING & RESIDEN,Third Party Payments,Private Contractor Fees,73373-RESIDENTIAL & NURSING CARE PLACEMENTS,Revenue,15/10/2014,"1,494.00",Social Care & Inclusion
WC49-0062,ABBEY HEALTHCARE HOMES LTD,Third Party Payments,Private Contractor Fees,73373-RESIDENTIAL & NURSING CARE PLACEMENTS,Revenue,01/10/2014,"2,243.60",Social Care & Inclusion
WC49-0063,ABBEY HEALTHCARE HOMES LTD,Third Party Payments,Private Contractor Fees,73373-RESIDENTIAL & NURSING CARE PLACEMENTS,Revenue,01/10/2014,"2,243.60",Social Care & Inclusion
WC49-0064,ABBEY HEALTHCARE HOMES LTD,Third Party Payments,Private Contractor Fees,73373-RESIDENTIAL & NURSING CARE PLACEMENTS,Revenue,15/10/2014,"2,243.60",Social Care & Inclusion
WC49-0065,ABBEYMERE CARE CENTRE,Third Party Payments,Private Contractor Fees,73373-RESIDENTIAL & NURSING CARE PLACEMENTS,Revenue,21/10/2014,"1,528.87",Social Care & Inclusion
WC49-0066,ABC DAY NURSERY (WILLENHALL) LIMITED,Supplies & Services,Other Supplies & Services,63120-CRECHE FACILITIES-SERVICES-FEES,Revenue,15/10/2014,362.00,Neighbourhood Services
WC49-0067,ABC FOSTERING,Third Party Payments,Private Contractor Fees,74037-INDEPENDENT FOSTER CARE-OTH AGENCY PROVISION,Revenue,29/10/2014,"-1,047.20",Childrens
WC49-0068,ABC FOSTERING,Third Party Payments,Private Contractor Fees,74037-INDEPENDENT FOSTER CARE-OTH AGENCY PROVISION,Revenue,29/10/2014,-994.84,Childrens
WC49-0069,ABC FOSTERING,Third Party Payments,Private Contractor Fees,74037-INDEPENDENT FOSTER CARE-OTH AGENCY PROVISION,Revenue,09/10/2014,"3,239.50",Childrens
WC49-0070,ABC FOSTERING,Third Party Payments,Private Contractor Fees,74037-INDEPENDENT FOSTER CARE-OTH AGENCY PROVISION,Revenue,09/10/2014,"3,410.00",Childrens
WC49-0071,ABC TEACHERS LIMITED,Third Party Payments,Grants to Other Orgs,66502-TOP UP FUNDING -GRANTS TO SCHOOLS,Revenue,03/10/2014,347.97,Childrens
WC49-0072,ABC TEACHERS LIMITED,Third Party Payments,Grants to Other Orgs,66502-TOP UP FUNDING -GRANTS TO SCHOOLS,Revenue,16/10/2014,579.95,Childrens
WC49-0073,ABC TEACHERS LIMITED,Employees,Agency,34305-AGENCY STAFF-EMPLOYEES,Revenue,03/10/2014,587.97,Childrens
WC49-0074,ABC TEACHERS LIMITED,Employees,Agency,34305-AGENCY STAFF-EMPLOYEES,Revenue,03/10/2014,587.97,Childrens
WC49-0075,ABC TEACHERS LIMITED,Employees,Agency,34305-AGENCY STAFF-EMPLOYEES,Revenue,13/10/2014,587.97,Childrens
WC49-0076,ABC TEACHERS LIMITED,Employees,Agency,34305-AGENCY STAFF-EMPLOYEES,Revenue,16/10/2014,587.97,Childrens
WC49-0077,ABC TEACHERS LIMITED,Employees,Agency,34305-AGENCY STAFF-EMPLOYEES,Revenue,16/10/2014,587.97,Childrens
WC49-0078,ABC TEACHERS LIMITED,Employees,Agency,34305-AGENCY STAFF-EMPLOYEES,Revenue,24/10/2014,587.97,Childrens
WC49-0079,ABC TEACHERS LIMITED,Third Party Payments,Grants to Other Orgs,66502-TOP UP FUNDING -GRANTS TO SCHOOLS,Revenue,16/10/2014,609.55,Childrens
WC49-0080,ABC TEACHERS LIMITED,Third Party Payments,Grants to Other Orgs,66502-TOP UP FUNDING -GRANTS TO SCHOOLS,Revenue,13/10/2014,621.15,Childrens
WC49-0081,ABC TEACHERS LIMITED,Third Party Payments,Grants to Other Orgs,66502-TOP UP FUNDING -GRANTS TO SCHOOLS,Revenue,03/10/2014,633.96,Childrens
WC49-0082,REDACTED,Transfer Payments,Transfer Payments,76422-DIRECT PAYMENTS TO SOCIAL SERVICES CLIENTS,Revenue,13/10/2014,"2,358.00",Social Care & Inclusion
WC49-0083,ABLEWELL CARS,Transport,Hire,52000-WITH DRIVER-HIRE OF VEHICLES,Revenue,29/10/2014,297.00,Childrens
WC49-0084,ABLEWELL CARS,Transport,Hire,52000-WITH DRIVER-HIRE OF VEHICLES,Revenue,23/10/2014,300.00,Childrens
WC49-0085,ABLEWELL CARS,Transport,Hire,52000-WITH DRIVER-HIRE OF VEHICLES,Revenue,23/10/2014,300.00,Childrens
WC49-0086,ABLEWELL CARS,Transport,Hire,52000-WITH DRIVER-HIRE OF VEHICLES,Revenue,23/10/2014,302.00,Childrens
WC49-0087,ABLEWELL CARS,Transport,Hire,52000-WITH DRIVER-HIRE OF VEHICLES,Revenue,23/10/2014,302.00,Childrens
WC49-0088,ABLEWELL CARS,Transport,Hire,52000-WITH DRIVER-HIRE OF VEHICLES,Revenue,07/10/2014,330.00,Childrens
WC49-0089,ABLEWELL CARS,Transport,Hire,52000-WITH DRIVER-HIRE OF VEHICLES,Revenue,23/10/2014,330.00,Childrens
WC49-0090,ABLEWELL CARS,Transport,Hire,52000-WITH DRIVER-HIRE OF VEHICLES,Revenue,23/10/2014,330.00,Childrens
WC49-0091,ABLEWELL CARS,Transport,Hire,52000-WITH DRIVER-HIRE OF VEHICLES,Revenue,23/10/2014,330.00,Childrens
WC49-0092,ABLEWELL CARS,Transport,Hire,52000-WITH DRIVER-HIRE OF VEHICLES,Revenue,23/10/2014,330.00,Childrens
WC49-0093,ABLEWELL CARS,Transport,Hire,52000-WITH DRIVER-HIRE OF VEHICLES,Revenue,29/10/2014,330.00,Childrens
WC49-0094,ABLEWELL CARS,Transport,Hire,52000-WITH DRIVER-HIRE OF VEHICLES,Revenue,07/10/2014,332.20,Childrens
WC49-0095,ABLEWELL CARS,Transport,Hire,52000-WITH DRIVER-HIRE OF VEHICLES,Revenue,07/10/2014,363.00,Childrens
WC49-0096,ABLEWELL CARS,Transport,Hire,52000-WITH DRIVER-HIRE OF VEHICLES,Revenue,23/10/2014,363.00,Childrens
WC49-0097,ABLEWELL CARS,Transport,Hire,52000-WITH DRIVER-HIRE OF VEHICLES,Revenue,07/10/2014,371.00,Childrens
WC49-0098,ABLEWELL CARS,Transport,Hire,52000-WITH DRIVER-HIRE OF VEHICLES,Revenue,23/10/2014,530.00,Childrens
WC49-0099,ABLEWELL CARS,Transport,Hire,52000-WITH DRIVER-HIRE OF VEHICLES,Revenue,23/10/2014,530.00,Childrens
WC49-0100,ACCORD HOUSING ASSOCIATION LTD#135,Third Party Payments,Private Contractor Fees,73372-DOMICILIARY CARE,Revenue,06/10/2014,321.76,Social Care & Inclusion
WC49-0101,ACCORD HOUSING ASSOCIATION LTD#135,Third Party Payments,Private Contractor Fees,73372-DOMICILIARY CARE,Revenue,14/10/2014,321.76,Social Care & Inclusion
WC49-0102,ACCORD HOUSING ASSOCIATION LTD#135,Third Party Payments,Private Contractor Fees,73374-SUPPORTED & OTHER ACCOMMODATION,Revenue,09/10/2014,325.00,Social Care & Inclusion
WC49-0103,ACCORD HOUSING ASSOCIATION LTD#135,Third Party Payments,Private Contractor Fees,73372-DOMICILIARY CARE,Revenue,06/10/2014,354.28,Social Care & Inclusion
WC49-0104,ACCORD HOUSING ASSOCIATION LTD#135,Third Party Payments,Private Contractor Fees,73372-DOMICILIARY CARE,Revenue,14/10/2014,354.28,Social Care & Inclusion
WC49-0105,ACCORD HOUSING ASSOCIATION LTD#135,Third Party Payments,Private Contractor Fees,73372-DOMICILIARY CARE,Revenue,06/10/2014,402.20,Social Care & Inclusion
WC49-0106,ACCORD HOUSING ASSOCIATION LTD#135,Third Party Payments,Private Contractor Fees,73374-SUPPORTED & OTHER ACCOMMODATION,Revenue,06/10/2014,411.20,Social Care & Inclusion
WC49-0107,ACCORD HOUSING ASSOCIATION LTD#135,Third Party Payments,Private Contractor Fees,73374-SUPPORTED & OTHER ACCOMMODATION,Revenue,14/10/2014,411.20,Social Care & Inclusion
WC49-0108,ACCORD HOUSING ASSOCIATION LTD#135,Third Party Payments,Private Contractor Fees,73372-DOMICILIARY CARE,Revenue,06/10/2014,411.92,Social Care & Inclusion
WC49-0109,ACCORD HOUSING ASSOCIATION LTD#135,Third Party Payments,Private Contractor Fees,73372-DOMICILIARY CARE,Revenue,14/10/2014,411.92,Social Care & Inclusion
WC49-0110,ACCORD HOUSING ASSOCIATION LTD#135,Third Party Payments,Private Contractor Fees,73372-DOMICILIARY CARE,Revenue,06/10/2014,442.85,Social Care & Inclusion
WC49-0111,ACCORD HOUSING ASSOCIATION LTD#135,Third Party Payments,Private Contractor Fees,73372-DOMICILIARY CARE,Revenue,06/10/2014,463.60,Social Care & Inclusion
WC49-0112,ACCORD HOUSING ASSOCIATION LTD#135,Third Party Payments,Private Contractor Fees,73372-DOMICILIARY CARE,Revenue,14/10/2014,463.60,Social Care & Inclusion
WC49-0113,ACCORD HOUSING ASSOCIATION LTD#135,Third Party Payments,Private Contractor Fees,73372-DOMICILIARY CARE,Revenue,06/10/2014,492.40,Social Care & Inclusion
WC49-0114,ACCORD HOUSING ASSOCIATION LTD#135,Third Party Payments,Private Contractor Fees,73372-DOMICILIARY CARE,Revenue,14/10/2014,492.40,Social Care & Inclusion
WC49-0115,ACCORD HOUSING ASSOCIATION LTD#135,Third Party Payments,Private Contractor Fees,73372-DOMICILIARY CARE,Revenue,14/10/2014,502.20,Social Care & Inclusion
WC49-0116,ACCORD HOUSING ASSOCIATION LTD#135,Third Party Payments,Private Contractor Fees,73372-DOMICILIARY CARE,Revenue,06/10/2014,502.32,Social Care & Inclusion
WC49-0117,ACCORD HOUSING ASSOCIATION LTD#135,Third Party Payments,Private Contractor Fees,73372-DOMICILIARY CARE,Revenue,14/10/2014,502.32,Social Care & Inclusion
WC49-0118,ACCORD HOUSING ASSOCIATION LTD#135,Third Party Payments,Private Contractor Fees,73372-DOMICILIARY CARE,Revenue,06/10/2014,514.90,Social Care & Inclusion
WC49-0119,ACCORD HOUSING ASSOCIATION LTD#135,Third Party Payments,Private Contractor Fees,73372-DOMICILIARY CARE,Revenue,06/10/2014,531.32,Social Care & Inclusion
WC49-0120,ACCORD HOUSING ASSOCIATION LTD#135,Third Party Payments,Private Contractor Fees,73372-DOMICILIARY CARE,Revenue,14/10/2014,531.32,Social Care & Inclusion
WC49-0121,ACCORD HOUSING ASSOCIATION LTD#135,Third Party Payments,Private Contractor Fees,73374-SUPPORTED & OTHER ACCOMMODATION,Revenue,29/10/2014,550.71,Social Care & Inclusion
WC49-0122,ACCORD HOUSING ASSOCIATION LTD#135,Third Party Payments,Private Contractor Fees,73372-DOMICILIARY CARE,Revenue,06/10/2014,563.08,Social Care & Inclusion
WC49-0123,ACCORD HOUSING ASSOCIATION LTD#135,Third Party Payments,Private Contractor Fees,73374-SUPPORTED & OTHER ACCOMMODATION,Revenue,01/10/2014,569.07,Social Care & Inclusion
WC49-0124,ACCORD HOUSING ASSOCIATION LTD#135,Third Party Payments,Private Contractor Fees,73372-DOMICILIARY CARE,Revenue,01/10/2014,569.07,Social Care & Inclusion
WC49-0125,ACCORD HOUSING ASSOCIATION LTD#135,Third Party Payments,Private Contractor Fees,73374-SUPPORTED & OTHER ACCOMMODATION,Revenue,01/10/2014,569.07,Social Care & Inclusion
WC49-0126,ACCORD HOUSING ASSOCIATION LTD#135,Third Party Payments,Private Contractor Fees,73372-DOMICILIARY CARE,Revenue,06/10/2014,592.48,Social Care & Inclusion
WC49-0127,ACCORD HOUSING ASSOCIATION LTD#135,Third Party Payments,Private Contractor Fees,73372-DOMICILIARY CARE,Revenue,14/10/2014,592.48,Social Care & Inclusion
WC49-0128,ACCORD HOUSING ASSOCIATION LTD#135,Third Party Payments,Private Contractor Fees,73372-DOMICILIARY CARE,Revenue,14/10/2014,605.07,Social Care & Inclusion
WC49-0129,ACCORD HOUSING ASSOCIATION LTD#135,Third Party Payments,Private Contractor Fees,73372-DOMICILIARY CARE,Revenue,06/10/2014,615.50,Social Care & Inclusion
WC49-0130,ACCORD HOUSING ASSOCIATION LTD#135,Third Party Payments,Private Contractor Fees,73372-DOMICILIARY CARE,Revenue,06/10/2014,618.00,Social Care & Inclusion
WC49-0131,ACCORD HOUSING ASSOCIATION LTD#135,Third Party Payments,Private Contractor Fees,73372-DOMICILIARY CARE,Revenue,14/10/2014,618.00,Social Care & Inclusion
WC49-0132,ACCORD HOUSING ASSOCIATION LTD#135,Third Party Payments,Private Contractor Fees,73372-DOMICILIARY CARE,Revenue,06/10/2014,619.99,Social Care & Inclusion
WC49-0133,ACCORD HOUSING ASSOCIATION LTD#135,Third Party Payments,Private Contractor Fees,73372-DOMICILIARY CARE,Revenue,06/10/2014,656.88,Social Care & Inclusion
WC49-0134,ACCORD HOUSING ASSOCIATION LTD#135,Third Party Payments,Private Contractor Fees,73372-DOMICILIARY CARE,Revenue,14/10/2014,656.88,Social Care & Inclusion
WC49-0135,ACCORD HOUSING ASSOCIATION LTD#135,Third Party Payments,Private Contractor Fees,73374-SUPPORTED & OTHER ACCOMMODATION,Revenue,06/10/2014,657.08,Social Care & Inclusion
WC49-0136,ACCORD HOUSING ASSOCIATION LTD#135,Third Party Payments,Private Contractor Fees,73372-DOMICILIARY CARE,Revenue,06/10/2014,660.10,Social Care & Inclusion
WC49-0137,ACCORD HOUSING ASSOCIATION LTD#135,Third Party Payments,Private Contractor Fees,73372-DOMICILIARY CARE,Revenue,06/10/2014,664.15,Social Care & Inclusion
WC49-0138,ACCORD HOUSING ASSOCIATION LTD#135,Third Party Payments,Private Contractor Fees,73372-DOMICILIARY CARE,Revenue,06/10/2014,697.64,Social Care & Inclusion
WC49-0139,ACCORD HOUSING ASSOCIATION LTD#135,Third Party Payments,Private Contractor Fees,73372-DOMICILIARY CARE,Revenue,14/10/2014,697.64,Social Care & Inclusion
WC49-0140,ACCORD HOUSING ASSOCIATION LTD#135,Third Party Payments,Private Contractor Fees,73372-DOMICILIARY CARE,Revenue,06/10/2014,720.86,Social Care & Inclusion
WC49-0141,ACCORD HOUSING ASSOCIATION LTD#135,Third Party Payments,Private Contractor Fees,73372-DOMICILIARY CARE,Revenue,06/10/2014,721.28,Social Care & Inclusion
WC49-0142,ACCORD HOUSING ASSOCIATION LTD#135,Third Party Payments,Private Contractor Fees,73372-DOMICILIARY CARE,Revenue,06/10/2014,721.28,Social Care & Inclusion
WC49-0143,ACCORD HOUSING ASSOCIATION LTD#135,Third Party Payments,Private Contractor Fees,73372-DOMICILIARY CARE,Revenue,06/10/2014,721.28,Social Care & Inclusion
WC49-0144,ACCORD HOUSING ASSOCIATION LTD#135,Third Party Payments,Private Contractor Fees,73372-DOMICILIARY CARE,Revenue,14/10/2014,721.28,Social Care & Inclusion
WC49-0145,ACCORD HOUSING ASSOCIATION LTD#135,Third Party Payments,Private Contractor Fees,73372-DOMICILIARY CARE,Revenue,14/10/2014,721.28,Social Care & Inclusion
WC49-0146,ACCORD HOUSING ASSOCIATION LTD#135,Third Party Payments,Private Contractor Fees,73372-DOMICILIARY CARE,Revenue,14/10/2014,721.28,Social Care & Inclusion
WC49-0147,ACCORD HOUSING ASSOCIATION LTD#135,Third Party Payments,Private Contractor Fees,73372-DOMICILIARY CARE,Revenue,06/10/2014,740.60,Social Care & Inclusion
WC49-0148,ACCORD HOUSING ASSOCIATION LTD#135,Third Party Payments,Private Contractor Fees,73372-DOMICILIARY CARE,Revenue,14/10/2014,750.24,Social Care & Inclusion
WC49-0149,ACCORD HOUSING ASSOCIATION LTD#135,Third Party Payments,Private Contractor Fees,73372-DOMICILIARY CARE,Revenue,06/10/2014,772.50,Social Care & Inclusion
WC49-0150,ACCORD HOUSING ASSOCIATION LTD#135,Third Party Payments,Private Contractor Fees,73372-DOMICILIARY CARE,Revenue,06/10/2014,772.56,Social Care & Inclusion
WC49-0151,ACCORD HOUSING ASSOCIATION LTD#135,Third Party Payments,Private Contractor Fees,73372-DOMICILIARY CARE,Revenue,06/10/2014,775.76,Social Care & Inclusion
WC49-0152,ACCORD HOUSING ASSOCIATION LTD#135,Third Party Payments,Private Contractor Fees,73372-DOMICILIARY CARE,Revenue,14/10/2014,775.76,Social Care & Inclusion
WC49-0153,ACCORD HOUSING ASSOCIATION LTD#135,Third Party Payments,Private Contractor Fees,73367-BLOCK SUBSIDY-SUPPORTING PEOPLE,Revenue,27/10/2014,808.05,Social Care & Inclusion
WC49-0154,ACCORD HOUSING ASSOCIATION LTD#135,Third Party Payments,Private Contractor Fees,73372-DOMICILIARY CARE,Revenue,06/10/2014,811.20,Social Care & Inclusion
WC49-0155,ACCORD HOUSING ASSOCIATION LTD#135,Third Party Payments,Private Contractor Fees,73372-DOMICILIARY CARE,Revenue,14/10/2014,811.20,Social Care & Inclusion
WC49-0156,ACCORD HOUSING ASSOCIATION LTD#135,Third Party Payments,Private Contractor Fees,73372-DOMICILIARY CARE,Revenue,06/10/2014,813.56,Social Care & Inclusion
WC49-0157,ACCORD HOUSING ASSOCIATION LTD#135,Third Party Payments,Private Contractor Fees,73372-DOMICILIARY CARE,Revenue,06/10/2014,821.10,Social Care & Inclusion
WC49-0158,ACCORD HOUSING ASSOCIATION LTD#135,Third Party Payments,Private Contractor Fees,73374-SUPPORTED & OTHER ACCOMMODATION,Revenue,06/10/2014,822.40,Social Care & Inclusion
WC49-0159,ACCORD HOUSING ASSOCIATION LTD#135,Third Party Payments,Private Contractor Fees,73372-DOMICILIARY CARE,Revenue,06/10/2014,861.70,Social Care & Inclusion
WC49-0160,ACCORD HOUSING ASSOCIATION LTD#135,Third Party Payments,Private Contractor Fees,73372-DOMICILIARY CARE,Revenue,14/10/2014,879.20,Social Care & Inclusion
WC49-0161,ACCORD HOUSING ASSOCIATION LTD#135,Third Party Payments,Private Contractor Fees,73372-DOMICILIARY CARE,Revenue,06/10/2014,891.68,Social Care & Inclusion
WC49-0162,ACCORD HOUSING ASSOCIATION LTD#135,Third Party Payments,Private Contractor Fees,73372-DOMICILIARY CARE,Revenue,06/10/2014,901.60,Social Care & Inclusion
WC49-0163,ACCORD HOUSING ASSOCIATION LTD#135,Third Party Payments,Private Contractor Fees,73372-DOMICILIARY CARE,Revenue,06/10/2014,914.24,Social Care & Inclusion
WC49-0164,ACCORD HOUSING ASSOCIATION LTD#135,Third Party Payments,Private Contractor Fees,73372-DOMICILIARY CARE,Revenue,06/10/2014,927.20,Social Care & Inclusion
WC49-0165,ACCORD HOUSING ASSOCIATION LTD#135,Third Party Payments,Private Contractor Fees,73372-DOMICILIARY CARE,Revenue,06/10/2014,929.81,Social Care & Inclusion
WC49-0166,ACCORD HOUSING ASSOCIATION LTD#135,Third Party Payments,Private Contractor Fees,73372-DOMICILIARY CARE,Revenue,06/10/2014,969.70,Social Care & Inclusion
WC49-0167,ACCORD HOUSING ASSOCIATION LTD#135,Third Party Payments,Private Contractor Fees,73372-DOMICILIARY CARE,Revenue,06/10/2014,"1,004.64",Social Care & Inclusion
WC49-0168,ACCORD HOUSING ASSOCIATION LTD#135,Third Party Payments,Private Contractor Fees,73372-DOMICILIARY CARE,Revenue,06/10/2014,"1,014.00",Social Care & Inclusion
WC49-0169,ACCORD HOUSING ASSOCIATION LTD#135,Third Party Payments,Private Contractor Fees,73372-DOMICILIARY CARE,Revenue,06/10/2014,"1,036.84",Social Care & Inclusion
WC49-0170,ACCORD HOUSING ASSOCIATION LTD#135,Third Party Payments,Private Contractor Fees,73372-DOMICILIARY CARE,Revenue,06/10/2014,"1,081.50",Social Care & Inclusion
WC49-0171,ACCORD HOUSING ASSOCIATION LTD#135,Third Party Payments,Private Contractor Fees,73372-DOMICILIARY CARE,Revenue,06/10/2014,"1,114.60",Social Care & Inclusion
WC49-0172,ACCORD HOUSING ASSOCIATION LTD#135,Third Party Payments,Private Contractor Fees,73372-DOMICILIARY CARE,Revenue,06/10/2014,"1,133.20",Social Care & Inclusion
WC49-0173,ACCORD HOUSING ASSOCIATION LTD#135,Third Party Payments,Private Contractor Fees,73372-DOMICILIARY CARE,Revenue,06/10/2014,"1,133.20",Social Care & Inclusion
WC49-0174,ACCORD HOUSING ASSOCIATION LTD#135,Third Party Payments,Private Contractor Fees,73372-DOMICILIARY CARE,Revenue,14/10/2014,"1,133.20",Social Care & Inclusion
WC49-0175,ACCORD HOUSING ASSOCIATION LTD#135,Third Party Payments,Private Contractor Fees,73372-DOMICILIARY CARE,Revenue,14/10/2014,"1,133.20",Social Care & Inclusion
WC49-0176,ACCORD HOUSING ASSOCIATION LTD#135,Third Party Payments,Private Contractor Fees,73372-DOMICILIARY CARE,Revenue,06/10/2014,"1,142.80",Social Care & Inclusion
WC49-0177,ACCORD HOUSING ASSOCIATION LTD#135,Third Party Payments,Private Contractor Fees,73372-DOMICILIARY CARE,Revenue,06/10/2014,"1,144.04",Social Care & Inclusion
WC49-0178,ACCORD HOUSING ASSOCIATION LTD#135,Third Party Payments,Private Contractor Fees,73372-DOMICILIARY CARE,Revenue,14/10/2014,"1,144.04",Social Care & Inclusion
WC49-0179,ACCORD HOUSING ASSOCIATION LTD#135,Third Party Payments,Private Contractor Fees,73372-DOMICILIARY CARE,Revenue,06/10/2014,"1,149.54",Social Care & Inclusion
WC49-0180,ACCORD HOUSING ASSOCIATION LTD#135,Third Party Payments,Private Contractor Fees,73372-DOMICILIARY CARE,Revenue,06/10/2014,"1,183.96",Social Care & Inclusion
WC49-0181,ACCORD HOUSING ASSOCIATION LTD#135,Third Party Payments,Private Contractor Fees,73372-DOMICILIARY CARE,Revenue,14/10/2014,"1,183.96",Social Care & Inclusion
WC49-0182,ACCORD HOUSING ASSOCIATION LTD#135,Third Party Payments,Private Contractor Fees,73372-DOMICILIARY CARE,Revenue,06/10/2014,"1,184.72",Social Care & Inclusion
WC49-0183,ACCORD HOUSING ASSOCIATION LTD#135,Third Party Payments,Private Contractor Fees,73372-DOMICILIARY CARE,Revenue,06/10/2014,"1,197.84",Social Care & Inclusion
WC49-0184,ACCORD HOUSING ASSOCIATION LTD#135,Third Party Payments,Private Contractor Fees,73374-SUPPORTED & OTHER ACCOMMODATION,Revenue,06/10/2014,"1,314.16",Social Care & Inclusion
WC49-0185,ACCORD HOUSING ASSOCIATION LTD#135,Third Party Payments,Private Contractor Fees,73372-DOMICILIARY CARE,Revenue,06/10/2014,"1,357.58",Social Care & Inclusion
WC49-0186,ACCORD HOUSING ASSOCIATION LTD#135,Third Party Payments,Private Contractor Fees,73372-DOMICILIARY CARE,Revenue,06/10/2014,"1,395.28",Social Care & Inclusion
WC49-0187,ACCORD HOUSING ASSOCIATION LTD#135,Third Party Payments,Private Contractor Fees,73372-DOMICILIARY CARE,Revenue,06/10/2014,"1,419.60",Social Care & Inclusion
WC49-0188,ACCORD HOUSING ASSOCIATION LTD#135,Third Party Payments,Private Contractor Fees,73372-DOMICILIARY CARE,Revenue,06/10/2014,"1,442.56",Social Care & Inclusion
WC49-0189,ACCORD HOUSING ASSOCIATION LTD#135,Third Party Payments,Private Contractor Fees,73372-DOMICILIARY CARE,Revenue,06/10/2014,"1,442.56",Social Care & Inclusion
WC49-0190,ACCORD HOUSING ASSOCIATION LTD#135,Third Party Payments,Private Contractor Fees,73372-DOMICILIARY CARE,Revenue,06/10/2014,"1,479.95",Social Care & Inclusion
WC49-0191,ACCORD HOUSING ASSOCIATION LTD#135,Third Party Payments,Private Contractor Fees,73372-DOMICILIARY CARE,Revenue,06/10/2014,"1,480.90",Social Care & Inclusion
WC49-0192,ACCORD HOUSING ASSOCIATION LTD#135,Third Party Payments,Private Contractor Fees,73372-DOMICILIARY CARE,Revenue,06/10/2014,"1,493.84",Social Care & Inclusion
WC49-0193,ACCORD HOUSING ASSOCIATION LTD#135,Third Party Payments,Private Contractor Fees,73372-DOMICILIARY CARE,Revenue,14/10/2014,"1,493.84",Social Care & Inclusion
WC49-0194,ACCORD HOUSING ASSOCIATION LTD#135,Third Party Payments,Private Contractor Fees,73372-DOMICILIARY CARE,Revenue,06/10/2014,"1,497.30",Social Care & Inclusion
WC49-0195,ACCORD HOUSING ASSOCIATION LTD#135,Third Party Payments,Private Contractor Fees,73372-DOMICILIARY CARE,Revenue,06/10/2014,"1,538.68",Social Care & Inclusion
WC49-0196,ACCORD HOUSING ASSOCIATION LTD#135,Third Party Payments,Private Contractor Fees,73372-DOMICILIARY CARE,Revenue,14/10/2014,"1,538.68",Social Care & Inclusion
WC49-0197,ACCORD HOUSING ASSOCIATION LTD#135,Third Party Payments,Private Contractor Fees,73372-DOMICILIARY CARE,Revenue,06/10/2014,"1,545.12",Social Care & Inclusion
WC49-0198,ACCORD HOUSING ASSOCIATION LTD#135,Third Party Payments,Private Contractor Fees,73372-DOMICILIARY CARE,Revenue,06/10/2014,"1,560.44",Social Care & Inclusion
WC49-0199,ACCORD HOUSING ASSOCIATION LTD#135,Third Party Payments,Private Contractor Fees,73372-DOMICILIARY CARE,Revenue,06/10/2014,"1,599.92",Social Care & Inclusion
WC49-0200,ACCORD HOUSING ASSOCIATION LTD#135,Third Party Payments,Private Contractor Fees,73372-DOMICILIARY CARE,Revenue,06/10/2014,"1,627.12",Social Care & Inclusion
WC49-0201,ACCORD HOUSING ASSOCIATION LTD#135,Third Party Payments,Private Contractor Fees,73372-DOMICILIARY CARE,Revenue,06/10/2014,"1,663.64",Social Care & Inclusion
WC49-0202,ACCORD HOUSING ASSOCIATION LTD#135,Third Party Payments,Private Contractor Fees,73372-DOMICILIARY CARE,Revenue,14/10/2014,"1,663.64",Social Care & Inclusion
WC49-0203,ACCORD HOUSING ASSOCIATION LTD#135,Third Party Payments,Private Contractor Fees,73372-DOMICILIARY CARE,Revenue,06/10/2014,"1,725.68",Social Care & Inclusion
WC49-0204,ACCORD HOUSING ASSOCIATION LTD#135,Third Party Payments,Private Contractor Fees,73372-DOMICILIARY CARE,Revenue,14/10/2014,"1,725.68",Social Care & Inclusion
WC49-0205,ACCORD HOUSING ASSOCIATION LTD#135,Third Party Payments,Private Contractor Fees,73372-DOMICILIARY CARE,Revenue,06/10/2014,"1,867.30",Social Care & Inclusion
WC49-0206,ACCORD HOUSING ASSOCIATION LTD#135,Third Party Payments,Private Contractor Fees,73372-DOMICILIARY CARE,Revenue,06/10/2014,"2,071.93",Social Care & Inclusion
WC49-0207,ACCORD HOUSING ASSOCIATION LTD#135,Third Party Payments,Private Contractor Fees,73372-DOMICILIARY CARE,Revenue,06/10/2014,"2,073.26",Social Care & Inclusion
WC49-0208,ACCORD HOUSING ASSOCIATION LTD#135,Third Party Payments,Private Contractor Fees,73372-DOMICILIARY CARE,Revenue,06/10/2014,"2,096.22",Social Care & Inclusion
WC49-0209,ACCORD HOUSING ASSOCIATION LTD#135,Third Party Payments,Private Contractor Fees,73372-DOMICILIARY CARE,Revenue,06/10/2014,"2,157.10",Social Care & Inclusion
WC49-0210,ACCORD HOUSING ASSOCIATION LTD#135,Third Party Payments,Private Contractor Fees,73372-DOMICILIARY CARE,Revenue,06/10/2014,"2,266.40",Social Care & Inclusion
WC49-0211,ACCORD HOUSING ASSOCIATION LTD#135,Third Party Payments,Private Contractor Fees,73372-DOMICILIARY CARE,Revenue,06/10/2014,"2,266.40",Social Care & Inclusion
WC49-0212,ACCORD HOUSING ASSOCIATION LTD#135,Third Party Payments,Private Contractor Fees,73372-DOMICILIARY CARE,Revenue,06/10/2014,"2,408.32",Social Care & Inclusion
WC49-0213,ACCORD HOUSING ASSOCIATION LTD#135,Third Party Payments,Private Contractor Fees,73372-DOMICILIARY CARE,Revenue,14/10/2014,"2,408.32",Social Care & Inclusion
WC49-0214,ACCORD HOUSING ASSOCIATION LTD#135,Third Party Payments,Private Contractor Fees,73372-DOMICILIARY CARE,Revenue,06/10/2014,"2,614.22",Social Care & Inclusion
WC49-0215,ACCORD HOUSING ASSOCIATION LTD#135,Third Party Payments,Private Contractor Fees,73372-DOMICILIARY CARE,Revenue,06/10/2014,"2,692.69",Social Care & Inclusion
WC49-0216,ACCORD HOUSING ASSOCIATION LTD#135,Third Party Payments,Private Contractor Fees,73372-DOMICILIARY CARE,Revenue,06/10/2014,"3,019.94",Social Care & Inclusion
WC49-0217,ACCORD HOUSING ASSOCIATION LTD#135,Third Party Payments,Private Contractor Fees,73372-DOMICILIARY CARE,Revenue,06/10/2014,"3,327.28",Social Care & Inclusion
WC49-0218,ACCORD HOUSING ASSOCIATION LTD#135,Third Party Payments,Private Contractor Fees,73373-RESIDENTIAL & NURSING CARE PLACEMENTS,Revenue,15/10/2014,"4,490.79",Social Care & Inclusion
WC49-0219,ACCORD HOUSING ASSOCIATION LTD#135,Third Party Payments,Private Contractor Fees,73373-RESIDENTIAL & NURSING CARE PLACEMENTS,Revenue,15/10/2014,"4,490.79",Social Care & Inclusion
WC49-0220,ACCORD HOUSING ASSOCIATION LTD#135,Third Party Payments,Private Contractor Fees,73373-RESIDENTIAL & NURSING CARE PLACEMENTS,Revenue,15/10/2014,"4,490.79",Social Care & Inclusion
WC49-0221,ACCORD HOUSING ASSOCIATION LTD#135,Third Party Payments,Private Contractor Fees,73373-RESIDENTIAL & NURSING CARE PLACEMENTS,Revenue,15/10/2014,"4,490.79",Social Care & Inclusion
WC49-0222,ACCORD HOUSING ASSOCIATION LTD#135,Third Party Payments,Private Contractor Fees,73372-DOMICILIARY CARE,Revenue,06/10/2014,"4,816.64",Social Care & Inclusion
WC49-0223,ACCORD HOUSING ASSOCIATION LTD#135,Third Party Payments,Private Contractor Fees,73373-RESIDENTIAL & NURSING CARE PLACEMENTS,Revenue,15/10/2014,"6,267.69",Social Care & Inclusion
WC49-0224,ACCORD HOUSING ASSOCIATION LTD#135,Third Party Payments,Private Contractor Fees,73373-RESIDENTIAL & NURSING CARE PLACEMENTS,Revenue,15/10/2014,"6,267.69",Social Care & Inclusion
WC49-0225,ACCORD HOUSING ASSOCIATION LTD#135,Third Party Payments,Private Contractor Fees,73373-RESIDENTIAL & NURSING CARE PLACEMENTS,Revenue,21/10/2014,"6,267.69",Social Care & Inclusion
WC49-0226,ACCORD HOUSING ASSOCIATION LTD#135,Third Party Payments,Private Contractor Fees,73372-DOMICILIARY CARE,Revenue,13/10/2014,"6,573.62",Social Care & Inclusion
WC49-0227,ACE CARE AGENCY,Third Party Payments,Private Contractor Fees,73372-DOMICILIARY CARE,Revenue,01/10/2014,323.76,Social Care & Inclusion
WC49-0228,ACE CARE AGENCY,Third Party Payments,Private Contractor Fees,73372-DOMICILIARY CARE,Revenue,08/10/2014,323.76,Social Care & Inclusion
WC49-0229,ACE CARE AGENCY,Third Party Payments,Private Contractor Fees,73372-DOMICILIARY CARE,Revenue,08/10/2014,323.76,Social Care & Inclusion
WC49-0230,ACE CARE AGENCY,Third Party Payments,Private Contractor Fees,73372-DOMICILIARY CARE,Revenue,01/10/2014,519.40,Social Care & Inclusion
WC49-0231,ACE CARE AGENCY,Third Party Payments,Private Contractor Fees,73372-DOMICILIARY CARE,Revenue,08/10/2014,519.40,Social Care & Inclusion
WC49-0232,ACE CARE AGENCY,Third Party Payments,Private Contractor Fees,73372-DOMICILIARY CARE,Revenue,08/10/2014,607.05,Social Care & Inclusion
WC49-0233,ACE CARE AGENCY,Third Party Payments,Private Contractor Fees,73372-DOMICILIARY CARE,Revenue,01/10/2014,647.52,Social Care & Inclusion
WC49-0234,ACE CARE AGENCY,Third Party Payments,Private Contractor Fees,73372-DOMICILIARY CARE,Revenue,01/10/2014,936.15,Social Care & Inclusion
WC49-0235,ACE CARE AGENCY,Third Party Payments,Private Contractor Fees,73372-DOMICILIARY CARE,Revenue,08/10/2014,937.92,Social Care & Inclusion
WC49-0236,ACE RADIO CARS,Transport,Hire,52000-WITH DRIVER-HIRE OF VEHICLES,Revenue,09/10/2014,"2,050.02",Childrens
WC49-0237,ACE REMOVALS,Supplies & Services,"Equip,Furniture & Materials",60104-REMOVAL OF FURNITURE,Revenue,22/10/2014,450.00,Resources
WC49-0238,ACEPAY LTD (COTTAGE NUR HOME),Third Party Payments,Private Contractor Fees,73373-RESIDENTIAL & NURSING CARE PLACEMENTS,Revenue,01/10/2014,690.41,Social Care & Inclusion
WC49-0239,ACORN CARE LTD,Third Party Payments,Private Contractor Fees,73373-RESIDENTIAL & NURSING CARE PLACEMENTS,Revenue,15/10/2014,"14,840.32",Social Care & Inclusion
WC49-0240,ACORN FOSTERING SERVICES LTD,Third Party Payments,Private Contractor Fees,74037-INDEPENDENT FOSTER CARE-OTH AGENCY PROVISION,Revenue,20/10/2014,"3,492.86",Childrens
WC49-0241,ACORN FOSTERING SERVICES LTD,Third Party Payments,Private Contractor Fees,74037-INDEPENDENT FOSTER CARE-OTH AGENCY PROVISION,Revenue,20/10/2014,"3,609.29",Childrens
WC49-0242,ACORN HOUSE FOSTERING SERVICES LTD,Third Party Payments,Private Contractor Fees,74037-INDEPENDENT FOSTER CARE-OTH AGENCY PROVISION,Revenue,01/10/2014,"3,343.50",Childrens
WC49-0243,ACORN HOUSE FOSTERING SERVICES LTD,Third Party Payments,Private Contractor Fees,74037-INDEPENDENT FOSTER CARE-OTH AGENCY PROVISION,Revenue,01/10/2014,"3,411.90",Childrens
WC49-0244,ACORN REST HOME,Third Party Payments,Private Contractor Fees,73373-RESIDENTIAL & NURSING CARE PLACEMENTS,Revenue,01/10/2014,"1,460.40",Social Care & Inclusion
WC49-0245,ACORNS CHILDRENS HOSPICE TRUST,Supplies & Services,Services,63000-PROFESSIONAL FEES AND SERVICES,Revenue,03/10/2014,750.00,Childrens
WC49-0246,ACORNS CHILDRENS HOSPICE TRUST,Supplies & Services,Services,63000-PROFESSIONAL FEES AND SERVICES,Revenue,03/10/2014,750.00,Childrens
WC49-0247,ACORNS CHILDRENS HOSPICE TRUST,Supplies & Services,Services,63000-PROFESSIONAL FEES AND SERVICES,Revenue,24/10/2014,750.00,Childrens
WC49-0248,ACTION DIGITAL MEDIA LTD,Supplies & Services,Services,63000-PROFESSIONAL FEES AND SERVICES,Revenue,14/10/2014,702.74,Neighbourhood Services
WC49-0249,ACTION FOR CHILDREN,Third Party Payments,Private Contractor Fees,74037-INDEPENDENT FOSTER CARE-OTH AGENCY PROVISION,Revenue,14/10/2014,"3,518.85",Childrens
WC49-0250,ACTION ON HEARING LOSS,Third Party Payments,Private Contractor Fees,73374-SUPPORTED & OTHER ACCOMMODATION,Revenue,01/10/2014,479.28,Social Care & Inclusion
WC49-0251,ACTION ON HEARING LOSS,Third Party Payments,Private Contractor Fees,73374-SUPPORTED & OTHER ACCOMMODATION,Revenue,09/10/2014,479.28,Social Care & Inclusion
WC49-0252,ACTION ON HEARING LOSS,Third Party Payments,Private Contractor Fees,73374-SUPPORTED & OTHER ACCOMMODATION,Revenue,29/10/2014,479.28,Social Care & Inclusion
WC49-0253,ACTION ON HEARING LOSS,Third Party Payments,Private Contractor Fees,70000-SOCIAL SERVICES-FEES TO VOLUNTARY BODIES,Revenue,01/10/2014,"25,664.06",Social Care & Inclusion
WC49-0254,REDACTED,Supplies & Services,Services,63000-PROFESSIONAL FEES AND SERVICES,Revenue,22/10/2014,630.00,Neighbourhood Services
WC49-0255,REDACTED,Supplies & Services,Services,63000-PROFESSIONAL FEES AND SERVICES,Revenue,22/10/2014,"1,020.00",Neighbourhood Services
WC49-0256,REDACTED,Supplies & Services,Other Supplies & Services,67001-MISC INSURANCES - PAYMENT OF CLAIMS,Revenue,13/10/2014,"1,601.25",Holding Accounts
WC49-0257,REDACTED,Supplies & Services,Other Supplies & Services,67001-MISC INSURANCES - PAYMENT OF CLAIMS,Revenue,29/10/2014,"2,138.50",Holding Accounts
WC49-0258,REDACTED,Transfer Payments,Transfer Payments,76422-DIRECT PAYMENTS TO SOCIAL SERVICES CLIENTS,Revenue,13/10/2014,487.60,Childrens
WC49-0259,REDACTED,Transfer Payments,Transfer Payments,76422-DIRECT PAYMENTS TO SOCIAL SERVICES CLIENTS,Revenue,13/10/2014,384.00,Social Care & Inclusion
WC49-0260,ADDACTION,Supplies & Services,Services,63000-PROFESSIONAL FEES AND SERVICES,Revenue,13/10/2014,"275,223.00",Neighbourhood Services
WC49-0261,REDACTED,Transfer Payments,Transfer Payments,76422-DIRECT PAYMENTS TO SOCIAL SERVICES CLIENTS,Revenue,13/10/2014,860.00,Social Care & Inclusion
WC49-0262,ADMIRAL SELF STORAGE LTD,Supplies & Services,Services,63000-PROFESSIONAL FEES AND SERVICES,Revenue,01/10/2014,419.32,Resources
WC49-0263,ADMIRAL SELF STORAGE LTD,Supplies & Services,Services,63000-PROFESSIONAL FEES AND SERVICES,Revenue,10/10/2014,419.32,Resources
WC49-0264,ADRIAN CARROLL LTD,Capital,Capital,01007-ARCHITECTS ASSISTANTS TIME,Capital,20/10/2014,640.00,Childrens
WC49-0265,REDACTED,Third Party Payments,Private Contractor Fees,74006-HOLIDAY/CHRISTMAS ALLOWANCE-FOSTER CARERS-OTH AGENCY PROVISION,Revenue,01/10/2014,681.52,Childrens
WC49-0266,REDACTED,Third Party Payments,Private Contractor Fees,74006-HOLIDAY/CHRISTMAS ALLOWANCE-FOSTER CARERS-OTH AGENCY PROVISION,Revenue,27/10/2014,681.52,Childrens
WC49-0267,ADVANCE HEALTH CARE (UK) LTD,Employees,Agency,34305-AGENCY STAFF-EMPLOYEES,Revenue,28/10/2014,364.00,Social Care & Inclusion
WC49-0268,ADVANCE HEALTH CARE (UK) LTD,Employees,Agency,34305-AGENCY STAFF-EMPLOYEES,Revenue,28/10/2014,676.00,Social Care & Inclusion
WC49-0269,ADVANCE HEALTH CARE (UK) LTD,Employees,Agency,34305-AGENCY STAFF-EMPLOYEES,Revenue,28/10/2014,877.50,Social Care & Inclusion
WC49-0270,ADVANCE HEALTH CARE (UK) LTD,Employees,Agency,34305-AGENCY STAFF-EMPLOYEES,Revenue,28/10/2014,906.75,Social Care & Inclusion
WC49-0271,ADVANCE HEALTH CARE (UK) LTD,Employees,Agency,34305-AGENCY STAFF-EMPLOYEES,Revenue,28/10/2014,"1,105.00",Social Care & Inclusion
WC49-0272,ADVANCE HEALTH CARE (UK) LTD,Employees,Agency,34305-AGENCY STAFF-EMPLOYEES,Revenue,28/10/2014,"1,118.00",Social Care & Inclusion
WC49-0273,ADVANCE HEALTH CARE (UK) LTD,Employees,Agency,34305-AGENCY STAFF-EMPLOYEES,Revenue,28/10/2014,"1,339.00",Social Care & Inclusion
WC49-0274,ADVANCE HEALTH CARE (UK) LTD,Employees,Agency,34305-AGENCY STAFF-EMPLOYEES,Revenue,28/10/2014,"1,618.50",Social Care & Inclusion
WC49-0275,ADVANCE HEALTH CARE (UK) LTD,Employees,Agency,34305-AGENCY STAFF-EMPLOYEES,Revenue,29/10/2014,"1,904.50",Social Care & Inclusion
WC49-0276,ADVANCE HEALTH CARE (UK) LTD,Employees,Agency,34305-AGENCY STAFF-EMPLOYEES,Revenue,28/10/2014,"2,418.00",Social Care & Inclusion
WC49-0277,ADVANCE HEALTH CARE (UK) LTD,Employees,Agency,34305-AGENCY STAFF-EMPLOYEES,Revenue,28/10/2014,"2,697.50",Social Care & Inclusion
WC49-0278,ADVANCE HEALTH CARE (UK) LTD,Employees,Agency,34305-AGENCY STAFF-EMPLOYEES,Revenue,28/10/2014,"3,880.50",Social Care & Inclusion
WC49-0279,ADVANCE HEALTH CARE (UK) LTD,Employees,Agency,34305-AGENCY STAFF-EMPLOYEES,Revenue,28/10/2014,"4,140.50",Social Care & Inclusion
WC49-0280,ADVANCE HEALTH CARE (UK) LTD,Employees,Agency,34305-AGENCY STAFF-EMPLOYEES,Revenue,28/10/2014,"5,596.50",Social Care & Inclusion
WC49-0281,ADVANCE HEALTH CARE (UK) LTD,Employees,Agency,34305-AGENCY STAFF-EMPLOYEES,Revenue,28/10/2014,"5,596.50",Social Care & Inclusion
WC49-0282,ADVANCE HEALTH CARE (UK) LTD,Employees,Agency,34305-AGENCY STAFF-EMPLOYEES,Revenue,28/10/2014,"6,155.50",Social Care & Inclusion
WC49-0283,ADVANCE HEALTH CARE (UK) LTD,Employees,Agency,34305-AGENCY STAFF-EMPLOYEES,Revenue,28/10/2014,"6,298.50",Social Care & Inclusion
WC49-0284,ADVANCE HEALTH CARE (UK) LTD,Employees,Agency,34305-AGENCY STAFF-EMPLOYEES,Revenue,28/10/2014,"8,079.50",Social Care & Inclusion
WC49-0285,ADVANCE HEALTH CARE (UK) LTD,Third Party Payments,Private Contractor Fees,73372-DOMICILIARY CARE,Revenue,14/10/2014,"11,275.54",Social Care & Inclusion
WC49-0286,ADVANCED CHILDCARE LTD,Third Party Payments,Private Contractor Fees,74036-EXTERNAL RESIDENTIAL CARE-OTH AGENCY PROVISION,Revenue,13/10/2014,"2,571.30",Childrens
WC49-0287,ADVANCED CHILDCARE LTD,Third Party Payments,Private Contractor Fees,74036-EXTERNAL RESIDENTIAL CARE-OTH AGENCY PROVISION,Revenue,15/10/2014,"2,586.84",Childrens
WC49-0288,ADVANCED CHILDCARE LTD,Third Party Payments,Private Contractor Fees,74036-EXTERNAL RESIDENTIAL CARE-OTH AGENCY PROVISION,Revenue,22/10/2014,"2,657.01",Childrens
WC49-0289,ADVANCED CHILDCARE LTD,Third Party Payments,Private Contractor Fees,74037-INDEPENDENT FOSTER CARE-OTH AGENCY PROVISION,Revenue,10/10/2014,"3,003.00",Childrens
WC49-0290,ADVANCED CHILDCARE LTD,Third Party Payments,Private Contractor Fees,74037-INDEPENDENT FOSTER CARE-OTH AGENCY PROVISION,Revenue,29/10/2014,"3,409.92",Childrens
WC49-0291,ADVANCED CHILDCARE LTD,Third Party Payments,Private Contractor Fees,74036-EXTERNAL RESIDENTIAL CARE-OTH AGENCY PROVISION,Revenue,13/10/2014,"13,877.10",Childrens
WC49-0292,ADVANCED CHILDCARE LTD,Third Party Payments,Private Contractor Fees,74036-EXTERNAL RESIDENTIAL CARE-OTH AGENCY PROVISION,Revenue,22/10/2014,"14,339.67",Childrens
WC49-0293,ADVANCED CONTRACTS (MIDLANDS) LTD,Premises,Premises-Repairs & Maintenance,"40000-REPAIRS,ALTERATIONS & MAINTENANCE-PREM",Revenue,17/10/2014,275.00,Regeneration
WC49-0294,ADVANCED CONTRACTS (MIDLANDS) LTD,Premises,Premises-Repairs & Maintenance,"40000-REPAIRS,ALTERATIONS & MAINTENANCE-PREM",Revenue,29/10/2014,280.00,Regeneration
WC49-0295,ADVANCED CONTRACTS (MIDLANDS) LTD,Premises,Premises-Repairs & Maintenance,"40000-REPAIRS,ALTERATIONS & MAINTENANCE-PREM",Revenue,23/10/2014,420.00,Regeneration
WC49-0296,ADVANCED CONTRACTS (MIDLANDS) LTD,Premises,Premises-Repairs & Maintenance,"40000-REPAIRS,ALTERATIONS & MAINTENANCE-PREM",Revenue,20/10/2014,550.00,Regeneration
WC49-0297,ADVANCED CONTRACTS (MIDLANDS) LTD,Premises,Premises-Repairs & Maintenance,"40000-REPAIRS,ALTERATIONS & MAINTENANCE-PREM",Revenue,20/10/2014,650.00,Regeneration
WC49-0298,ADVANCED CONTRACTS (MIDLANDS) LTD,Premises,Premises-Repairs & Maintenance,"40000-REPAIRS,ALTERATIONS & MAINTENANCE-PREM",Revenue,16/10/2014,756.00,Regeneration
WC49-0299,ADVANCED CONTRACTS (MIDLANDS) LTD,Premises,Premises-Repairs & Maintenance,"40000-REPAIRS,ALTERATIONS & MAINTENANCE-PREM",Revenue,22/10/2014,"1,786.00",Regeneration
WC49-0300,ADVANCED CONTRACTS (MIDLANDS) LTD,Premises,Premises-Repairs & Maintenance,"40000-REPAIRS,ALTERATIONS & MAINTENANCE-PREM",Revenue,22/10/2014,"2,480.00",Regeneration
WC49-0301,ADVANCED CONTRACTS (MIDLANDS) LTD,Premises,Premises-Repairs & Maintenance,"40000-REPAIRS,ALTERATIONS & MAINTENANCE-PREM",Revenue,02/10/2014,"2,495.00",Regeneration
WC49-0302,ADVENTURELAND DAY NURSERY,Supplies & Services,Other Supplies & Services,63120-CRECHE FACILITIES-SERVICES-FEES,Revenue,07/10/2014,360.00,Childrens
WC49-0303,ADVENTURELAND DAY NURSERY,Supplies & Services,Other Supplies & Services,63120-CRECHE FACILITIES-SERVICES-FEES,Revenue,07/10/2014,360.00,Childrens
WC49-0304,ADVENTURELAND DAY NURSERY,Supplies & Services,Other Supplies & Services,63120-CRECHE FACILITIES-SERVICES-FEES,Revenue,22/10/2014,450.00,Childrens
WC49-0305,ADVOCACY MATTERS LIMITED,Third Party Payments,Private Contractor Fees,70000-SOCIAL SERVICES-FEES TO VOLUNTARY BODIES,Revenue,01/10/2014,"22,560.75",Social Care & Inclusion
WC49-0306,AECOM LIMITED,Supplies & Services,Services,63102-CONSULTANTS FEES - CORPORATE,Revenue,01/10/2014,591.50,Neighbourhood Services
WC49-0307,AEWM (ASSOCIATION FOR EDUCATION WELFARE MANAGEMENT,Employees,Training,30030-EXTERNAL TRAINING,Revenue,16/10/2014,260.00,Childrens
WC49-0308,AFON GOCH CHILDRENS HOMES LTD,Third Party Payments,Private Contractor Fees,74036-EXTERNAL RESIDENTIAL CARE-OTH AGENCY PROVISION,Revenue,20/10/2014,"2,400.00",Childrens
WC49-0309,AFON GOCH CHILDRENS HOMES LTD,Third Party Payments,Private Contractor Fees,74036-EXTERNAL RESIDENTIAL CARE-OTH AGENCY PROVISION,Revenue,20/10/2014,"13,800.00",Childrens
WC49-0310,AFON GOCH CHILDRENS HOMES LTD,Third Party Payments,Private Contractor Fees,74036-EXTERNAL RESIDENTIAL CARE-OTH AGENCY PROVISION,Revenue,20/10/2014,"18,000.00",Childrens
WC49-0311,AFON GOCH CHILDRENS HOMES LTD,Third Party Payments,Private Contractor Fees,74036-EXTERNAL RESIDENTIAL CARE-OTH AGENCY PROVISION,Revenue,20/10/2014,"18,600.00",Childrens
WC49-0312,AFTER ADOPTION,Transfer Payments,Transfer Payments,74009-ADOPTION ALLOWANCE,Revenue,03/10/2014,"8,450.00",Childrens
WC49-0313,AGE UK WALSALL,Transfer Payments,Transfer Payments,76423-DIRECT PAYMENTS SUPPORT,Revenue,21/10/2014,"2,856.00",Social Care & Inclusion
WC49-0314,AGE UK WALSALL,Transfer Payments,Transfer Payments,76423-DIRECT PAYMENTS SUPPORT,Revenue,10/10/2014,"3,605.00",Social Care & Inclusion
WC49-0315,AGGORA TECHNICAL LTD,Supplies & Services,"Equip,Furniture & Materials",60006-NEW-FURNITURE & EQUIPMENT,Revenue,13/10/2014,"1,068.00",Neighbourhood Services
WC49-0316,AGGORA TECHNICAL LTD,Supplies & Services,"Equip,Furniture & Materials",60006-NEW-FURNITURE & EQUIPMENT,Revenue,13/10/2014,"2,034.00",Neighbourhood Services
WC49-0317,AGGORA TECHNICAL LTD,Supplies & Services,"Equip,Furniture & Materials",60006-NEW-FURNITURE & EQUIPMENT,Revenue,13/10/2014,"2,034.00",Neighbourhood Services
WC49-0318,AGGORA TECHNICAL LTD,Supplies & Services,"Equip,Furniture & Materials",60006-NEW-FURNITURE & EQUIPMENT,Revenue,13/10/2014,"2,034.00",Neighbourhood Services
WC49-0319,AGGORA TECHNICAL LTD,Supplies & Services,"Equip,Furniture & Materials",60006-NEW-FURNITURE & EQUIPMENT,Revenue,13/10/2014,"2,034.00",Neighbourhood Services
WC49-0320,AGGORA TECHNICAL LTD,Supplies & Services,"Equip,Furniture & Materials",60006-NEW-FURNITURE & EQUIPMENT,Revenue,13/10/2014,"2,034.00",Neighbourhood Services
WC49-0321,AGINCARE UK LTD,Third Party Payments,Private Contractor Fees,73372-DOMICILIARY CARE,Revenue,10/10/2014,308.00,Social Care & Inclusion
WC49-0322,AGINCARE UK LTD,Third Party Payments,Private Contractor Fees,73372-DOMICILIARY CARE,Revenue,10/10/2014,"1,713.60",Social Care & Inclusion
WC49-0323,REDACTED,Transfer Payments,Transfer Payments,76422-DIRECT PAYMENTS TO SOCIAL SERVICES CLIENTS,Revenue,13/10/2014,"1,882.00",Social Care & Inclusion
WC49-0324,AIR PLANTS DUST EXTRACTION LTD,Supplies & Services,"Equip,Furniture & Materials",60008-MAINTENANCE-FURNITURE & EQUIPMENT,Revenue,14/10/2014,394.00,Neighbourhood Services
WC49-0325,AIRTECH CONTROLS LTD,Premises,Premises-Repairs & Maintenance,"40000-REPAIRS,ALTERATIONS & MAINTENANCE-PREM",Revenue,21/10/2014,"1,070.00",Regeneration
WC49-0326,REDACTED,Transfer Payments,Transfer Payments,76422-DIRECT PAYMENTS TO SOCIAL SERVICES CLIENTS,Revenue,13/10/2014,936.52,Social Care & Inclusion
WC49-0327,ALANA ECOLOGY LTD,Supplies & Services,"Equip,Furniture & Materials",60500-GENERAL MATERIALS,Revenue,22/10/2014,137.77,Neighbourhood Services
WC49-0328,ALANA ECOLOGY LTD,Supplies & Services,Other Supplies & Services,62523-EVENTS,Revenue,22/10/2014,204.20,Neighbourhood Services
WC49-0329,ALANA ECOLOGY LTD,Supplies & Services,"Equip,Furniture & Materials",60500-GENERAL MATERIALS,Revenue,22/10/2014,371.24,Neighbourhood Services
WC49-0330,REDACTED,Transfer Payments,Transfer Payments,76422-DIRECT PAYMENTS TO SOCIAL SERVICES CLIENTS,Revenue,13/10/2014,667.80,Social Care & Inclusion
WC49-0331,REDACTED,Transfer Payments,Transfer Payments,76422-DIRECT PAYMENTS TO SOCIAL SERVICES CLIENTS,Revenue,13/10/2014,"2,118.48",Social Care & Inclusion
WC49-0332,ALDERGROVE MANOR CARE HOME,Third Party Payments,Private Contractor Fees,73373-RESIDENTIAL & NURSING CARE PLACEMENTS,Revenue,28/10/2014,"1,784.48",Social Care & Inclusion
WC49-0333,ALDRIDGE METHODIST CHURCH 001,Supplies & Services,Other Supplies & Services,63128-HIRE OF ROOM-SERVICES-FEES,Revenue,22/10/2014,285.00,Resources
WC49-0334,ALDRIDGE SCHOOL A SCIENCE COLLEGE.,Transfer Payments,Transfer Payments,77300-ISB-FORMULA ALLOCATION,Revenue,17/10/2014,275.00,Childrens
WC49-0335,ALDRIDGE SCHOOL A SCIENCE COLLEGE.,Transfer Payments,Transfer Payments,77300-ISB-FORMULA ALLOCATION,Revenue,17/10/2014,360.00,Childrens
WC49-0336,ALDRIDGE SCHOOL A SCIENCE COLLEGE.,Transfer Payments,Transfer Payments,77300-ISB-FORMULA ALLOCATION,Revenue,17/10/2014,385.00,Childrens
WC49-0337,ALDRIDGE SCHOOL A SCIENCE COLLEGE.,Transfer Payments,Transfer Payments,77300-ISB-FORMULA ALLOCATION,Revenue,17/10/2014,435.00,Childrens
WC49-0338,ALDRIDGE SCHOOL A SCIENCE COLLEGE.,Transfer Payments,Transfer Payments,77300-ISB-FORMULA ALLOCATION,Revenue,17/10/2014,565.00,Childrens
WC49-0339,ALDRIDGE SCHOOL A SCIENCE COLLEGE.,Transfer Payments,Transfer Payments,77300-ISB-FORMULA ALLOCATION,Revenue,17/10/2014,630.00,Childrens
WC49-0340,ALDRIDGE VOLUNTEER GARDENERS,Supplies & Services,Other Supplies & Services,62515-MISCELLANEOUS SUPPLIES,Revenue,23/10/2014,750.00,Neighbourhood Services
WC49-0341,ALDRIDGE YOUTH THEATRE,Supplies & Services,Other Supplies & Services,62515-MISCELLANEOUS SUPPLIES,Revenue,01/10/2014,750.00,Neighbourhood Services
WC49-0342,ALERE LTD,Supplies & Services,Communications & Computing,63809-LICENCES-COMPUTER,Revenue,07/10/2014,"-1,065.00",Neighbourhood Services
WC49-0343,REDACTED,Transfer Payments,Transfer Payments,76422-DIRECT PAYMENTS TO SOCIAL SERVICES CLIENTS,Revenue,13/10/2014,"5,978.00",Social Care & Inclusion
WC49-0344,REDACTED,Transfer Payments,Transfer Payments,76422-DIRECT PAYMENTS TO SOCIAL SERVICES CLIENTS,Revenue,13/10/2014,582.67,Childrens
WC49-0345,REDACTED,Transfer Payments,Transfer Payments,76422-DIRECT PAYMENTS TO SOCIAL SERVICES CLIENTS,Revenue,13/10/2014,854.00,Social Care & Inclusion
WC49-0346,ALIGNED ASSETS LTD,Supplies & Services,Communications & Computing,63820-RECHARGE FOR MAINTENANCE/APPLICATION COSTS-COMPUTER,Revenue,15/10/2014,425.00,Resources
WC49-0347,ALIGNED ASSETS LTD,Supplies & Services,Communications & Computing,63800-COMPUTER EQUIPMENT AND SUPPLIES,Revenue,15/10/2014,"4,250.00",Resources
WC49-0348,REDACTED,Transfer Payments,Transfer Payments,76422-DIRECT PAYMENTS TO SOCIAL SERVICES CLIENTS,Revenue,13/10/2014,328.80,Social Care & Inclusion
WC49-0349,REDACTED,Third Party Payments,Private Contractor Fees,74006-HOLIDAY/CHRISTMAS ALLOWANCE-FOSTER CARERS-OTH AGENCY PROVISION,Revenue,13/10/2014,917.04,Childrens
WC49-0350,REDACTED,Supplies & Services,Other Supplies & Services,62515-MISCELLANEOUS SUPPLIES,Revenue,13/10/2014,"1,428.44",Childrens
WC49-0351,REDACTED,Third Party Payments,Private Contractor Fees,74006-HOLIDAY/CHRISTMAS ALLOWANCE-FOSTER CARERS-OTH AGENCY PROVISION,Revenue,01/10/2014,542.80,Childrens
WC49-0352,REDACTED,Third Party Payments,Private Contractor Fees,74006-HOLIDAY/CHRISTMAS ALLOWANCE-FOSTER CARERS-OTH AGENCY PROVISION,Revenue,27/10/2014,542.80,Childrens
WC49-0353,ALLPACK GROUP,Supplies & Services,"Printing, Stationery & Office Exp",62001-STATIONERY & GENERAL SUPPLIES-OFFICE EXP,Revenue,16/10/2014,722.10,Social Care & Inclusion
WC49-0354,ALLSORTS OFFICE SUPPLIES LTD,Capital,Capital,01044-PURCHASE OF FURNITURE & EQUIPMENT,Capital,29/10/2014,289.00,Regeneration
WC49-0355,ALLSORTS OFFICE SUPPLIES LTD,Supplies & Services,"Equip,Furniture & Materials",60000-FURNITURE & EQUIPMENT,Revenue,28/10/2014,408.00,Resources
WC49-0356,ALLSORTS OFFICE SUPPLIES LTD,Capital,Capital,01044-PURCHASE OF FURNITURE & EQUIPMENT,Capital,29/10/2014,480.00,Regeneration
WC49-0357,ALLSORTS OFFICE SUPPLIES LTD,Capital,Capital,01044-PURCHASE OF FURNITURE & EQUIPMENT,Capital,29/10/2014,534.00,Regeneration
WC49-0358,ALLSORTS OFFICE SUPPLIES LTD,Premises,Premises-Repairs & Maintenance,"40000-REPAIRS,ALTERATIONS & MAINTENANCE-PREM",Revenue,29/10/2014,"1,024.00",Regeneration
WC49-0359,ALLSTAR BUSINESS SOLUTIONS LTD,Transport,Other Transport,50301-FUEL-TRANSPORT RUN COSTS,Revenue,24/10/2014,624.36,Neighbourhood Services
WC49-0360,ALLSTAR BUSINESS SOLUTIONS LTD,Transport,Other Transport,50301-FUEL-TRANSPORT RUN COSTS,Revenue,06/10/2014,"1,454.38",Neighbourhood Services
WC49-0361,ALLSTAR BUSINESS SOLUTIONS LTD,Transport,Other Transport,50301-FUEL-TRANSPORT RUN COSTS,Revenue,03/10/2014,"1,620.74",Neighbourhood Services
WC49-0362,ALMA COURT,Third Party Payments,Private Contractor Fees,73373-RESIDENTIAL & NURSING CARE PLACEMENTS,Revenue,07/10/2014,"5,580.00",Social Care & Inclusion
WC49-0363,ALMA COURT,Third Party Payments,Private Contractor Fees,73373-RESIDENTIAL & NURSING CARE PLACEMENTS,Revenue,07/10/2014,"5,978.57",Social Care & Inclusion
WC49-0364,ALMA COURT,Third Party Payments,Private Contractor Fees,73373-RESIDENTIAL & NURSING CARE PLACEMENTS,Revenue,07/10/2014,"5,978.57",Social Care & Inclusion
WC49-0365,ALMA COURT,Third Party Payments,Private Contractor Fees,73373-RESIDENTIAL & NURSING CARE PLACEMENTS,Revenue,07/10/2014,"6,177.85",Social Care & Inclusion
WC49-0366,ALMA COURT,Third Party Payments,Private Contractor Fees,73373-RESIDENTIAL & NURSING CARE PLACEMENTS,Revenue,07/10/2014,"6,177.85",Social Care & Inclusion
WC49-0367,ALMA COURT,Third Party Payments,Private Contractor Fees,73373-RESIDENTIAL & NURSING CARE PLACEMENTS,Revenue,07/10/2014,"6,177.85",Social Care & Inclusion
WC49-0368,ALMA COURT,Third Party Payments,Private Contractor Fees,73373-RESIDENTIAL & NURSING CARE PLACEMENTS,Revenue,07/10/2014,"6,177.85",Social Care & Inclusion
WC49-0369,ALMA COURT,Third Party Payments,Private Contractor Fees,73373-RESIDENTIAL & NURSING CARE PLACEMENTS,Revenue,07/10/2014,"6,177.86",Social Care & Inclusion
WC49-0370,ALMA COURT,Third Party Payments,Private Contractor Fees,73373-RESIDENTIAL & NURSING CARE PLACEMENTS,Revenue,15/10/2014,"6,177.86",Social Care & Inclusion
WC49-0371,ALMA COURT,Third Party Payments,Private Contractor Fees,73373-RESIDENTIAL & NURSING CARE PLACEMENTS,Revenue,15/10/2014,"6,177.86",Social Care & Inclusion
WC49-0372,ALMA COURT,Third Party Payments,Private Contractor Fees,73373-RESIDENTIAL & NURSING CARE PLACEMENTS,Revenue,07/10/2014,"7,772.15",Social Care & Inclusion
WC49-0373,ALMOND CARE,Supplies & Services,Services,63000-PROFESSIONAL FEES AND SERVICES,Revenue,01/10/2014,602.25,Childrens
WC49-0374,ALPHA HEALTH CARE LTD,Third Party Payments,Private Contractor Fees,73373-RESIDENTIAL & NURSING CARE PLACEMENTS,Revenue,01/10/2014,"1,375.60",Social Care & Inclusion
WC49-0375,ALPHA HEALTH CARE LTD,Third Party Payments,Private Contractor Fees,73373-RESIDENTIAL & NURSING CARE PLACEMENTS,Revenue,01/10/2014,"1,375.60",Social Care & Inclusion
WC49-0376,ALPHA HEALTH CARE LTD,Third Party Payments,Private Contractor Fees,73373-RESIDENTIAL & NURSING CARE PLACEMENTS,Revenue,21/10/2014,"1,375.60",Social Care & Inclusion
WC49-0377,ALPHA HEALTH CARE LTD,Third Party Payments,Private Contractor Fees,73373-RESIDENTIAL & NURSING CARE PLACEMENTS,Revenue,21/10/2014,"1,375.60",Social Care & Inclusion
WC49-0378,ALPHA HEALTH CARE LTD,Third Party Payments,Private Contractor Fees,73373-RESIDENTIAL & NURSING CARE PLACEMENTS,Revenue,01/10/2014,"1,382.00",Social Care & Inclusion
WC49-0379,ALPHA HEALTH CARE LTD,Third Party Payments,Private Contractor Fees,73373-RESIDENTIAL & NURSING CARE PLACEMENTS,Revenue,21/10/2014,"1,382.00",Social Care & Inclusion
WC49-0380,ALPHA HEALTH CARE LTD,Third Party Payments,Private Contractor Fees,73373-RESIDENTIAL & NURSING CARE PLACEMENTS,Revenue,21/10/2014,"1,419.93",Social Care & Inclusion
WC49-0381,ALPHA HEALTH CARE LTD,Third Party Payments,Private Contractor Fees,73373-RESIDENTIAL & NURSING CARE PLACEMENTS,Revenue,01/10/2014,"1,460.40",Social Care & Inclusion
WC49-0382,ALPHA HEALTH CARE LTD,Third Party Payments,Private Contractor Fees,73373-RESIDENTIAL & NURSING CARE PLACEMENTS,Revenue,21/10/2014,"1,460.40",Social Care & Inclusion
WC49-0383,ALPHA HEALTH CARE LTD,Third Party Payments,Private Contractor Fees,73373-RESIDENTIAL & NURSING CARE PLACEMENTS,Revenue,01/10/2014,"1,470.60",Social Care & Inclusion
WC49-0384,ALPHA HEALTH CARE LTD,Third Party Payments,Private Contractor Fees,73373-RESIDENTIAL & NURSING CARE PLACEMENTS,Revenue,21/10/2014,"1,470.60",Social Care & Inclusion
WC49-0385,ALPHA HEALTH CARE LTD,Third Party Payments,Private Contractor Fees,73373-RESIDENTIAL & NURSING CARE PLACEMENTS,Revenue,01/10/2014,"1,476.84",Social Care & Inclusion
WC49-0386,ALPHA HEALTH CARE LTD,Third Party Payments,Private Contractor Fees,73373-RESIDENTIAL & NURSING CARE PLACEMENTS,Revenue,01/10/2014,"1,476.84",Social Care & Inclusion
WC49-0387,ALPHA HEALTH CARE LTD,Third Party Payments,Private Contractor Fees,73373-RESIDENTIAL & NURSING CARE PLACEMENTS,Revenue,21/10/2014,"1,476.84",Social Care & Inclusion
WC49-0388,ALPHA HEALTH CARE LTD,Third Party Payments,Private Contractor Fees,73373-RESIDENTIAL & NURSING CARE PLACEMENTS,Revenue,21/10/2014,"1,476.84",Social Care & Inclusion
WC49-0389,ALPHA HEALTH CARE LTD,Third Party Payments,Private Contractor Fees,73373-RESIDENTIAL & NURSING CARE PLACEMENTS,Revenue,01/10/2014,"1,489.60",Social Care & Inclusion
WC49-0390,ALPHA HEALTH CARE LTD,Third Party Payments,Private Contractor Fees,73373-RESIDENTIAL & NURSING CARE PLACEMENTS,Revenue,01/10/2014,"1,489.60",Social Care & Inclusion
WC49-0391,ALPHA HEALTH CARE LTD,Third Party Payments,Private Contractor Fees,73373-RESIDENTIAL & NURSING CARE PLACEMENTS,Revenue,01/10/2014,"1,489.60",Social Care & Inclusion
WC49-0392,ALPHA HEALTH CARE LTD,Third Party Payments,Private Contractor Fees,73373-RESIDENTIAL & NURSING CARE PLACEMENTS,Revenue,01/10/2014,"1,489.60",Social Care & Inclusion
WC49-0393,ALPHA HEALTH CARE LTD,Third Party Payments,Private Contractor Fees,73373-RESIDENTIAL & NURSING CARE PLACEMENTS,Revenue,01/10/2014,"1,489.60",Social Care & Inclusion
WC49-0394,ALPHA HEALTH CARE LTD,Third Party Payments,Private Contractor Fees,73373-RESIDENTIAL & NURSING CARE PLACEMENTS,Revenue,01/10/2014,"1,489.60",Social Care & Inclusion
WC49-0395,ALPHA HEALTH CARE LTD,Third Party Payments,Private Contractor Fees,73373-RESIDENTIAL & NURSING CARE PLACEMENTS,Revenue,01/10/2014,"1,489.60",Social Care & Inclusion
WC49-0396,ALPHA HEALTH CARE LTD,Third Party Payments,Private Contractor Fees,73373-RESIDENTIAL & NURSING CARE PLACEMENTS,Revenue,01/10/2014,"1,489.60",Social Care & Inclusion
WC49-0397,ALPHA HEALTH CARE LTD,Third Party Payments,Private Contractor Fees,73373-RESIDENTIAL & NURSING CARE PLACEMENTS,Revenue,01/10/2014,"1,489.60",Social Care & Inclusion
WC49-0398,ALPHA HEALTH CARE LTD,Third Party Payments,Private Contractor Fees,73373-RESIDENTIAL & NURSING CARE PLACEMENTS,Revenue,01/10/2014,"1,489.60",Social Care & Inclusion
WC49-0399,ALPHA HEALTH CARE LTD,Third Party Payments,Private Contractor Fees,73373-RESIDENTIAL & NURSING CARE PLACEMENTS,Revenue,01/10/2014,"1,489.60",Social Care & Inclusion
WC49-0400,ALPHA HEALTH CARE LTD,Third Party Payments,Private Contractor Fees,73373-RESIDENTIAL & NURSING CARE PLACEMENTS,Revenue,21/10/2014,"1,489.60",Social Care & Inclusion
WC49-0401,ALPHA HEALTH CARE LTD,Third Party Payments,Private Contractor Fees,73373-RESIDENTIAL & NURSING CARE PLACEMENTS,Revenue,21/10/2014,"1,489.60",Social Care & Inclusion
WC49-0402,ALPHA HEALTH CARE LTD,Third Party Payments,Private Contractor Fees,73373-RESIDENTIAL & NURSING CARE PLACEMENTS,Revenue,21/10/2014,"1,489.60",Social Care & Inclusion
WC49-0403,ALPHA HEALTH CARE LTD,Third Party Payments,Private Contractor Fees,73373-RESIDENTIAL & NURSING CARE PLACEMENTS,Revenue,21/10/2014,"1,489.60",Social Care & Inclusion
WC49-0404,ALPHA HEALTH CARE LTD,Third Party Payments,Private Contractor Fees,73373-RESIDENTIAL & NURSING CARE PLACEMENTS,Revenue,21/10/2014,"1,489.60",Social Care & Inclusion
WC49-0405,ALPHA HEALTH CARE LTD,Third Party Payments,Private Contractor Fees,73373-RESIDENTIAL & NURSING CARE PLACEMENTS,Revenue,21/10/2014,"1,489.60",Social Care & Inclusion
WC49-0406,ALPHA HEALTH CARE LTD,Third Party Payments,Private Contractor Fees,73373-RESIDENTIAL & NURSING CARE PLACEMENTS,Revenue,21/10/2014,"1,489.60",Social Care & Inclusion
WC49-0407,ALPHA HEALTH CARE LTD,Third Party Payments,Private Contractor Fees,73373-RESIDENTIAL & NURSING CARE PLACEMENTS,Revenue,21/10/2014,"1,489.60",Social Care & Inclusion
WC49-0408,ALPHA HEALTH CARE LTD,Third Party Payments,Private Contractor Fees,73373-RESIDENTIAL & NURSING CARE PLACEMENTS,Revenue,21/10/2014,"1,489.60",Social Care & Inclusion
WC49-0409,ALPHA HEALTH CARE LTD,Third Party Payments,Private Contractor Fees,73373-RESIDENTIAL & NURSING CARE PLACEMENTS,Revenue,21/10/2014,"1,489.60",Social Care & Inclusion
WC49-0410,ALPHA HEALTH CARE LTD,Third Party Payments,Private Contractor Fees,73373-RESIDENTIAL & NURSING CARE PLACEMENTS,Revenue,01/10/2014,"1,489.64",Social Care & Inclusion
WC49-0411,ALPHA HEALTH CARE LTD,Third Party Payments,Private Contractor Fees,73373-RESIDENTIAL & NURSING CARE PLACEMENTS,Revenue,21/10/2014,"1,489.64",Social Care & Inclusion
WC49-0412,ALPHA HEALTH CARE LTD,Third Party Payments,Private Contractor Fees,73373-RESIDENTIAL & NURSING CARE PLACEMENTS,Revenue,01/10/2014,"1,534.12",Social Care & Inclusion
WC49-0413,ALPHA HEALTH CARE LTD,Third Party Payments,Private Contractor Fees,73373-RESIDENTIAL & NURSING CARE PLACEMENTS,Revenue,01/10/2014,"1,534.12",Social Care & Inclusion
WC49-0414,ALPHA HEALTH CARE LTD,Third Party Payments,Private Contractor Fees,73373-RESIDENTIAL & NURSING CARE PLACEMENTS,Revenue,01/10/2014,"1,534.12",Social Care & Inclusion
WC49-0415,ALPHA HEALTH CARE LTD,Third Party Payments,Private Contractor Fees,73373-RESIDENTIAL & NURSING CARE PLACEMENTS,Revenue,01/10/2014,"1,534.12",Social Care & Inclusion
WC49-0416,ALPHA HEALTH CARE LTD,Third Party Payments,Private Contractor Fees,73373-RESIDENTIAL & NURSING CARE PLACEMENTS,Revenue,01/10/2014,"1,534.12",Social Care & Inclusion
WC49-0417,ALPHA HEALTH CARE LTD,Third Party Payments,Private Contractor Fees,73373-RESIDENTIAL & NURSING CARE PLACEMENTS,Revenue,01/10/2014,"1,534.12",Social Care & Inclusion
WC49-0418,ALPHA HEALTH CARE LTD,Third Party Payments,Private Contractor Fees,73373-RESIDENTIAL & NURSING CARE PLACEMENTS,Revenue,21/10/2014,"1,534.12",Social Care & Inclusion
WC49-0419,ALPHA HEALTH CARE LTD,Third Party Payments,Private Contractor Fees,73373-RESIDENTIAL & NURSING CARE PLACEMENTS,Revenue,21/10/2014,"1,534.12",Social Care & Inclusion
WC49-0420,ALPHA HEALTH CARE LTD,Third Party Payments,Private Contractor Fees,73373-RESIDENTIAL & NURSING CARE PLACEMENTS,Revenue,21/10/2014,"1,534.12",Social Care & Inclusion
WC49-0421,ALPHA HEALTH CARE LTD,Third Party Payments,Private Contractor Fees,73373-RESIDENTIAL & NURSING CARE PLACEMENTS,Revenue,21/10/2014,"1,534.12",Social Care & Inclusion
WC49-0422,ALPHA HEALTH CARE LTD,Third Party Payments,Private Contractor Fees,73373-RESIDENTIAL & NURSING CARE PLACEMENTS,Revenue,21/10/2014,"1,534.12",Social Care & Inclusion
WC49-0423,ALPHA HEALTH CARE LTD,Third Party Payments,Private Contractor Fees,73373-RESIDENTIAL & NURSING CARE PLACEMENTS,Revenue,21/10/2014,"1,534.12",Social Care & Inclusion
WC49-0424,ALPHA HEALTH CARE LTD,Third Party Payments,Private Contractor Fees,73373-RESIDENTIAL & NURSING CARE PLACEMENTS,Revenue,07/10/2014,"1,534.28",Social Care & Inclusion
WC49-0425,ALPHA HEALTH CARE LTD,Third Party Payments,Private Contractor Fees,73373-RESIDENTIAL & NURSING CARE PLACEMENTS,Revenue,21/10/2014,"1,534.28",Social Care & Inclusion
WC49-0426,ALPHA HEALTH CARE LTD,Third Party Payments,Private Contractor Fees,73373-RESIDENTIAL & NURSING CARE PLACEMENTS,Revenue,01/10/2014,"2,008.20",Social Care & Inclusion
WC49-0427,ALPHA HEALTH CARE LTD,Third Party Payments,Private Contractor Fees,73373-RESIDENTIAL & NURSING CARE PLACEMENTS,Revenue,21/10/2014,"2,008.20",Social Care & Inclusion
WC49-0428,ALPHA HEALTH CARE LTD,Third Party Payments,Private Contractor Fees,73373-RESIDENTIAL & NURSING CARE PLACEMENTS,Revenue,01/10/2014,"2,109.44",Social Care & Inclusion
WC49-0429,ALPHA HEALTH CARE LTD,Third Party Payments,Private Contractor Fees,73373-RESIDENTIAL & NURSING CARE PLACEMENTS,Revenue,21/10/2014,"2,109.44",Social Care & Inclusion
WC49-0430,ALPHA HEALTH CARE LTD,Third Party Payments,Private Contractor Fees,73373-RESIDENTIAL & NURSING CARE PLACEMENTS,Revenue,01/10/2014,"5,426.72",Social Care & Inclusion
WC49-0431,ALPHA HEALTH CARE LTD,Third Party Payments,Private Contractor Fees,73373-RESIDENTIAL & NURSING CARE PLACEMENTS,Revenue,21/10/2014,"5,426.72",Social Care & Inclusion
WC49-0432,ALPHA HEALTH CARE LTD,Third Party Payments,Private Contractor Fees,73373-RESIDENTIAL & NURSING CARE PLACEMENTS,Revenue,01/10/2014,"5,600.00",Social Care & Inclusion
WC49-0433,ALPHA HEALTH CARE LTD,Third Party Payments,Private Contractor Fees,73373-RESIDENTIAL & NURSING CARE PLACEMENTS,Revenue,21/10/2014,"5,600.00",Social Care & Inclusion
WC49-0434,ALPHABIOLABS,Transfer Payments,Transfer Payments,76010-ACCOMMODATION AND RELATED COSTS-ASSISTANCE TO S/S CLIENTS,Revenue,29/10/2014,485.00,Childrens
WC49-0435,ALTODIGITAL NETWORKS LTD,Supplies & Services,"Equip,Furniture & Materials",60006-NEW-FURNITURE & EQUIPMENT,Revenue,13/10/2014,189.78,Childrens
WC49-0436,ALTODIGITAL NETWORKS LTD,Supplies & Services,"Equip,Furniture & Materials",60009-LEASING/HIRE/RENTAL-EQUIPMENT,Revenue,28/10/2014,253.56,Resources
WC49-0437,ALTODIGITAL NETWORKS LTD,Central,Internal Recharges,82012-PRINT & DESIGN CHARGES-INTERNAL,Revenue,03/10/2014,273.91,Childrens
WC49-0438,ALTODIGITAL NETWORKS LTD,Central,Internal Recharges,82012-PRINT & DESIGN CHARGES-INTERNAL,Revenue,23/10/2014,274.07,Childrens
WC49-0439,ALTODIGITAL NETWORKS LTD,Central,Internal Recharges,82012-PRINT & DESIGN CHARGES-INTERNAL,Revenue,23/10/2014,294.45,Childrens
WC49-0440,ALTODIGITAL NETWORKS LTD,Supplies & Services,"Equip,Furniture & Materials",60009-LEASING/HIRE/RENTAL-EQUIPMENT,Revenue,13/10/2014,339.78,Childrens
WC49-0441,ALTODIGITAL NETWORKS LTD,Supplies & Services,"Equip,Furniture & Materials",60009-LEASING/HIRE/RENTAL-EQUIPMENT,Revenue,02/10/2014,444.47,Social Care & Inclusion
WC49-0442,ALTODIGITAL NETWORKS LTD,Supplies & Services,"Equip,Furniture & Materials",60009-LEASING/HIRE/RENTAL-EQUIPMENT,Revenue,28/10/2014,532.05,Resources
WC49-0443,ALTODIGITAL NETWORKS LTD,Supplies & Services,"Equip,Furniture & Materials",60009-LEASING/HIRE/RENTAL-EQUIPMENT,Revenue,13/10/2014,535.86,Resources
WC49-0444,ALTODIGITAL NETWORKS LTD,Supplies & Services,"Equip,Furniture & Materials",60009-LEASING/HIRE/RENTAL-EQUIPMENT,Revenue,01/10/2014,643.40,Resources
WC49-0445,ALTODIGITAL NETWORKS LTD,Central,Internal Recharges,82012-PRINT & DESIGN CHARGES-INTERNAL,Revenue,03/10/2014,"1,051.07",Childrens
WC49-0446,ALTODIGITAL NETWORKS LTD,Supplies & Services,"Equip,Furniture & Materials",60009-LEASING/HIRE/RENTAL-EQUIPMENT,Revenue,01/10/2014,"1,107.04",Childrens
WC49-0447,ALUMWELL DAY CARE,Supplies & Services,Other Supplies & Services,63120-CRECHE FACILITIES-SERVICES-FEES,Revenue,15/10/2014,400.00,Neighbourhood Services
WC49-0448,ALUMWELLIES NURSERY,Supplies & Services,Other Supplies & Services,63120-CRECHE FACILITIES-SERVICES-FEES,Revenue,15/10/2014,308.00,Neighbourhood Services
WC49-0449,ALUMWELLIES NURSERY,Supplies & Services,Other Supplies & Services,63120-CRECHE FACILITIES-SERVICES-FEES,Revenue,15/10/2014,396.00,Neighbourhood Services
WC49-0450,REDACTED,Third Party Payments,Private Contractor Fees,74006-HOLIDAY/CHRISTMAS ALLOWANCE-FOSTER CARERS-OTH AGENCY PROVISION,Revenue,01/10/2014,453.20,Childrens
WC49-0451,REDACTED,Third Party Payments,Private Contractor Fees,74006-HOLIDAY/CHRISTMAS ALLOWANCE-FOSTER CARERS-OTH AGENCY PROVISION,Revenue,27/10/2014,453.20,Childrens
WC49-0452,REDACTED,Third Party Payments,Private Contractor Fees,74006-HOLIDAY/CHRISTMAS ALLOWANCE-FOSTER CARERS-OTH AGENCY PROVISION,Revenue,01/10/2014,"1,493.76",Childrens
WC49-0453,REDACTED,Third Party Payments,Private Contractor Fees,74006-HOLIDAY/CHRISTMAS ALLOWANCE-FOSTER CARERS-OTH AGENCY PROVISION,Revenue,27/10/2014,"1,493.76",Childrens
WC49-0454,REDACTED,Supplies & Services,Other Supplies & Services,62515-MISCELLANEOUS SUPPLIES,Revenue,13/10/2014,418.06,Childrens
WC49-0455,REDACTED,Third Party Payments,Private Contractor Fees,74006-HOLIDAY/CHRISTMAS ALLOWANCE-FOSTER CARERS-OTH AGENCY PROVISION,Revenue,13/10/2014,631.49,Childrens
WC49-0456,REDACTED,Transfer Payments,Transfer Payments,76422-DIRECT PAYMENTS TO SOCIAL SERVICES CLIENTS,Revenue,13/10/2014,654.51,Social Care & Inclusion
WC49-0457,REDACTED,Transfer Payments,Transfer Payments,76422-DIRECT PAYMENTS TO SOCIAL SERVICES CLIENTS,Revenue,13/10/2014,378.25,Childrens
WC49-0458,AMEY LG LIMITED,Supplies & Services,"Equip,Furniture & Materials",60008-MAINTENANCE-FURNITURE & EQUIPMENT,Revenue,07/10/2014,290.32,Social Care & Inclusion
WC49-0459,AMEY LG LIMITED,Third Party Payments,Private Contractor Fees,73025-PROFESSIONAL SERVICES-PRIV CONTRACTOR & OTHER AGENCIES,Revenue,14/10/2014,368.76,Neighbourhood Services
WC49-0460,AMEY LG LIMITED,Third Party Payments,Private Contractor Fees,73025-PROFESSIONAL SERVICES-PRIV CONTRACTOR & OTHER AGENCIES,Revenue,01/10/2014,368.99,Neighbourhood Services
WC49-0461,AMEY LG LIMITED,Supplies & Services,"Equip,Furniture & Materials",60009-LEASING/HIRE/RENTAL-EQUIPMENT,Revenue,27/10/2014,391.40,Resources
WC49-0462,AMEY LG LIMITED,Third Party Payments,Private Contractor Fees,73025-PROFESSIONAL SERVICES-PRIV CONTRACTOR & OTHER AGENCIES,Revenue,27/10/2014,458.95,Neighbourhood Services
WC49-0463,AMEY LG LIMITED,Supplies & Services,Other Supplies & Services,62515-MISCELLANEOUS SUPPLIES,Revenue,02/10/2014,639.74,Neighbourhood Services
WC49-0464,AMEY LG LIMITED,Third Party Payments,Private Contractor Fees,73025-PROFESSIONAL SERVICES-PRIV CONTRACTOR & OTHER AGENCIES,Revenue,27/10/2014,"9,610.41",Neighbourhood Services
WC49-0465,AMG NURSING CARE SERVICES,Supplies & Services,Services,63000-PROFESSIONAL FEES AND SERVICES,Revenue,03/10/2014,258.06,Childrens
WC49-0466,AMG NURSING CARE SERVICES,Supplies & Services,Services,63000-PROFESSIONAL FEES AND SERVICES,Revenue,13/10/2014,"1,451.84",Childrens
WC49-0467,AMG NURSING CARE SERVICES,Supplies & Services,Services,63000-PROFESSIONAL FEES AND SERVICES,Revenue,10/10/2014,"1,817.94",Childrens
WC49-0468,AMG NURSING CARE SERVICES,Supplies & Services,Services,63000-PROFESSIONAL FEES AND SERVICES,Revenue,01/10/2014,"2,035.28",Childrens
WC49-0469,AMG NURSING CARE SERVICES,Supplies & Services,Services,63000-PROFESSIONAL FEES AND SERVICES,Revenue,17/10/2014,"2,229.76",Childrens
WC49-0470,AMG NURSING CARE SERVICES,Supplies & Services,Services,63000-PROFESSIONAL FEES AND SERVICES,Revenue,24/10/2014,"2,229.76",Childrens
WC49-0471,AMG NURSING CARE SERVICES,Supplies & Services,Services,63000-PROFESSIONAL FEES AND SERVICES,Revenue,03/10/2014,"2,424.24",Childrens
WC49-0472,AMG NURSING CARE SERVICES,Third Party Payments,Private Contractor Fees,73374-SUPPORTED & OTHER ACCOMMODATION,Revenue,08/10/2014,"3,484.80",Social Care & Inclusion
WC49-0473,AMG NURSING CARE SERVICES,Third Party Payments,Private Contractor Fees,73374-SUPPORTED & OTHER ACCOMMODATION,Revenue,14/10/2014,"3,484.80",Social Care & Inclusion
WC49-0474,AMG NURSING CARE SERVICES,Third Party Payments,Private Contractor Fees,73374-SUPPORTED & OTHER ACCOMMODATION,Revenue,10/10/2014,"3,509.56",Social Care & Inclusion
WC49-0475,AMG NURSING CARE SERVICES,Third Party Payments,Private Contractor Fees,73374-SUPPORTED & OTHER ACCOMMODATION,Revenue,14/10/2014,"6,648.96",Social Care & Inclusion
WC49-0476,AMG NURSING CARE SERVICES,Third Party Payments,Private Contractor Fees,73372-DOMICILIARY CARE,Revenue,08/10/2014,"6,779.25",Social Care & Inclusion
WC49-0477,REDACTED,Transfer Payments,Transfer Payments,76422-DIRECT PAYMENTS TO SOCIAL SERVICES CLIENTS,Revenue,13/10/2014,"1,485.40",Social Care & Inclusion
WC49-0478,AMUSEMENT EQUIPMENT,Supplies & Services,Other Supplies & Services,62523-EVENTS,Revenue,02/10/2014,"1,000.00",Neighbourhood Services
WC49-0479,REDACTED,Transfer Payments,Transfer Payments,76422-DIRECT PAYMENTS TO SOCIAL SERVICES CLIENTS,Revenue,13/10/2014,891.24,Social Care & Inclusion
WC49-0480,REDACTED,Third Party Payments,Private Contractor Fees,74006-HOLIDAY/CHRISTMAS ALLOWANCE-FOSTER CARERS-OTH AGENCY PROVISION,Revenue,01/10/2014,417.56,Childrens
WC49-0481,REDACTED,Third Party Payments,Private Contractor Fees,74006-HOLIDAY/CHRISTMAS ALLOWANCE-FOSTER CARERS-OTH AGENCY PROVISION,Revenue,27/10/2014,417.56,Childrens
WC49-0482,REDACTED,Transfer Payments,Transfer Payments,76422-DIRECT PAYMENTS TO SOCIAL SERVICES CLIENTS,Revenue,13/10/2014,569.51,Social Care & Inclusion
WC49-0483,REDACTED,Supplies & Services,Other Supplies & Services,62515-MISCELLANEOUS SUPPLIES,Revenue,13/10/2014,914.24,Childrens
WC49-0484,REDACTED,Third Party Payments,Private Contractor Fees,74006-HOLIDAY/CHRISTMAS ALLOWANCE-FOSTER CARERS-OTH AGENCY PROVISION,Revenue,13/10/2014,"1,278.80",Childrens
WC49-0485,REDACTED,Transfer Payments,Transfer Payments,76422-DIRECT PAYMENTS TO SOCIAL SERVICES CLIENTS,Revenue,13/10/2014,378.00,Social Care & Inclusion
WC49-0486,REDACTED,Third Party Payments,Private Contractor Fees,74006-HOLIDAY/CHRISTMAS ALLOWANCE-FOSTER CARERS-OTH AGENCY PROVISION,Revenue,13/10/2014,886.32,Childrens
WC49-0487,REDACTED,Supplies & Services,Other Supplies & Services,62515-MISCELLANEOUS SUPPLIES,Revenue,13/10/2014,896.24,Childrens
WC49-0488,ANDREWS ELECTRICAL LTD,Capital,Capital,01006-SITE WORKS MAIN CONTRACTORS,Capital,13/10/2014,"26,628.50",Childrens
WC49-0489,ANGEL COURT RESIDENTIAL CARE HOME,Third Party Payments,Private Contractor Fees,73373-RESIDENTIAL & NURSING CARE PLACEMENTS,Revenue,21/10/2014,602.69,Social Care & Inclusion
WC49-0490,ANGEL COURT RESIDENTIAL CARE HOME,Third Party Payments,Private Contractor Fees,73373-RESIDENTIAL & NURSING CARE PLACEMENTS,Revenue,07/10/2014,"1,643.70",Social Care & Inclusion
WC49-0491,ANGEL COURT RESIDENTIAL CARE HOME,Third Party Payments,Private Contractor Fees,73373-RESIDENTIAL & NURSING CARE PLACEMENTS,Revenue,21/10/2014,"1,643.70",Social Care & Inclusion
WC49-0492,ANGEL COURT RESIDENTIAL CARE HOME,Third Party Payments,Private Contractor Fees,73373-RESIDENTIAL & NURSING CARE PLACEMENTS,Revenue,15/10/2014,"1,698.49",Social Care & Inclusion
WC49-0493,ANGEL COURT RESIDENTIAL CARE HOME,Third Party Payments,Private Contractor Fees,73373-RESIDENTIAL & NURSING CARE PLACEMENTS,Revenue,15/10/2014,"1,698.49",Social Care & Inclusion
WC49-0494,ANGEL COURT RESIDENTIAL CARE HOME,Third Party Payments,Private Contractor Fees,73373-RESIDENTIAL & NURSING CARE PLACEMENTS,Revenue,21/10/2014,"1,698.49",Social Care & Inclusion
WC49-0495,ANGEL COURT RESIDENTIAL CARE HOME,Third Party Payments,Private Contractor Fees,73373-RESIDENTIAL & NURSING CARE PLACEMENTS,Revenue,15/10/2014,"1,857.25",Social Care & Inclusion
WC49-0496,ANGEL SOLUTIONS LTD,Supplies & Services,Communications & Computing,63800-COMPUTER EQUIPMENT AND SUPPLIES,Revenue,20/10/2014,"4,000.00",Childrens
WC49-0497,ANGEL SOLUTIONS LTD,Supplies & Services,Services,63102-CONSULTANTS FEES - CORPORATE,Revenue,21/10/2014,"11,728.80",Childrens
WC49-0498,REDACTED,Third Party Payments,Private Contractor Fees,74006-HOLIDAY/CHRISTMAS ALLOWANCE-FOSTER CARERS-OTH AGENCY PROVISION,Revenue,01/10/2014,"1,918.20",Childrens
WC49-0499,REDACTED,Third Party Payments,Private Contractor Fees,74006-HOLIDAY/CHRISTMAS ALLOWANCE-FOSTER CARERS-OTH AGENCY PROVISION,Revenue,27/10/2014,"1,918.20",Childrens
WC49-0500,REDACTED,Transfer Payments,Transfer Payments,76422-DIRECT PAYMENTS TO SOCIAL SERVICES CLIENTS,Revenue,13/10/2014,"1,704.16",Social Care & Inclusion
WC49-0501,REDACTED,Third Party Payments,Private Contractor Fees,74006-HOLIDAY/CHRISTMAS ALLOWANCE-FOSTER CARERS-OTH AGENCY PROVISION,Revenue,27/10/2014,796.00,Childrens
WC49-0502,ANGLIA STAIRLIFTS LTD,Capital,Capital,01045-PRIVATE GRANTS,Capital,06/10/2014,430.00,Resources
WC49-0503,ANGLIA STAIRLIFTS LTD,Capital,Capital,01006-SITE WORKS MAIN CONTRACTORS,Capital,06/10/2014,"3,795.00",Resources
WC49-0504,ANGLIA STAIRLIFTS LTD,Capital,Capital,01045-PRIVATE GRANTS,Capital,23/10/2014,"4,095.00",Resources
WC49-0505,ANGLIA STAIRLIFTS LTD,Capital,Capital,01045-PRIVATE GRANTS,Capital,06/10/2014,"4,155.00",Resources
WC49-0506,ANGLIA STAIRLIFTS LTD,Capital,Capital,01045-PRIVATE GRANTS,Capital,06/10/2014,"4,875.00",Resources
WC49-0507,ANGLIA STAIRLIFTS LTD,Capital,Capital,01006-SITE WORKS MAIN CONTRACTORS,Capital,28/10/2014,"5,145.00",Resources
WC49-0508,ANGLIA STAIRLIFTS LTD,Capital,Capital,01045-PRIVATE GRANTS,Capital,01/10/2014,"5,245.00",Resources
WC49-0509,ANGLIA STAIRLIFTS LTD,Capital,Capital,01006-SITE WORKS MAIN CONTRACTORS,Capital,06/10/2014,"5,275.00",Resources
WC49-0510,ANIMAL ENTERPRISES (UK) LTD,Supplies & Services,Other Supplies & Services,83900-CIVIC EVENTS-OTHER DEMOCRACY COSTS,Revenue,06/10/2014,344.10,Regeneration
WC49-0511,REDACTED,Supplies & Services,Other Supplies & Services,62515-MISCELLANEOUS SUPPLIES,Revenue,13/10/2014,825.96,Childrens
WC49-0512,REDACTED,Third Party Payments,Private Contractor Fees,74006-HOLIDAY/CHRISTMAS ALLOWANCE-FOSTER CARERS-OTH AGENCY PROVISION,Revenue,13/10/2014,"1,278.80",Childrens
WC49-0513,REDACTED,Transfer Payments,Transfer Payments,76422-DIRECT PAYMENTS TO SOCIAL SERVICES CLIENTS,Revenue,13/10/2014,318.00,Social Care & Inclusion
WC49-0514,REDACTED,Third Party Payments,Private Contractor Fees,73374-SUPPORTED & OTHER ACCOMMODATION,Revenue,03/10/2014,"1,416.61",Social Care & Inclusion
WC49-0515,REDACTED,Transfer Payments,Transfer Payments,76422-DIRECT PAYMENTS TO SOCIAL SERVICES CLIENTS,Revenue,13/10/2014,625.83,Social Care & Inclusion
WC49-0516,ANSON COURT RESIDENTIAL HOME,Third Party Payments,Private Contractor Fees,73373-RESIDENTIAL & NURSING CARE PLACEMENTS,Revenue,15/10/2014,"-1,314.96",Social Care & Inclusion
WC49-0517,ANSON COURT RESIDENTIAL HOME,Third Party Payments,Private Contractor Fees,73373-RESIDENTIAL & NURSING CARE PLACEMENTS,Revenue,21/10/2014,767.36,Social Care & Inclusion
WC49-0518,ANSON COURT RESIDENTIAL HOME,Third Party Payments,Private Contractor Fees,73373-RESIDENTIAL & NURSING CARE PLACEMENTS,Revenue,21/10/2014,"1,532.52",Social Care & Inclusion
WC49-0519,ANSON COURT RESIDENTIAL HOME,Third Party Payments,Private Contractor Fees,73373-RESIDENTIAL & NURSING CARE PLACEMENTS,Revenue,21/10/2014,"1,534.12",Social Care & Inclusion
WC49-0520,ANSON COURT RESIDENTIAL HOME,Third Party Payments,Private Contractor Fees,73373-RESIDENTIAL & NURSING CARE PLACEMENTS,Revenue,21/10/2014,"1,534.12",Social Care & Inclusion
WC49-0521,ANSON COURT RESIDENTIAL HOME,Third Party Payments,Private Contractor Fees,73373-RESIDENTIAL & NURSING CARE PLACEMENTS,Revenue,21/10/2014,"1,534.12",Social Care & Inclusion
WC49-0522,ANSON COURT RESIDENTIAL HOME,Third Party Payments,Private Contractor Fees,73373-RESIDENTIAL & NURSING CARE PLACEMENTS,Revenue,21/10/2014,"1,534.12",Social Care & Inclusion
WC49-0523,ANSON COURT RESIDENTIAL HOME,Third Party Payments,Private Contractor Fees,73373-RESIDENTIAL & NURSING CARE PLACEMENTS,Revenue,21/10/2014,"1,534.12",Social Care & Inclusion
WC49-0524,ANSON COURT RESIDENTIAL HOME,Third Party Payments,Private Contractor Fees,73373-RESIDENTIAL & NURSING CARE PLACEMENTS,Revenue,21/10/2014,"1,534.12",Social Care & Inclusion
WC49-0525,ANSON COURT RESIDENTIAL HOME,Third Party Payments,Private Contractor Fees,73373-RESIDENTIAL & NURSING CARE PLACEMENTS,Revenue,21/10/2014,"1,534.12",Social Care & Inclusion
WC49-0526,ANSON COURT RESIDENTIAL HOME,Third Party Payments,Private Contractor Fees,73373-RESIDENTIAL & NURSING CARE PLACEMENTS,Revenue,21/10/2014,"1,534.12",Social Care & Inclusion
WC49-0527,ANSON COURT RESIDENTIAL HOME,Third Party Payments,Private Contractor Fees,73373-RESIDENTIAL & NURSING CARE PLACEMENTS,Revenue,21/10/2014,"1,534.12",Social Care & Inclusion
WC49-0528,ANSON COURT RESIDENTIAL HOME,Third Party Payments,Private Contractor Fees,73373-RESIDENTIAL & NURSING CARE PLACEMENTS,Revenue,21/10/2014,"1,534.72",Social Care & Inclusion
WC49-0529,ANSON COURT RESIDENTIAL HOME,Third Party Payments,Private Contractor Fees,73373-RESIDENTIAL & NURSING CARE PLACEMENTS,Revenue,21/10/2014,"1,612.92",Social Care & Inclusion
WC49-0530,ANSON COURT RESIDENTIAL HOME,Third Party Payments,Private Contractor Fees,73373-RESIDENTIAL & NURSING CARE PLACEMENTS,Revenue,21/10/2014,"1,614.12",Social Care & Inclusion
WC49-0531,ANSON COURT RESIDENTIAL HOME,Third Party Payments,Private Contractor Fees,73373-RESIDENTIAL & NURSING CARE PLACEMENTS,Revenue,21/10/2014,"1,614.72",Social Care & Inclusion
WC49-0532,ANSON COURT RESIDENTIAL HOME,Third Party Payments,Private Contractor Fees,73373-RESIDENTIAL & NURSING CARE PLACEMENTS,Revenue,21/10/2014,"1,614.72",Social Care & Inclusion
WC49-0533,ANTALIS DOCUMENT SUPPLIES,Supplies & Services,"Equip,Furniture & Materials",60500-GENERAL MATERIALS,Revenue,27/10/2014,260.00,Resources
WC49-0534,ANTALIS DOCUMENT SUPPLIES,Supplies & Services,"Equip,Furniture & Materials",60500-GENERAL MATERIALS,Revenue,08/10/2014,500.00,Resources
WC49-0535,REDACTED,Third Party Payments,Private Contractor Fees,74006-HOLIDAY/CHRISTMAS ALLOWANCE-FOSTER CARERS-OTH AGENCY PROVISION,Revenue,01/10/2014,"1,364.56",Childrens
WC49-0536,REDACTED,Third Party Payments,Private Contractor Fees,74006-HOLIDAY/CHRISTMAS ALLOWANCE-FOSTER CARERS-OTH AGENCY PROVISION,Revenue,27/10/2014,"1,364.56",Childrens
WC49-0537,REDACTED,Third Party Payments,Private Contractor Fees,74006-HOLIDAY/CHRISTMAS ALLOWANCE-FOSTER CARERS-OTH AGENCY PROVISION,Revenue,01/10/2014,561.32,Childrens
WC49-0538,REDACTED,Third Party Payments,Private Contractor Fees,74006-HOLIDAY/CHRISTMAS ALLOWANCE-FOSTER CARERS-OTH AGENCY PROVISION,Revenue,27/10/2014,561.32,Childrens
WC49-0539,APCOA PARKING SERVICES (UK) LTD,Third Party Payments,Private Contractor Fees,73025-PROFESSIONAL SERVICES-PRIV CONTRACTOR & OTHER AGENCIES,Revenue,28/10/2014,"43,075.82",Neighbourhood Services
WC49-0540,APNA HOUSE LTD,Third Party Payments,Private Contractor Fees,73373-RESIDENTIAL & NURSING CARE PLACEMENTS,Revenue,28/10/2014,"5,464.00",Social Care & Inclusion
WC49-0541,APSE 001,Employees,Training,30030-EXTERNAL TRAINING,Revenue,13/10/2014,794.00,Neighbourhood Services
WC49-0542,APT CONTROLS LTD,Supplies & Services,"Equip,Furniture & Materials",60500-GENERAL MATERIALS,Revenue,01/10/2014,-953.00,Neighbourhood Services
WC49-0543,AQUATECH PRESSMAIN,Premises,Premises-Repairs & Maintenance,"40000-REPAIRS,ALTERATIONS & MAINTENANCE-PREM",Revenue,10/10/2014,"9,024.00",Regeneration
WC49-0544,ARBORETUM NURSING HOME.,Third Party Payments,Private Contractor Fees,73373-RESIDENTIAL & NURSING CARE PLACEMENTS,Revenue,01/10/2014,"-1,173.70",Social Care & Inclusion
WC49-0545,ARBORETUM NURSING HOME.,Third Party Payments,Private Contractor Fees,73373-RESIDENTIAL & NURSING CARE PLACEMENTS,Revenue,07/10/2014,"1,933.16",Social Care & Inclusion
WC49-0546,ARBORETUM NURSING HOME.,Third Party Payments,Private Contractor Fees,73373-RESIDENTIAL & NURSING CARE PLACEMENTS,Revenue,07/10/2014,"1,933.16",Social Care & Inclusion
WC49-0547,ARBORETUM NURSING HOME.,Third Party Payments,Private Contractor Fees,73373-RESIDENTIAL & NURSING CARE PLACEMENTS,Revenue,07/10/2014,"1,933.16",Social Care & Inclusion
WC49-0548,ARBORETUM NURSING HOME.,Third Party Payments,Private Contractor Fees,73373-RESIDENTIAL & NURSING CARE PLACEMENTS,Revenue,07/10/2014,"1,990.76",Social Care & Inclusion
WC49-0549,ARBORETUM NURSING HOME.,Third Party Payments,Private Contractor Fees,73373-RESIDENTIAL & NURSING CARE PLACEMENTS,Revenue,07/10/2014,"1,990.76",Social Care & Inclusion
WC49-0550,ARBORETUM NURSING HOME.,Third Party Payments,Private Contractor Fees,73373-RESIDENTIAL & NURSING CARE PLACEMENTS,Revenue,15/10/2014,"2,416.45",Social Care & Inclusion
WC49-0551,ARBORETUM NURSING HOME.,Third Party Payments,Private Contractor Fees,73373-RESIDENTIAL & NURSING CARE PLACEMENTS,Revenue,15/10/2014,"2,416.45",Social Care & Inclusion
WC49-0552,ARBORETUM NURSING HOME.,Third Party Payments,Private Contractor Fees,73373-RESIDENTIAL & NURSING CARE PLACEMENTS,Revenue,15/10/2014,"2,416.45",Social Care & Inclusion
WC49-0553,ARBORETUM NURSING HOME.,Third Party Payments,Private Contractor Fees,73373-RESIDENTIAL & NURSING CARE PLACEMENTS,Revenue,15/10/2014,"2,416.45",Social Care & Inclusion
WC49-0554,ARBORETUM NURSING HOME.,Third Party Payments,Private Contractor Fees,73373-RESIDENTIAL & NURSING CARE PLACEMENTS,Revenue,15/10/2014,"2,416.45",Social Care & Inclusion
WC49-0555,ARBORETUM NURSING HOME.,Third Party Payments,Private Contractor Fees,73373-RESIDENTIAL & NURSING CARE PLACEMENTS,Revenue,15/10/2014,"2,416.45",Social Care & Inclusion
WC49-0556,ARBORETUM NURSING HOME.,Third Party Payments,Private Contractor Fees,73373-RESIDENTIAL & NURSING CARE PLACEMENTS,Revenue,15/10/2014,"2,472.75",Social Care & Inclusion
WC49-0557,ARBORETUM NURSING HOME.,Third Party Payments,Private Contractor Fees,73373-RESIDENTIAL & NURSING CARE PLACEMENTS,Revenue,15/10/2014,"2,488.45",Social Care & Inclusion
WC49-0558,ARCANE DIRECT MARKETING,Supplies & Services,Other Supplies & Services,62511-DISTRIBUTION,Revenue,07/10/2014,305.33,Neighbourhood Services
WC49-0559,ARCANE DIRECT MARKETING,Supplies & Services,Other Supplies & Services,62511-DISTRIBUTION,Revenue,07/10/2014,952.51,Neighbourhood Services
WC49-0560,ARCHWAY TCS LTD,Supplies & Services,"Equip,Furniture & Materials",60537-VEHICLE WASH PLANT-MATERIALS,Revenue,21/10/2014,"1,047.50",Neighbourhood Services
WC49-0561,ARJOHUNTLEIGH UK,Supplies & Services,"Equip,Furniture & Materials",60007-REPAIR OF EQUIPMENT-EQUIPMENT,Revenue,06/10/2014,260.60,Neighbourhood Services
WC49-0562,ARJOHUNTLEIGH UK,Supplies & Services,"Equip,Furniture & Materials",60007-REPAIR OF EQUIPMENT-EQUIPMENT,Revenue,13/10/2014,707.35,Neighbourhood Services
WC49-0563,ASA AWARDS,Supplies & Services,"Equip,Furniture & Materials",60006-NEW-FURNITURE & EQUIPMENT,Revenue,29/10/2014,422.80,Neighbourhood Services
WC49-0564,ASCO EDUCATIONAL SUPPLIES LTD,Supplies & Services,"Equip,Furniture & Materials",60006-NEW-FURNITURE & EQUIPMENT,Revenue,02/10/2014,432.00,Childrens
WC49-0565,ASDA PHARMACY,Supplies & Services,Services,63000-PROFESSIONAL FEES AND SERVICES,Revenue,21/10/2014,322.50,Neighbourhood Services
WC49-0566,ASH GRANGE CARE HOME,Third Party Payments,Private Contractor Fees,73373-RESIDENTIAL & NURSING CARE PLACEMENTS,Revenue,07/10/2014,"-1,937.56",Social Care & Inclusion
WC49-0567,ASH GRANGE CARE HOME,Third Party Payments,Private Contractor Fees,73373-RESIDENTIAL & NURSING CARE PLACEMENTS,Revenue,28/10/2014,483.29,Social Care & Inclusion
WC49-0568,ASH GRANGE CARE HOME,Third Party Payments,Private Contractor Fees,73373-RESIDENTIAL & NURSING CARE PLACEMENTS,Revenue,28/10/2014,552.33,Social Care & Inclusion
WC49-0569,ASH GRANGE CARE HOME,Third Party Payments,Private Contractor Fees,73373-RESIDENTIAL & NURSING CARE PLACEMENTS,Revenue,21/10/2014,622.79,Social Care & Inclusion
WC49-0570,ASH GRANGE CARE HOME,Third Party Payments,Private Contractor Fees,73373-RESIDENTIAL & NURSING CARE PLACEMENTS,Revenue,07/10/2014,761.18,Social Care & Inclusion
WC49-0571,ASH GRANGE CARE HOME,Supplies & Services,Services,63000-PROFESSIONAL FEES AND SERVICES,Revenue,10/10/2014,948.00,Social Care & Inclusion
WC49-0572,ASH GRANGE CARE HOME,Third Party Payments,Private Contractor Fees,73373-RESIDENTIAL & NURSING CARE PLACEMENTS,Revenue,02/10/2014,"1,107.18",Social Care & Inclusion
WC49-0573,ASH GRANGE CARE HOME,Third Party Payments,Private Contractor Fees,73373-RESIDENTIAL & NURSING CARE PLACEMENTS,Revenue,21/10/2014,"1,303.93",Social Care & Inclusion
WC49-0574,ASH GRANGE CARE HOME,Third Party Payments,Private Contractor Fees,73373-RESIDENTIAL & NURSING CARE PLACEMENTS,Revenue,21/10/2014,"1,460.40",Social Care & Inclusion
WC49-0575,ASH GRANGE CARE HOME,Third Party Payments,Private Contractor Fees,73373-RESIDENTIAL & NURSING CARE PLACEMENTS,Revenue,21/10/2014,"1,460.40",Social Care & Inclusion
WC49-0576,ASH GRANGE CARE HOME,Third Party Payments,Private Contractor Fees,73373-RESIDENTIAL & NURSING CARE PLACEMENTS,Revenue,21/10/2014,"1,460.40",Social Care & Inclusion
WC49-0577,ASH GRANGE CARE HOME,Third Party Payments,Private Contractor Fees,73373-RESIDENTIAL & NURSING CARE PLACEMENTS,Revenue,02/10/2014,"1,933.16",Social Care & Inclusion
WC49-0578,ASH GRANGE CARE HOME,Third Party Payments,Private Contractor Fees,73373-RESIDENTIAL & NURSING CARE PLACEMENTS,Revenue,02/10/2014,"1,937.56",Social Care & Inclusion
WC49-0579,ASH GRANGE CARE HOME,Third Party Payments,Private Contractor Fees,73373-RESIDENTIAL & NURSING CARE PLACEMENTS,Revenue,02/10/2014,"1,937.56",Social Care & Inclusion
WC49-0580,ASH GRANGE CARE HOME,Third Party Payments,Private Contractor Fees,73373-RESIDENTIAL & NURSING CARE PLACEMENTS,Revenue,02/10/2014,"1,937.56",Social Care & Inclusion
WC49-0581,ASH GRANGE CARE HOME,Third Party Payments,Private Contractor Fees,73373-RESIDENTIAL & NURSING CARE PLACEMENTS,Revenue,07/10/2014,"1,937.56",Social Care & Inclusion
WC49-0582,ASH GRANGE CARE HOME,Third Party Payments,Private Contractor Fees,73373-RESIDENTIAL & NURSING CARE PLACEMENTS,Revenue,21/10/2014,"1,937.56",Social Care & Inclusion
WC49-0583,ASH GRANGE CARE HOME,Third Party Payments,Private Contractor Fees,73373-RESIDENTIAL & NURSING CARE PLACEMENTS,Revenue,21/10/2014,"1,937.56",Social Care & Inclusion
WC49-0584,ASH GRANGE CARE HOME,Third Party Payments,Private Contractor Fees,73373-RESIDENTIAL & NURSING CARE PLACEMENTS,Revenue,21/10/2014,"1,937.56",Social Care & Inclusion
WC49-0585,ASH GRANGE CARE HOME,Third Party Payments,Private Contractor Fees,73373-RESIDENTIAL & NURSING CARE PLACEMENTS,Revenue,21/10/2014,"1,937.56",Social Care & Inclusion
WC49-0586,ASH GRANGE CARE HOME,Third Party Payments,Private Contractor Fees,73373-RESIDENTIAL & NURSING CARE PLACEMENTS,Revenue,21/10/2014,"1,937.56",Social Care & Inclusion
WC49-0587,ASH GRANGE CARE HOME,Third Party Payments,Private Contractor Fees,73373-RESIDENTIAL & NURSING CARE PLACEMENTS,Revenue,21/10/2014,"1,937.56",Social Care & Inclusion
WC49-0588,ASH GRANGE CARE HOME,Third Party Payments,Private Contractor Fees,73373-RESIDENTIAL & NURSING CARE PLACEMENTS,Revenue,21/10/2014,"1,937.56",Social Care & Inclusion
WC49-0589,ASH GRANGE CARE HOME,Third Party Payments,Private Contractor Fees,73373-RESIDENTIAL & NURSING CARE PLACEMENTS,Revenue,21/10/2014,"1,937.56",Social Care & Inclusion
WC49-0590,ASH GRANGE CARE HOME,Third Party Payments,Private Contractor Fees,73373-RESIDENTIAL & NURSING CARE PLACEMENTS,Revenue,21/10/2014,"1,937.56",Social Care & Inclusion
WC49-0591,ASH GRANGE CARE HOME,Third Party Payments,Private Contractor Fees,73373-RESIDENTIAL & NURSING CARE PLACEMENTS,Revenue,21/10/2014,"1,937.56",Social Care & Inclusion
WC49-0592,ASH GRANGE CARE HOME,Third Party Payments,Private Contractor Fees,73373-RESIDENTIAL & NURSING CARE PLACEMENTS,Revenue,02/10/2014,"1,954.22",Social Care & Inclusion
WC49-0593,ASH GRANGE CARE HOME,Third Party Payments,Private Contractor Fees,73373-RESIDENTIAL & NURSING CARE PLACEMENTS,Revenue,21/10/2014,"2,012.64",Social Care & Inclusion
WC49-0594,ASH GRANGE CARE HOME,Third Party Payments,Private Contractor Fees,73373-RESIDENTIAL & NURSING CARE PLACEMENTS,Revenue,21/10/2014,"2,012.64",Social Care & Inclusion
WC49-0595,ASH GRANGE CARE HOME,Third Party Payments,Private Contractor Fees,73373-RESIDENTIAL & NURSING CARE PLACEMENTS,Revenue,21/10/2014,"2,070.60",Social Care & Inclusion
WC49-0596,ASH GRANGE CARE HOME,Third Party Payments,Private Contractor Fees,73373-RESIDENTIAL & NURSING CARE PLACEMENTS,Revenue,07/10/2014,"2,075.96",Social Care & Inclusion
WC49-0597,ASH GRANGE CARE HOME,Third Party Payments,Private Contractor Fees,73373-RESIDENTIAL & NURSING CARE PLACEMENTS,Revenue,21/10/2014,"2,294.91",Social Care & Inclusion
WC49-0598,ASH GRANGE CARE HOME,Third Party Payments,Private Contractor Fees,73373-RESIDENTIAL & NURSING CARE PLACEMENTS,Revenue,21/10/2014,"2,864.40",Social Care & Inclusion
WC49-0599,ASHBOURNE LODGE,Third Party Payments,Private Contractor Fees,73373-RESIDENTIAL & NURSING CARE PLACEMENTS,Revenue,01/10/2014,"1,974.42",Social Care & Inclusion
WC49-0600,ASHBOURNE LODGE,Third Party Payments,Private Contractor Fees,73373-RESIDENTIAL & NURSING CARE PLACEMENTS,Revenue,01/10/2014,"2,040.24",Social Care & Inclusion
WC49-0601,ASHBOURNE LODGE,Third Party Payments,Private Contractor Fees,73373-RESIDENTIAL & NURSING CARE PLACEMENTS,Revenue,07/10/2014,"2,040.24",Social Care & Inclusion
WC49-0602,ASHTON ENGINEERING CO LTD,Supplies & Services,"Equip,Furniture & Materials",60500-GENERAL MATERIALS,Revenue,29/10/2014,"1,790.00",Neighbourhood Services
WC49-0603,ASKEWS AND HOLTS LIBRARY SERVICES LTD,Supplies & Services,"Equip,Furniture & Materials",60501-LIBRARY BOOKS,Revenue,03/10/2014,250.11,Neighbourhood Services
WC49-0604,ASKEWS AND HOLTS LIBRARY SERVICES LTD,Supplies & Services,"Equip,Furniture & Materials",60501-LIBRARY BOOKS,Revenue,01/10/2014,253.71,Neighbourhood Services
WC49-0605,ASKEWS AND HOLTS LIBRARY SERVICES LTD,Supplies & Services,"Equip,Furniture & Materials",60501-LIBRARY BOOKS,Revenue,21/10/2014,254.39,Neighbourhood Services
WC49-0606,ASKEWS AND HOLTS LIBRARY SERVICES LTD,Supplies & Services,"Equip,Furniture & Materials",60501-LIBRARY BOOKS,Revenue,23/10/2014,259.55,Neighbourhood Services
WC49-0607,ASKEWS AND HOLTS LIBRARY SERVICES LTD,Supplies & Services,"Equip,Furniture & Materials",60501-LIBRARY BOOKS,Revenue,16/10/2014,262.80,Neighbourhood Services
WC49-0608,ASKEWS AND HOLTS LIBRARY SERVICES LTD,Supplies & Services,"Equip,Furniture & Materials",60501-LIBRARY BOOKS,Revenue,29/10/2014,267.38,Neighbourhood Services
WC49-0609,ASKEWS AND HOLTS LIBRARY SERVICES LTD,Supplies & Services,"Equip,Furniture & Materials",60501-LIBRARY BOOKS,Revenue,17/10/2014,270.80,Neighbourhood Services
WC49-0610,ASKEWS AND HOLTS LIBRARY SERVICES LTD,Supplies & Services,"Equip,Furniture & Materials",60501-LIBRARY BOOKS,Revenue,24/10/2014,272.01,Neighbourhood Services
WC49-0611,ASKEWS AND HOLTS LIBRARY SERVICES LTD,Supplies & Services,"Equip,Furniture & Materials",60501-LIBRARY BOOKS,Revenue,10/10/2014,274.30,Neighbourhood Services
WC49-0612,ASKEWS AND HOLTS LIBRARY SERVICES LTD,Supplies & Services,"Equip,Furniture & Materials",60501-LIBRARY BOOKS,Revenue,22/10/2014,276.27,Neighbourhood Services
WC49-0613,ASKEWS AND HOLTS LIBRARY SERVICES LTD,Supplies & Services,"Equip,Furniture & Materials",60501-LIBRARY BOOKS,Revenue,09/10/2014,282.47,Neighbourhood Services
WC49-0614,ASKEWS AND HOLTS LIBRARY SERVICES LTD,Supplies & Services,"Equip,Furniture & Materials",60501-LIBRARY BOOKS,Revenue,07/10/2014,306.88,Neighbourhood Services
WC49-0615,ASKEWS AND HOLTS LIBRARY SERVICES LTD,Supplies & Services,"Equip,Furniture & Materials",60501-LIBRARY BOOKS,Revenue,27/10/2014,315.22,Neighbourhood Services
WC49-0616,ASKEWS AND HOLTS LIBRARY SERVICES LTD,Supplies & Services,"Equip,Furniture & Materials",60501-LIBRARY BOOKS,Revenue,07/10/2014,328.31,Neighbourhood Services
WC49-0617,ASKEWS AND HOLTS LIBRARY SERVICES LTD,Supplies & Services,"Equip,Furniture & Materials",60501-LIBRARY BOOKS,Revenue,22/10/2014,365.30,Neighbourhood Services
WC49-0618,ASKEWS AND HOLTS LIBRARY SERVICES LTD,Supplies & Services,"Equip,Furniture & Materials",60501-LIBRARY BOOKS,Revenue,29/10/2014,365.58,Neighbourhood Services
WC49-0619,ASKEWS AND HOLTS LIBRARY SERVICES LTD,Supplies & Services,"Equip,Furniture & Materials",60501-LIBRARY BOOKS,Revenue,09/10/2014,369.02,Neighbourhood Services
WC49-0620,ASKEWS AND HOLTS LIBRARY SERVICES LTD,Supplies & Services,"Equip,Furniture & Materials",60501-LIBRARY BOOKS,Revenue,24/10/2014,382.97,Neighbourhood Services
WC49-0621,ASKEWS AND HOLTS LIBRARY SERVICES LTD,Supplies & Services,"Equip,Furniture & Materials",60501-LIBRARY BOOKS,Revenue,01/10/2014,481.86,Neighbourhood Services
WC49-0622,ASKEWS AND HOLTS LIBRARY SERVICES LTD,Supplies & Services,"Equip,Furniture & Materials",60501-LIBRARY BOOKS,Revenue,09/10/2014,521.88,Neighbourhood Services
WC49-0623,ASKEWS AND HOLTS LIBRARY SERVICES LTD,Supplies & Services,"Equip,Furniture & Materials",60501-LIBRARY BOOKS,Revenue,29/10/2014,535.88,Neighbourhood Services
WC49-0624,ASKEWS AND HOLTS LIBRARY SERVICES LTD,Supplies & Services,"Equip,Furniture & Materials",60501-LIBRARY BOOKS,Revenue,01/10/2014,549.11,Neighbourhood Services
WC49-0625,ASKEWS AND HOLTS LIBRARY SERVICES LTD,Supplies & Services,"Equip,Furniture & Materials",60501-LIBRARY BOOKS,Revenue,28/10/2014,643.41,Neighbourhood Services
WC49-0626,ASKEWS AND HOLTS LIBRARY SERVICES LTD,Supplies & Services,"Equip,Furniture & Materials",60501-LIBRARY BOOKS,Revenue,23/10/2014,661.58,Neighbourhood Services
WC49-0627,ASKEWS AND HOLTS LIBRARY SERVICES LTD,Supplies & Services,"Equip,Furniture & Materials",60501-LIBRARY BOOKS,Revenue,03/10/2014,704.88,Neighbourhood Services
WC49-0628,ASKEWS AND HOLTS LIBRARY SERVICES LTD,Supplies & Services,"Equip,Furniture & Materials",60501-LIBRARY BOOKS,Revenue,23/10/2014,800.79,Neighbourhood Services
WC49-0629,ASKEWS AND HOLTS LIBRARY SERVICES LTD,Supplies & Services,"Equip,Furniture & Materials",60501-LIBRARY BOOKS,Revenue,28/10/2014,836.05,Neighbourhood Services
WC49-0630,ASKEWS AND HOLTS LIBRARY SERVICES LTD,Supplies & Services,"Equip,Furniture & Materials",60501-LIBRARY BOOKS,Revenue,10/10/2014,867.05,Neighbourhood Services
WC49-0631,REDACTED,Transfer Payments,Transfer Payments,76422-DIRECT PAYMENTS TO SOCIAL SERVICES CLIENTS,Revenue,13/10/2014,493.00,Social Care & Inclusion
WC49-0632,ASN FIRST AID & HYGIENE LTD,Supplies & Services,"Equip,Furniture & Materials",61502-PROTECTIVE CLOTHING & UNIFORM,Revenue,01/10/2014,467.50,Social Care & Inclusion
WC49-0633,ASN FIRST AID & HYGIENE LTD,Supplies & Services,"Equip,Furniture & Materials",61502-PROTECTIVE CLOTHING & UNIFORM,Revenue,22/10/2014,467.50,Social Care & Inclusion
WC49-0634,A-STAT OFFICE TECHNOLOGY LTD,Supplies & Services,"Equip,Furniture & Materials",60006-NEW-FURNITURE & EQUIPMENT,Revenue,16/10/2014,335.41,Childrens
WC49-0635,ASTON MANOR ROAD TRANSPORT MUSEUM LTD (AMRTM LTD),Supplies & Services,Services,63000-PROFESSIONAL FEES AND SERVICES,Revenue,27/10/2014,500.00,Neighbourhood Services
WC49-0636,AUDIT COMMISSION,Supplies & Services,Services,63102-CONSULTANTS FEES - CORPORATE,Revenue,01/10/2014,"4,000.00",Resources
WC49-0637,AURORA GRAPHICS & DISPLAYS LTD,Supplies & Services,"Printing, Stationery & Office Exp",62008-OUTWORK-PRINT ROOM,Revenue,02/10/2014,413.92,Resources
WC49-0638,AURORA GRAPHICS & DISPLAYS LTD,Supplies & Services,"Printing, Stationery & Office Exp",62008-OUTWORK-PRINT ROOM,Revenue,27/10/2014,628.61,Resources
WC49-0639,AURORA GRAPHICS & DISPLAYS LTD,Supplies & Services,"Printing, Stationery & Office Exp",62008-OUTWORK-PRINT ROOM,Revenue,17/10/2014,689.00,Resources
WC49-0640,AURORA GRAPHICS & DISPLAYS LTD,Supplies & Services,"Printing, Stationery & Office Exp",62008-OUTWORK-PRINT ROOM,Revenue,17/10/2014,"1,079.70",Resources
WC49-0641,AUTISM WEST MIDLANDS,Third Party Payments,Private Contractor Fees,73373-RESIDENTIAL & NURSING CARE PLACEMENTS,Revenue,21/10/2014,"7,078.49",Social Care & Inclusion
WC49-0642,AUTISM WEST MIDLANDS 001,Third Party Payments,Private Contractor Fees,73373-RESIDENTIAL & NURSING CARE PLACEMENTS,Revenue,21/10/2014,"4,765.89",Social Care & Inclusion
WC49-0643,AVANTGARDE PHARMA LTD T/A AL-SHAFA PHARMACY,Supplies & Services,Services,63000-PROFESSIONAL FEES AND SERVICES,Revenue,27/10/2014,"1,636.90",Neighbourhood Services
WC49-0644,AVANTGARDE PHARMA LTD T/A AL-SHAFA PHARMACY,Supplies & Services,Services,63000-PROFESSIONAL FEES AND SERVICES,Revenue,27/10/2014,"2,839.00",Neighbourhood Services
WC49-0645,AXIELL ALM LIMITED,Supplies & Services,Communications & Computing,63820-RECHARGE FOR MAINTENANCE/APPLICATION COSTS-COMPUTER,Revenue,20/10/2014,"16,474.59",Resources
WC49-0646,AXIELL LIMITED,Supplies & Services,Communications & Computing,63800-COMPUTER EQUIPMENT AND SUPPLIES,Revenue,02/10/2014,"1,600.00",Neighbourhood Services
WC49-0647,AXIS EUROPE,Capital,Capital,01045-PRIVATE GRANTS,Capital,27/10/2014,"21,477.90",Resources
WC49-0648,REDACTED,Transfer Payments,Transfer Payments,76422-DIRECT PAYMENTS TO SOCIAL SERVICES CLIENTS,Revenue,13/10/2014,"2,024.00",Childrens
WC49-0649,REDACTED,Transfer Payments,Transfer Payments,76422-DIRECT PAYMENTS TO SOCIAL SERVICES CLIENTS,Revenue,13/10/2014,"2,652.00",Social Care & Inclusion
WC49-0650,REDACTED,Third Party Payments,Private Contractor Fees,74006-HOLIDAY/CHRISTMAS ALLOWANCE-FOSTER CARERS-OTH AGENCY PROVISION,Revenue,13/10/2014,852.86,Childrens
WC49-0651,REDACTED,Supplies & Services,Other Supplies & Services,62515-MISCELLANEOUS SUPPLIES,Revenue,13/10/2014,896.24,Childrens
WC49-0652,REDACTED,Supplies & Services,Other Supplies & Services,62515-MISCELLANEOUS SUPPLIES,Revenue,13/10/2014,"1,428.44",Childrens
WC49-0653,REDACTED,Third Party Payments,Private Contractor Fees,74006-HOLIDAY/CHRISTMAS ALLOWANCE-FOSTER CARERS-OTH AGENCY PROVISION,Revenue,13/10/2014,"1,885.36",Childrens
WC49-0654,B&Q WAREHOUSE PLC,Premises,Premises-Repairs & Maintenance,"40000-REPAIRS,ALTERATIONS & MAINTENANCE-PREM",Revenue,09/10/2014,741.85,Resources
WC49-0655,REDACTED,Transfer Payments,Transfer Payments,76422-DIRECT PAYMENTS TO SOCIAL SERVICES CLIENTS,Revenue,13/10/2014,863.20,Social Care & Inclusion
WC49-0656,BAKER ROSS LTD,Supplies & Services,"Equip,Furniture & Materials",60500-GENERAL MATERIALS,Revenue,02/10/2014,250.77,Childrens
WC49-0657,REDACTED,Transfer Payments,Transfer Payments,76422-DIRECT PAYMENTS TO SOCIAL SERVICES CLIENTS,Revenue,13/10/2014,"2,849.92",Social Care & Inclusion
WC49-0658,REDACTED,Transfer Payments,Transfer Payments,76422-DIRECT PAYMENTS TO SOCIAL SERVICES CLIENTS,Revenue,13/10/2014,620.00,Social Care & Inclusion
WC49-0659,REDACTED,Transfer Payments,Transfer Payments,76422-DIRECT PAYMENTS TO SOCIAL SERVICES CLIENTS,Revenue,13/10/2014,"1,140.04",Social Care & Inclusion
WC49-0660,REDACTED,Transfer Payments,Transfer Payments,76422-DIRECT PAYMENTS TO SOCIAL SERVICES CLIENTS,Revenue,13/10/2014,450.25,Social Care & Inclusion
WC49-0661,REDACTED,Transfer Payments,Transfer Payments,76422-DIRECT PAYMENTS TO SOCIAL SERVICES CLIENTS,Revenue,13/10/2014,"1,314.88",Social Care & Inclusion
WC49-0662,REDACTED,Transfer Payments,Transfer Payments,76422-DIRECT PAYMENTS TO SOCIAL SERVICES CLIENTS,Revenue,13/10/2014,"1,280.00",Social Care & Inclusion
WC49-0663,REDACTED,Transfer Payments,Transfer Payments,76422-DIRECT PAYMENTS TO SOCIAL SERVICES CLIENTS,Revenue,13/10/2014,718.00,Social Care & Inclusion
WC49-0664,REDACTED,Transfer Payments,Transfer Payments,76422-DIRECT PAYMENTS TO SOCIAL SERVICES CLIENTS,Revenue,13/10/2014,"1,232.52",Social Care & Inclusion
WC49-0665,REDACTED,Transfer Payments,Transfer Payments,76422-DIRECT PAYMENTS TO SOCIAL SERVICES CLIENTS,Revenue,13/10/2014,690.56,Social Care & Inclusion
WC49-0666,BARCHAM TREES PLC,Supplies & Services,"Equip,Furniture & Materials",60500-GENERAL MATERIALS,Revenue,28/10/2014,"3,013.20",Neighbourhood Services
WC49-0667,BARCHESTER HEALTHCARE#1,Third Party Payments,Private Contractor Fees,73373-RESIDENTIAL & NURSING CARE PLACEMENTS,Revenue,15/10/2014,"1,920.28",Social Care & Inclusion
WC49-0668,BARNARDOS SERVICES LTD,Employees,Training,30000-INTERNAL TRAINING,Revenue,14/10/2014,745.00,Childrens
WC49-0669,BARNARDOS SERVICES LTD,Third Party Payments,Private Contractor Fees,74037-INDEPENDENT FOSTER CARE-OTH AGENCY PROVISION,Revenue,09/10/2014,"4,627.86",Childrens
WC49-0670,BARONS COURT HOTEL,Third Party Payments,Private Contractor Fees,73374-SUPPORTED & OTHER ACCOMMODATION,Revenue,14/10/2014,682.50,Childrens
WC49-0671,BARONS COURT HOTEL,Third Party Payments,Private Contractor Fees,73374-SUPPORTED & OTHER ACCOMMODATION,Revenue,03/10/2014,"1,050.00",Childrens
WC49-0672,BEADEN POWERLEC LIMITED,Capital,Capital,01006-SITE WORKS MAIN CONTRACTORS,Capital,03/10/2014,744.90,Childrens
WC49-0673,BEADEN POWERLEC LIMITED,Capital,Capital,01006-SITE WORKS MAIN CONTRACTORS,Capital,15/10/2014,"34,559.86",Childrens
WC49-0674,BEADEN POWERLEC LIMITED,Capital,Capital,01006-SITE WORKS MAIN CONTRACTORS,Capital,24/10/2014,"78,297.81",Childrens
WC49-0675,REDACTED,Transfer Payments,Transfer Payments,74505-SCHOOL UNIFORM/INITIAL TRAINING ALLOWANCE-FOSTER CARERS,Revenue,20/10/2014,350.00,Childrens
WC49-0676,REDACTED,Supplies & Services,Other Supplies & Services,62515-MISCELLANEOUS SUPPLIES,Revenue,13/10/2014,"1,528.21",Childrens
WC49-0677,REDACTED,Third Party Payments,Private Contractor Fees,74006-HOLIDAY/CHRISTMAS ALLOWANCE-FOSTER CARERS-OTH AGENCY PROVISION,Revenue,13/10/2014,"2,121.47",Childrens
WC49-0678,REDACTED,Transfer Payments,Transfer Payments,76422-DIRECT PAYMENTS TO SOCIAL SERVICES CLIENTS,Revenue,13/10/2014,641.76,Social Care & Inclusion
WC49-0679,REDACTED,Supplies & Services,Other Supplies & Services,62515-MISCELLANEOUS SUPPLIES,Revenue,13/10/2014,350.40,Childrens
WC49-0680,REDACTED,Third Party Payments,Private Contractor Fees,74006-HOLIDAY/CHRISTMAS ALLOWANCE-FOSTER CARERS-OTH AGENCY PROVISION,Revenue,13/10/2014,547.37,Childrens
WC49-0681,BELLEVUE COURT CARE HOME,Third Party Payments,Private Contractor Fees,73373-RESIDENTIAL & NURSING CARE PLACEMENTS,Revenue,28/10/2014,"1,486.96",Social Care & Inclusion
WC49-0682,BELLEVUE COURT CARE HOME,Third Party Payments,Private Contractor Fees,73373-RESIDENTIAL & NURSING CARE PLACEMENTS,Revenue,28/10/2014,"1,494.00",Social Care & Inclusion
WC49-0683,BELLEVUE COURT CARE HOME,Third Party Payments,Private Contractor Fees,73373-RESIDENTIAL & NURSING CARE PLACEMENTS,Revenue,28/10/2014,"1,530.16",Social Care & Inclusion
WC49-0684,BEMROSEBOOTH LTD,Supplies & Services,"Printing, Stationery & Office Exp",62001-STATIONERY & GENERAL SUPPLIES-OFFICE EXP,Revenue,03/10/2014,"1,170.00",Neighbourhood Services
WC49-0685,REDACTED,Transfer Payments,Transfer Payments,76422-DIRECT PAYMENTS TO SOCIAL SERVICES CLIENTS,Revenue,13/10/2014,"2,205.00",Social Care & Inclusion
WC49-0686,BENNIMAN CONSTRUCTION GROUP,Premises,Premises-Repairs & Maintenance,"40000-REPAIRS,ALTERATIONS & MAINTENANCE-PREM",Revenue,01/10/2014,"35,000.00",Regeneration
WC49-0687,BENNIMAN CONSTRUCTION GROUP,Premises,Premises-Repairs & Maintenance,"40000-REPAIRS,ALTERATIONS & MAINTENANCE-PREM",Revenue,28/10/2014,"65,000.00",Regeneration
WC49-0688,BENTLEY COURT PRIORY,Third Party Payments,Private Contractor Fees,73373-RESIDENTIAL & NURSING CARE PLACEMENTS,Revenue,07/10/2014,"1,120.50",Social Care & Inclusion
WC49-0689,BENTLEY COURT PRIORY,Third Party Payments,Private Contractor Fees,73373-RESIDENTIAL & NURSING CARE PLACEMENTS,Revenue,15/10/2014,"1,654.07",Social Care & Inclusion
WC49-0690,BENTLEY COURT PRIORY,Third Party Payments,Private Contractor Fees,73373-RESIDENTIAL & NURSING CARE PLACEMENTS,Revenue,07/10/2014,"2,071.24",Social Care & Inclusion
WC49-0691,BENTLEY WEST CHILDRENS CENTRE,Employees,Other Staff Costs,32000-MISC FEES AND EXPENSES,Revenue,20/10/2014,710.00,Childrens
WC49-0692,BENTLEY WEST J M I,Supplies & Services,Services,63000-PROFESSIONAL FEES AND SERVICES,Revenue,17/10/2014,400.00,Childrens
WC49-0693,REDACTED,Transfer Payments,Transfer Payments,76422-DIRECT PAYMENTS TO SOCIAL SERVICES CLIENTS,Revenue,13/10/2014,424.56,Social Care & Inclusion
WC49-0694,BERTRAM TRADING LTD T/A BERTRAM LIBRARY SERVICES),Supplies & Services,"Equip,Furniture & Materials",60501-LIBRARY BOOKS,Revenue,03/10/2014,293.44,Neighbourhood Services
WC49-0695,REDACTED,Transfer Payments,Transfer Payments,76422-DIRECT PAYMENTS TO SOCIAL SERVICES CLIENTS,Revenue,13/10/2014,912.00,Social Care & Inclusion
WC49-0696,REDACTED,Third Party Payments,Private Contractor Fees,74006-HOLIDAY/CHRISTMAS ALLOWANCE-FOSTER CARERS-OTH AGENCY PROVISION,Revenue,13/10/2014,360.84,Childrens
WC49-0697,REDACTED,Supplies & Services,Other Supplies & Services,62515-MISCELLANEOUS SUPPLIES,Revenue,13/10/2014,"2,138.16",Childrens
WC49-0698,REDACTED,Transfer Payments,Transfer Payments,76422-DIRECT PAYMENTS TO SOCIAL SERVICES CLIENTS,Revenue,13/10/2014,968.00,Social Care & Inclusion
WC49-0699,BESCOT LODGE,Third Party Payments,Private Contractor Fees,73373-RESIDENTIAL & NURSING CARE PLACEMENTS,Revenue,01/10/2014,602.69,Social Care & Inclusion
WC49-0700,BESCOT LODGE,Third Party Payments,Private Contractor Fees,73373-RESIDENTIAL & NURSING CARE PLACEMENTS,Revenue,01/10/2014,"1,095.80",Social Care & Inclusion
WC49-0701,BESCOT LODGE,Third Party Payments,Private Contractor Fees,73373-RESIDENTIAL & NURSING CARE PLACEMENTS,Revenue,15/10/2014,"1,616.87",Social Care & Inclusion
WC49-0702,BESCOT LODGE,Third Party Payments,Private Contractor Fees,73373-RESIDENTIAL & NURSING CARE PLACEMENTS,Revenue,15/10/2014,"1,616.96",Social Care & Inclusion
WC49-0703,BESCOT LODGE,Third Party Payments,Private Contractor Fees,73373-RESIDENTIAL & NURSING CARE PLACEMENTS,Revenue,15/10/2014,"1,698.36",Social Care & Inclusion
WC49-0704,BESCOT LODGE,Third Party Payments,Private Contractor Fees,73373-RESIDENTIAL & NURSING CARE PLACEMENTS,Revenue,15/10/2014,"1,698.36",Social Care & Inclusion
WC49-0705,BESCOT LODGE,Third Party Payments,Private Contractor Fees,73373-RESIDENTIAL & NURSING CARE PLACEMENTS,Revenue,15/10/2014,"1,698.40",Social Care & Inclusion
WC49-0706,BESCOT LODGE,Third Party Payments,Private Contractor Fees,73373-RESIDENTIAL & NURSING CARE PLACEMENTS,Revenue,15/10/2014,"1,698.45",Social Care & Inclusion
WC49-0707,BESCOT LODGE,Third Party Payments,Private Contractor Fees,73373-RESIDENTIAL & NURSING CARE PLACEMENTS,Revenue,15/10/2014,"1,698.49",Social Care & Inclusion
WC49-0708,BESCOT LODGE,Third Party Payments,Private Contractor Fees,73373-RESIDENTIAL & NURSING CARE PLACEMENTS,Revenue,15/10/2014,"1,698.49",Social Care & Inclusion
WC49-0709,BESCOT LODGE,Third Party Payments,Private Contractor Fees,73373-RESIDENTIAL & NURSING CARE PLACEMENTS,Revenue,15/10/2014,"1,698.49",Social Care & Inclusion
WC49-0710,BESCOT LODGE,Third Party Payments,Private Contractor Fees,73373-RESIDENTIAL & NURSING CARE PLACEMENTS,Revenue,15/10/2014,"1,698.58",Social Care & Inclusion
WC49-0711,BESCOT LODGE,Third Party Payments,Private Contractor Fees,73373-RESIDENTIAL & NURSING CARE PLACEMENTS,Revenue,15/10/2014,"1,716.60",Social Care & Inclusion
WC49-0712,BESCOT LODGE,Third Party Payments,Private Contractor Fees,73373-RESIDENTIAL & NURSING CARE PLACEMENTS,Revenue,15/10/2014,"1,716.69",Social Care & Inclusion
WC49-0713,BESCOT LODGE,Third Party Payments,Private Contractor Fees,73373-RESIDENTIAL & NURSING CARE PLACEMENTS,Revenue,15/10/2014,"1,716.78",Social Care & Inclusion
WC49-0714,BESCOT PROMOTIONS,Third Party Payments,Private Contractor Fees,73025-PROFESSIONAL SERVICES-PRIV CONTRACTOR & OTHER AGENCIES,Revenue,23/10/2014,"2,600.00",Regeneration
WC49-0715,BESCOT PROMOTIONS,Third Party Payments,Private Contractor Fees,73025-PROFESSIONAL SERVICES-PRIV CONTRACTOR & OTHER AGENCIES,Revenue,13/10/2014,"3,250.00",Regeneration
WC49-0716,BETHPHAGE.,Third Party Payments,Private Contractor Fees,73374-SUPPORTED & OTHER ACCOMMODATION,Revenue,09/10/2014,"1,638.00",Social Care & Inclusion
WC49-0717,REDACTED,Transfer Payments,Transfer Payments,76422-DIRECT PAYMENTS TO SOCIAL SERVICES CLIENTS,Revenue,13/10/2014,322.00,Social Care & Inclusion
WC49-0718,REDACTED,Transfer Payments,Transfer Payments,76422-DIRECT PAYMENTS TO SOCIAL SERVICES CLIENTS,Revenue,13/10/2014,949.52,Social Care & Inclusion
WC49-0719,REDACTED,Transfer Payments,Transfer Payments,76422-DIRECT PAYMENTS TO SOCIAL SERVICES CLIENTS,Revenue,13/10/2014,998.60,Social Care & Inclusion
WC49-0720,BFA SAFETY TRAINING,Employees,Training,30030-EXTERNAL TRAINING,Revenue,14/10/2014,495.00,Resources
WC49-0721,BFA SAFETY TRAINING,Employees,Training,30030-EXTERNAL TRAINING,Revenue,20/10/2014,595.00,Resources
WC49-0722,BIDD ENTERPRISES,Supplies & Services,"Equip,Furniture & Materials",60501-LIBRARY BOOKS,Revenue,01/10/2014,252.00,Neighbourhood Services
WC49-0723,BIFFA WASTE SERVICES LTD,Third Party Payments,Private Contractor Fees,73005-LANDFILL PTYS-PRIV CONTRACTOR FEES,Revenue,29/10/2014,"1,251.50",Neighbourhood Services
WC49-0724,BIFFA WASTE SERVICES LTD,Third Party Payments,Private Contractor Fees,73005-LANDFILL PTYS-PRIV CONTRACTOR FEES,Revenue,21/10/2014,"1,837.87",Neighbourhood Services
WC49-0725,BIFFA WASTE SERVICES LTD,Third Party Payments,Private Contractor Fees,73005-LANDFILL PTYS-PRIV CONTRACTOR FEES,Revenue,21/10/2014,"2,135.06",Neighbourhood Services
WC49-0726,BIFFA WASTE SERVICES LTD,Third Party Payments,Private Contractor Fees,73005-LANDFILL PTYS-PRIV CONTRACTOR FEES,Revenue,06/10/2014,"2,522.61",Neighbourhood Services
WC49-0727,BIFFA WASTE SERVICES LTD,Third Party Payments,Private Contractor Fees,73039-LANDFILL TAX-PRIV CONTRACTOR FEES,Revenue,29/10/2014,"7,755.20",Neighbourhood Services
WC49-0728,BIFFA WASTE SERVICES LTD,Third Party Payments,Private Contractor Fees,73039-LANDFILL TAX-PRIV CONTRACTOR FEES,Revenue,21/10/2014,"11,388.80",Neighbourhood Services
WC49-0729,BIFFA WASTE SERVICES LTD,Third Party Payments,Private Contractor Fees,73039-LANDFILL TAX-PRIV CONTRACTOR FEES,Revenue,21/10/2014,"13,230.40",Neighbourhood Services
WC49-0730,BIFFA WASTE SERVICES LTD,Third Party Payments,Private Contractor Fees,73039-LANDFILL TAX-PRIV CONTRACTOR FEES,Revenue,06/10/2014,"15,632.00",Neighbourhood Services
WC49-0731,REDACTED,Transfer Payments,Transfer Payments,76422-DIRECT PAYMENTS TO SOCIAL SERVICES CLIENTS,Revenue,13/10/2014,339.92,Childrens
WC49-0732,BIRCHILLS C OF E COMMUNITY ACADEMY,Transfer Payments,Transfer Payments,77300-ISB-FORMULA ALLOCATION,Revenue,02/10/2014,-300.00,Childrens
WC49-0733,BIRCHILLS C OF E COMMUNITY ACADEMY,Transfer Payments,Transfer Payments,77300-ISB-FORMULA ALLOCATION,Revenue,03/10/2014,"3,080.70",Childrens
WC49-0734,BIRMINGHAM & SOLIHULL MENTAL HEALTH TRUST,Supplies & Services,Services,63000-PROFESSIONAL FEES AND SERVICES,Revenue,15/10/2014,"4,590.00",Neighbourhood Services
WC49-0735,BIRSE CIVILS LTD,Capital,Capital,01001-OTHER CONSULTANTS FEES,Capital,06/10/2014,"18,910.41",Regeneration
WC49-0736,BLACK COUNTRY CONSORTIUM LIMITED,Supplies & Services,Services,63000-PROFESSIONAL FEES AND SERVICES,Revenue,24/10/2014,"5,188.05",Regeneration
WC49-0737,BLACK COUNTRY PARTNERSHIP NHS,Third Party Payments,Private Contractor Fees,73375-IN PATIENT BEDS,Revenue,20/10/2014,"63,750.00",Social Care & Inclusion
WC49-0738,BLACK COUNTRY PARTNERSHIP NHS,Third Party Payments,Joint Arrangements,71007-CONTRIBUTION TO PCT,Revenue,20/10/2014,"261,332.09",Social Care & Inclusion
WC49-0739,BLACK COUNTRY PARTNERSHIP NHS,Third Party Payments,Joint Arrangements,71007-CONTRIBUTION TO PCT,Revenue,20/10/2014,"261,332.09",Social Care & Inclusion
WC49-0740,BLACKHEATH PRIMARY SCHOOL,Transfer Payments,Transfer Payments,77300-ISB-FORMULA ALLOCATION,Revenue,17/10/2014,"1,268.80",Childrens
WC49-0741,BLACKWOOD SCHOOL,Supplies & Services,Other Supplies & Services,63020-CASH COLLECTION-SERVICES,Revenue,10/10/2014,296.89,Neighbourhood Services
WC49-0742,BLAKENALL HEATH JMI SCHOOL,Capital,Capital,01009-SITE WORKS - OTHER CONTRACTORS,Capital,01/10/2014,"2,325.40",Childrens
WC49-0743,BLAKENALL HEATH JMI SCHOOL,Transfer Payments,Transfer Payments,77300-ISB-FORMULA ALLOCATION,Revenue,20/10/2014,"86,631.80",Childrens
WC49-0744,BLOXWICH COMMUNITY PARTNERSHIP.,Supplies & Services,Other Supplies & Services,62515-MISCELLANEOUS SUPPLIES,Revenue,17/10/2014,749.97,Neighbourhood Services
WC49-0745,BLOXWICH COMMUNITY PARTNERSHIP.,Supplies & Services,Other Supplies & Services,63128-HIRE OF ROOM-SERVICES-FEES,Revenue,20/10/2014,"4,400.00",Social Care & Inclusion
WC49-0746,BLOXWICH RADIO TAXIS,Transport,Hire,52000-WITH DRIVER-HIRE OF VEHICLES,Revenue,07/10/2014,850.00,Childrens
WC49-0747,BLOXWICH RADIO TAXIS,Transport,Hire,52000-WITH DRIVER-HIRE OF VEHICLES,Revenue,08/10/2014,879.92,Childrens
WC49-0748,BMG RESEARCH,Supplies & Services,Services,63248-SURVEYS & PROF SERVICES-PAYMENT TO CONTRACTOR,Revenue,07/10/2014,"11,805.00",Resources
WC49-0749,BOLDMERE COURT CARE HOME,Third Party Payments,Private Contractor Fees,73373-RESIDENTIAL & NURSING CARE PLACEMENTS,Revenue,01/10/2014,"1,333.93",Social Care & Inclusion
WC49-0750,BOLDMERE COURT CARE HOME,Third Party Payments,Private Contractor Fees,73373-RESIDENTIAL & NURSING CARE PLACEMENTS,Revenue,01/10/2014,"5,976.00",Social Care & Inclusion
WC49-0751,BOLINDA UK LTD,Supplies & Services,"Equip,Furniture & Materials",60501-LIBRARY BOOKS,Revenue,07/10/2014,"1,171.70",Neighbourhood Services
WC49-0752,BOULTON TRAVEL LIMITED,Transport,Hire,52000-WITH DRIVER-HIRE OF VEHICLES,Revenue,07/10/2014,"2,260.00",Childrens
WC49-0753,BOULTON TRAVEL LIMITED,Transport,Hire,52000-WITH DRIVER-HIRE OF VEHICLES,Revenue,07/10/2014,"2,562.00",Childrens
WC49-0754,BOURNEMOUTH BOROUGH COUNCIL#1,Transfer Payments,Transfer Payments,74009-ADOPTION ALLOWANCE,Revenue,24/10/2014,"9,000.00",Childrens
WC49-0755,BOWDEN DERRA PARK,Third Party Payments,Private Contractor Fees,73373-RESIDENTIAL & NURSING CARE PLACEMENTS,Revenue,21/10/2014,"10,271.64",Social Care & Inclusion
WC49-0756,BRADLEY ENVIRONMENTAL,Capital,Capital,01006-SITE WORKS MAIN CONTRACTORS,Capital,02/10/2014,"-2,200.00",Childrens
WC49-0757,BRADLEY ENVIRONMENTAL,Premises,Premises-Repairs & Maintenance,"40000-REPAIRS,ALTERATIONS & MAINTENANCE-PREM",Revenue,06/10/2014,350.00,Regeneration
WC49-0758,BRADLEY ENVIRONMENTAL,Capital,Capital,01006-SITE WORKS MAIN CONTRACTORS,Capital,13/10/2014,465.50,Regeneration
WC49-0759,BRADLEY ENVIRONMENTAL,Premises,Premises-Repairs & Maintenance,"40000-REPAIRS,ALTERATIONS & MAINTENANCE-PREM",Revenue,08/10/2014,540.00,Regeneration
WC49-0760,BRADLEY ENVIRONMENTAL,Capital,Capital,01006-SITE WORKS MAIN CONTRACTORS,Capital,20/10/2014,"2,220.00",Childrens
WC49-0761,REDACTED,Transfer Payments,Transfer Payments,76422-DIRECT PAYMENTS TO SOCIAL SERVICES CLIENTS,Revenue,13/10/2014,460.32,Social Care & Inclusion
WC49-0762,BRELMAYNE LTD,Supplies & Services,"Equip,Furniture & Materials",60008-MAINTENANCE-FURNITURE & EQUIPMENT,Revenue,21/10/2014,34.47,Neighbourhood Services
WC49-0763,BRELMAYNE LTD,Supplies & Services,"Equip,Furniture & Materials",60008-MAINTENANCE-FURNITURE & EQUIPMENT,Revenue,21/10/2014,34.99,Neighbourhood Services
WC49-0764,BRELMAYNE LTD,Supplies & Services,"Equip,Furniture & Materials",60008-MAINTENANCE-FURNITURE & EQUIPMENT,Revenue,21/10/2014,45.96,Neighbourhood Services
WC49-0765,BRELMAYNE LTD,Supplies & Services,"Equip,Furniture & Materials",60008-MAINTENANCE-FURNITURE & EQUIPMENT,Revenue,21/10/2014,45.96,Neighbourhood Services
WC49-0766,BRELMAYNE LTD,Supplies & Services,"Equip,Furniture & Materials",60008-MAINTENANCE-FURNITURE & EQUIPMENT,Revenue,21/10/2014,48.31,Neighbourhood Services
WC49-0767,BRELMAYNE LTD,Supplies & Services,"Equip,Furniture & Materials",60008-MAINTENANCE-FURNITURE & EQUIPMENT,Revenue,21/10/2014,68.92,Neighbourhood Services
WC49-0768,BRELMAYNE LTD,Supplies & Services,"Equip,Furniture & Materials",60008-MAINTENANCE-FURNITURE & EQUIPMENT,Revenue,21/10/2014,83.09,Neighbourhood Services
WC49-0769,BRELMAYNE LTD,Supplies & Services,"Equip,Furniture & Materials",60008-MAINTENANCE-FURNITURE & EQUIPMENT,Revenue,21/10/2014,84.29,Neighbourhood Services
WC49-0770,BRELMAYNE LTD,Supplies & Services,"Equip,Furniture & Materials",60008-MAINTENANCE-FURNITURE & EQUIPMENT,Revenue,21/10/2014,89.05,Neighbourhood Services
WC49-0771,BRELMAYNE LTD,Supplies & Services,"Equip,Furniture & Materials",60008-MAINTENANCE-FURNITURE & EQUIPMENT,Revenue,21/10/2014,91.92,Neighbourhood Services
WC49-0772,BRELMAYNE LTD,Supplies & Services,"Equip,Furniture & Materials",60008-MAINTENANCE-FURNITURE & EQUIPMENT,Revenue,21/10/2014,108.96,Neighbourhood Services
WC49-0773,BRELMAYNE LTD,Supplies & Services,"Equip,Furniture & Materials",60008-MAINTENANCE-FURNITURE & EQUIPMENT,Revenue,21/10/2014,110.01,Neighbourhood Services
WC49-0774,BRELMAYNE LTD,Supplies & Services,"Equip,Furniture & Materials",60008-MAINTENANCE-FURNITURE & EQUIPMENT,Revenue,21/10/2014,111.33,Neighbourhood Services
WC49-0775,BRELMAYNE LTD,Supplies & Services,"Equip,Furniture & Materials",60008-MAINTENANCE-FURNITURE & EQUIPMENT,Revenue,21/10/2014,139.66,Neighbourhood Services
WC49-0776,BRELMAYNE LTD,Supplies & Services,"Equip,Furniture & Materials",60008-MAINTENANCE-FURNITURE & EQUIPMENT,Revenue,21/10/2014,139.86,Neighbourhood Services
WC49-0777,BRELMAYNE LTD,Supplies & Services,"Equip,Furniture & Materials",60008-MAINTENANCE-FURNITURE & EQUIPMENT,Revenue,21/10/2014,181.90,Neighbourhood Services
WC49-0778,BRELMAYNE LTD,Supplies & Services,"Equip,Furniture & Materials",60008-MAINTENANCE-FURNITURE & EQUIPMENT,Revenue,17/10/2014,271.12,Neighbourhood Services
WC49-0779,BRELMAYNE LTD,Capital,Capital,01006-SITE WORKS MAIN CONTRACTORS,Capital,07/10/2014,293.80,Regeneration
WC49-0780,BRELMAYNE LTD,Supplies & Services,"Equip,Furniture & Materials",60008-MAINTENANCE-FURNITURE & EQUIPMENT,Revenue,21/10/2014,294.59,Neighbourhood Services
WC49-0781,BRELMAYNE LTD,Premises,Premises-Repairs & Maintenance,"40000-REPAIRS,ALTERATIONS & MAINTENANCE-PREM",Revenue,08/10/2014,308.16,Regeneration
WC49-0782,BRELMAYNE LTD,Supplies & Services,"Equip,Furniture & Materials",60008-MAINTENANCE-FURNITURE & EQUIPMENT,Revenue,21/10/2014,316.24,Neighbourhood Services
WC49-0783,BRELMAYNE LTD,Premises,Premises-Repairs & Maintenance,"40000-REPAIRS,ALTERATIONS & MAINTENANCE-PREM",Revenue,07/10/2014,348.89,Regeneration
WC49-0784,BRELMAYNE LTD,Premises,Premises-Repairs & Maintenance,"40000-REPAIRS,ALTERATIONS & MAINTENANCE-PREM",Revenue,08/10/2014,374.60,Regeneration
WC49-0785,BRELMAYNE LTD,Supplies & Services,"Equip,Furniture & Materials",60500-GENERAL MATERIALS,Revenue,28/10/2014,375.85,Neighbourhood Services
WC49-0786,BRELMAYNE LTD,Premises,Premises-Repairs & Maintenance,"40000-REPAIRS,ALTERATIONS & MAINTENANCE-PREM",Revenue,01/10/2014,386.87,Regeneration
WC49-0787,BRELMAYNE LTD,Third Party Payments,Private Contractor Fees,73025-PROFESSIONAL SERVICES-PRIV CONTRACTOR & OTHER AGENCIES,Revenue,06/10/2014,398.87,Regeneration
WC49-0788,BRELMAYNE LTD,Premises,Premises-Repairs & Maintenance,"40000-REPAIRS,ALTERATIONS & MAINTENANCE-PREM",Revenue,01/10/2014,477.00,Regeneration
WC49-0789,BRELMAYNE LTD,Supplies & Services,"Equip,Furniture & Materials",60008-MAINTENANCE-FURNITURE & EQUIPMENT,Revenue,21/10/2014,509.65,Neighbourhood Services
WC49-0790,BRELMAYNE LTD,Supplies & Services,"Equip,Furniture & Materials",60008-MAINTENANCE-FURNITURE & EQUIPMENT,Revenue,17/10/2014,523.72,Neighbourhood Services
WC49-0791,BRELMAYNE LTD,Capital,Capital,01006-SITE WORKS MAIN CONTRACTORS,Capital,03/10/2014,588.64,Regeneration
WC49-0792,BRELMAYNE LTD,Premises,Premises-Repairs & Maintenance,"40000-REPAIRS,ALTERATIONS & MAINTENANCE-PREM",Revenue,08/10/2014,599.23,Regeneration
WC49-0793,BRELMAYNE LTD,Premises,Premises-Repairs & Maintenance,"40000-REPAIRS,ALTERATIONS & MAINTENANCE-PREM",Revenue,30/10/2014,625.00,Regeneration
WC49-0794,BRELMAYNE LTD,Third Party Payments,Private Contractor Fees,73025-PROFESSIONAL SERVICES-PRIV CONTRACTOR & OTHER AGENCIES,Revenue,01/10/2014,683.53,Regeneration
WC49-0795,BRELMAYNE LTD,Supplies & Services,"Equip,Furniture & Materials",60008-MAINTENANCE-FURNITURE & EQUIPMENT,Revenue,17/10/2014,766.55,Neighbourhood Services
WC49-0796,BRELMAYNE LTD,Premises,Premises-Repairs & Maintenance,"40000-REPAIRS,ALTERATIONS & MAINTENANCE-PREM",Revenue,06/10/2014,767.29,Regeneration
WC49-0797,BRELMAYNE LTD,Supplies & Services,"Equip,Furniture & Materials",60008-MAINTENANCE-FURNITURE & EQUIPMENT,Revenue,20/10/2014,857.39,Neighbourhood Services
WC49-0798,BRELMAYNE LTD,Supplies & Services,"Equip,Furniture & Materials",60008-MAINTENANCE-FURNITURE & EQUIPMENT,Revenue,17/10/2014,928.87,Neighbourhood Services
WC49-0799,BRELMAYNE LTD,Premises,Premises-Repairs & Maintenance,"40000-REPAIRS,ALTERATIONS & MAINTENANCE-PREM",Revenue,01/10/2014,960.00,Regeneration
WC49-0800,BRELMAYNE LTD,Supplies & Services,"Equip,Furniture & Materials",60008-MAINTENANCE-FURNITURE & EQUIPMENT,Revenue,29/10/2014,970.46,Neighbourhood Services
WC49-0801,BRELMAYNE LTD,Supplies & Services,"Equip,Furniture & Materials",60008-MAINTENANCE-FURNITURE & EQUIPMENT,Revenue,24/10/2014,"1,072.72",Neighbourhood Services
WC49-0802,BRELMAYNE LTD,Supplies & Services,"Equip,Furniture & Materials",60008-MAINTENANCE-FURNITURE & EQUIPMENT,Revenue,24/10/2014,"1,115.99",Neighbourhood Services
WC49-0803,BRELMAYNE LTD,Supplies & Services,"Equip,Furniture & Materials",60006-NEW-FURNITURE & EQUIPMENT,Revenue,21/10/2014,"1,162.00",Neighbourhood Services
WC49-0804,BRELMAYNE LTD,Premises,Premises-Repairs & Maintenance,"40000-REPAIRS,ALTERATIONS & MAINTENANCE-PREM",Revenue,07/10/2014,"1,255.89",Regeneration
WC49-0805,BRELMAYNE LTD,Supplies & Services,Services,63000-PROFESSIONAL FEES AND SERVICES,Revenue,01/10/2014,"1,297.00",Neighbourhood Services
WC49-0806,BRELMAYNE LTD,Third Party Payments,Private Contractor Fees,73025-PROFESSIONAL SERVICES-PRIV CONTRACTOR & OTHER AGENCIES,Revenue,17/10/2014,"1,323.00",Regeneration
WC49-0807,BRELMAYNE LTD,Supplies & Services,"Equip,Furniture & Materials",60008-MAINTENANCE-FURNITURE & EQUIPMENT,Revenue,20/10/2014,"1,602.84",Neighbourhood Services
WC49-0808,BRELMAYNE LTD,Supplies & Services,"Equip,Furniture & Materials",60008-MAINTENANCE-FURNITURE & EQUIPMENT,Revenue,20/10/2014,"1,967.85",Neighbourhood Services
WC49-0809,BRELMAYNE LTD,Supplies & Services,"Equip,Furniture & Materials",60006-NEW-FURNITURE & EQUIPMENT,Revenue,16/10/2014,"2,327.60",Neighbourhood Services
WC49-0810,BRELMAYNE LTD,Supplies & Services,"Equip,Furniture & Materials",60006-NEW-FURNITURE & EQUIPMENT,Revenue,16/10/2014,"2,838.70",Neighbourhood Services
WC49-0811,BRELMAYNE LTD,Supplies & Services,Services,63000-PROFESSIONAL FEES AND SERVICES,Revenue,27/10/2014,"3,712.00",Neighbourhood Services
WC49-0812,BRELMAYNE LTD,Supplies & Services,Services,63000-PROFESSIONAL FEES AND SERVICES,Revenue,27/10/2014,"16,427.75",Neighbourhood Services
WC49-0813,REDACTED,Transfer Payments,Transfer Payments,76422-DIRECT PAYMENTS TO SOCIAL SERVICES CLIENTS,Revenue,13/10/2014,680.00,Social Care & Inclusion
WC49-0814,REDACTED,Transfer Payments,Transfer Payments,76422-DIRECT PAYMENTS TO SOCIAL SERVICES CLIENTS,Revenue,13/10/2014,440.00,Social Care & Inclusion
WC49-0815,REDACTED,Third Party Payments,Private Contractor Fees,74006-HOLIDAY/CHRISTMAS ALLOWANCE-FOSTER CARERS-OTH AGENCY PROVISION,Revenue,13/10/2014,"1,278.80",Childrens
WC49-0816,REDACTED,Supplies & Services,Other Supplies & Services,62515-MISCELLANEOUS SUPPLIES,Revenue,13/10/2014,"1,554.24",Childrens
WC49-0817,REDACTED,Transfer Payments,Transfer Payments,76422-DIRECT PAYMENTS TO SOCIAL SERVICES CLIENTS,Revenue,13/10/2014,544.00,Social Care & Inclusion
WC49-0818,REDACTED,Third Party Payments,Private Contractor Fees,73374-SUPPORTED & OTHER ACCOMMODATION,Revenue,03/10/2014,"2,935.24",Social Care & Inclusion
WC49-0819,REDACTED,Third Party Payments,Private Contractor Fees,73374-SUPPORTED & OTHER ACCOMMODATION,Revenue,23/10/2014,"2,935.24",Social Care & Inclusion
WC49-0820,REDACTED,Transfer Payments,Transfer Payments,76422-DIRECT PAYMENTS TO SOCIAL SERVICES CLIENTS,Revenue,13/10/2014,493.20,Social Care & Inclusion
WC49-0821,REDACTED,Transfer Payments,Transfer Payments,76422-DIRECT PAYMENTS TO SOCIAL SERVICES CLIENTS,Revenue,13/10/2014,"1,294.80",Social Care & Inclusion
WC49-0822,REDACTED,Transfer Payments,Transfer Payments,76422-DIRECT PAYMENTS TO SOCIAL SERVICES CLIENTS,Revenue,13/10/2014,517.92,Social Care & Inclusion
WC49-0823,BRIDGEALL LIBRARIES LTD,Supplies & Services,Subscriptions,64500-PUBLICATIONS/ORGANISATIONS-SUBSCRIPTIONS,Revenue,01/10/2014,"10,558.00",Neighbourhood Services
WC49-0824,BRIDGEWOOD HEALTH CARE LTD,Third Party Payments,Private Contractor Fees,73373-RESIDENTIAL & NURSING CARE PLACEMENTS,Revenue,07/10/2014,"5,058.44",Social Care & Inclusion
WC49-0825,REDACTED,Transfer Payments,Transfer Payments,76422-DIRECT PAYMENTS TO SOCIAL SERVICES CLIENTS,Revenue,13/10/2014,"1,039.79",Social Care & Inclusion
WC49-0826,BRISTOW & SUTOR,Supplies & Services,Services,63102-CONSULTANTS FEES - CORPORATE,Revenue,01/10/2014,560.42,Resources
WC49-0827,BRISTOW & SUTOR,Supplies & Services,Services,63102-CONSULTANTS FEES - CORPORATE,Revenue,13/10/2014,"1,470.54",Resources
WC49-0828,BRITISH ELECTRICAL COMPANY,Premises,Premises-Repairs & Maintenance,40501-EXTERNAL DECORATING,Revenue,15/10/2014,"1,260.00",Neighbourhood Services
WC49-0829,BRITISH GAS BUSINESS,Premises,Utilities,42000-GAS-ENERGY COSTS,Revenue,16/10/2014,421.70,Regeneration
WC49-0830,BRITISH GAS BUSINESS,Premises,Utilities,42000-GAS-ENERGY COSTS,Revenue,16/10/2014,673.89,Regeneration
WC49-0831,BRITISH GAS BUSINESS,Premises,Utilities,42000-GAS-ENERGY COSTS,Revenue,16/10/2014,765.89,Regeneration
WC49-0832,BRITISH GAS BUSINESS,Premises,Utilities,42000-GAS-ENERGY COSTS,Revenue,14/10/2014,"15,116.51",Regeneration
WC49-0833,BRITISH HGV TRAINING GROUP,Employees,Training,30030-EXTERNAL TRAINING,Revenue,14/10/2014,622.00,Neighbourhood Services
WC49-0834,BRITISH YOUTH COUNCIL,Supplies & Services,Services,63000-PROFESSIONAL FEES AND SERVICES,Revenue,06/10/2014,300.00,Childrens
WC49-0835,BROADOAK CARE,Third Party Payments,Private Contractor Fees,73373-RESIDENTIAL & NURSING CARE PLACEMENTS,Revenue,01/10/2014,273.95,Social Care & Inclusion
WC49-0836,BROADOAK CARE,Third Party Payments,Private Contractor Fees,73373-RESIDENTIAL & NURSING CARE PLACEMENTS,Revenue,01/10/2014,549.27,Social Care & Inclusion
WC49-0837,BROADOAK CARE,Third Party Payments,Private Contractor Fees,73373-RESIDENTIAL & NURSING CARE PLACEMENTS,Revenue,01/10/2014,720.87,Social Care & Inclusion
WC49-0838,BROADOAK CARE,Third Party Payments,Private Contractor Fees,73373-RESIDENTIAL & NURSING CARE PLACEMENTS,Revenue,01/10/2014,721.77,Social Care & Inclusion
WC49-0839,BROADOAK CARE,Third Party Payments,Private Contractor Fees,73373-RESIDENTIAL & NURSING CARE PLACEMENTS,Revenue,01/10/2014,736.02,Social Care & Inclusion
WC49-0840,BROADOAK CARE,Third Party Payments,Private Contractor Fees,73373-RESIDENTIAL & NURSING CARE PLACEMENTS,Revenue,01/10/2014,771.55,Social Care & Inclusion
WC49-0841,BROADOAK CARE,Third Party Payments,Private Contractor Fees,73373-RESIDENTIAL & NURSING CARE PLACEMENTS,Revenue,01/10/2014,775.41,Social Care & Inclusion
WC49-0842,BROADOAK CARE,Third Party Payments,Private Contractor Fees,73373-RESIDENTIAL & NURSING CARE PLACEMENTS,Revenue,01/10/2014,778.71,Social Care & Inclusion
WC49-0843,BROADOAK CARE,Third Party Payments,Private Contractor Fees,73373-RESIDENTIAL & NURSING CARE PLACEMENTS,Revenue,01/10/2014,786.06,Social Care & Inclusion
WC49-0844,BROADOAK CARE,Third Party Payments,Private Contractor Fees,73373-RESIDENTIAL & NURSING CARE PLACEMENTS,Revenue,01/10/2014,786.06,Social Care & Inclusion
WC49-0845,BROADOAK CARE,Third Party Payments,Private Contractor Fees,73373-RESIDENTIAL & NURSING CARE PLACEMENTS,Revenue,01/10/2014,786.06,Social Care & Inclusion
WC49-0846,BROADOAK CARE,Third Party Payments,Private Contractor Fees,73373-RESIDENTIAL & NURSING CARE PLACEMENTS,Revenue,01/10/2014,792.96,Social Care & Inclusion
WC49-0847,BROADOAK CARE,Third Party Payments,Private Contractor Fees,73373-RESIDENTIAL & NURSING CARE PLACEMENTS,Revenue,21/10/2014,821.85,Social Care & Inclusion
WC49-0848,BROADOAK CARE,Third Party Payments,Private Contractor Fees,73373-RESIDENTIAL & NURSING CARE PLACEMENTS,Revenue,01/10/2014,836.46,Social Care & Inclusion
WC49-0849,BROADOAK CARE,Third Party Payments,Private Contractor Fees,73373-RESIDENTIAL & NURSING CARE PLACEMENTS,Revenue,01/10/2014,838.86,Social Care & Inclusion
WC49-0850,BROADOAK CARE,Third Party Payments,Private Contractor Fees,73373-RESIDENTIAL & NURSING CARE PLACEMENTS,Revenue,01/10/2014,"1,150.56",Social Care & Inclusion
WC49-0851,BROADOAK CARE,Third Party Payments,Private Contractor Fees,73373-RESIDENTIAL & NURSING CARE PLACEMENTS,Revenue,01/10/2014,"1,150.56",Social Care & Inclusion
WC49-0852,BROADOAK CARE,Third Party Payments,Private Contractor Fees,73373-RESIDENTIAL & NURSING CARE PLACEMENTS,Revenue,01/10/2014,"1,150.56",Social Care & Inclusion
WC49-0853,BROADOAK CARE,Third Party Payments,Private Contractor Fees,73373-RESIDENTIAL & NURSING CARE PLACEMENTS,Revenue,01/10/2014,"1,150.56",Social Care & Inclusion
WC49-0854,BROADOAK CARE,Third Party Payments,Private Contractor Fees,73373-RESIDENTIAL & NURSING CARE PLACEMENTS,Revenue,01/10/2014,"1,150.56",Social Care & Inclusion
WC49-0855,BROADOAK CARE,Third Party Payments,Private Contractor Fees,73373-RESIDENTIAL & NURSING CARE PLACEMENTS,Revenue,01/10/2014,"1,150.56",Social Care & Inclusion
WC49-0856,BROADOAK CARE,Third Party Payments,Private Contractor Fees,73373-RESIDENTIAL & NURSING CARE PLACEMENTS,Revenue,01/10/2014,"1,150.59",Social Care & Inclusion
WC49-0857,BROADOAK CARE,Third Party Payments,Private Contractor Fees,73373-RESIDENTIAL & NURSING CARE PLACEMENTS,Revenue,15/10/2014,"1,458.16",Social Care & Inclusion
WC49-0858,BROADOAK CARE,Third Party Payments,Private Contractor Fees,73373-RESIDENTIAL & NURSING CARE PLACEMENTS,Revenue,15/10/2014,"1,458.16",Social Care & Inclusion
WC49-0859,BROADOAK CARE,Third Party Payments,Private Contractor Fees,73373-RESIDENTIAL & NURSING CARE PLACEMENTS,Revenue,15/10/2014,"1,458.16",Social Care & Inclusion
WC49-0860,BROADOAK CARE,Third Party Payments,Private Contractor Fees,73373-RESIDENTIAL & NURSING CARE PLACEMENTS,Revenue,15/10/2014,"1,534.08",Social Care & Inclusion
WC49-0861,BROADOAK CARE,Third Party Payments,Private Contractor Fees,73373-RESIDENTIAL & NURSING CARE PLACEMENTS,Revenue,15/10/2014,"1,534.08",Social Care & Inclusion
WC49-0862,BROADOAK CARE,Third Party Payments,Private Contractor Fees,73373-RESIDENTIAL & NURSING CARE PLACEMENTS,Revenue,15/10/2014,"1,534.08",Social Care & Inclusion
WC49-0863,BROADOAK CARE,Third Party Payments,Private Contractor Fees,73373-RESIDENTIAL & NURSING CARE PLACEMENTS,Revenue,15/10/2014,"1,534.08",Social Care & Inclusion
WC49-0864,BROADOAK CARE,Third Party Payments,Private Contractor Fees,73373-RESIDENTIAL & NURSING CARE PLACEMENTS,Revenue,15/10/2014,"1,534.08",Social Care & Inclusion
WC49-0865,BROADOAK CARE,Third Party Payments,Private Contractor Fees,73373-RESIDENTIAL & NURSING CARE PLACEMENTS,Revenue,15/10/2014,"1,534.08",Social Care & Inclusion
WC49-0866,BROADOAK CARE,Third Party Payments,Private Contractor Fees,73373-RESIDENTIAL & NURSING CARE PLACEMENTS,Revenue,15/10/2014,"1,534.08",Social Care & Inclusion
WC49-0867,BROADOAK CARE,Third Party Payments,Private Contractor Fees,73373-RESIDENTIAL & NURSING CARE PLACEMENTS,Revenue,15/10/2014,"1,534.08",Social Care & Inclusion
WC49-0868,BROADOAK CARE,Third Party Payments,Private Contractor Fees,73373-RESIDENTIAL & NURSING CARE PLACEMENTS,Revenue,15/10/2014,"1,534.08",Social Care & Inclusion
WC49-0869,BROADOAK CARE,Third Party Payments,Private Contractor Fees,73373-RESIDENTIAL & NURSING CARE PLACEMENTS,Revenue,15/10/2014,"1,534.08",Social Care & Inclusion
WC49-0870,BROADOAK CARE,Third Party Payments,Private Contractor Fees,73373-RESIDENTIAL & NURSING CARE PLACEMENTS,Revenue,15/10/2014,"1,534.08",Social Care & Inclusion
WC49-0871,BROADOAK CARE,Third Party Payments,Private Contractor Fees,73373-RESIDENTIAL & NURSING CARE PLACEMENTS,Revenue,15/10/2014,"1,534.08",Social Care & Inclusion
WC49-0872,BROADOAK CARE,Third Party Payments,Private Contractor Fees,73373-RESIDENTIAL & NURSING CARE PLACEMENTS,Revenue,15/10/2014,"1,534.08",Social Care & Inclusion
WC49-0873,BROADOAK CARE,Third Party Payments,Private Contractor Fees,73373-RESIDENTIAL & NURSING CARE PLACEMENTS,Revenue,15/10/2014,"1,534.08",Social Care & Inclusion
WC49-0874,BROADOAK CARE,Third Party Payments,Private Contractor Fees,73373-RESIDENTIAL & NURSING CARE PLACEMENTS,Revenue,15/10/2014,"1,534.08",Social Care & Inclusion
WC49-0875,BROADOAK CARE,Third Party Payments,Private Contractor Fees,73373-RESIDENTIAL & NURSING CARE PLACEMENTS,Revenue,15/10/2014,"1,534.08",Social Care & Inclusion
WC49-0876,BROADOAK CARE,Third Party Payments,Private Contractor Fees,73373-RESIDENTIAL & NURSING CARE PLACEMENTS,Revenue,01/10/2014,"1,534.12",Social Care & Inclusion
WC49-0877,BROADOAK CARE,Third Party Payments,Private Contractor Fees,73373-RESIDENTIAL & NURSING CARE PLACEMENTS,Revenue,15/10/2014,"1,534.12",Social Care & Inclusion
WC49-0878,BROADOAK CARE,Third Party Payments,Private Contractor Fees,73373-RESIDENTIAL & NURSING CARE PLACEMENTS,Revenue,15/10/2014,"1,534.22",Social Care & Inclusion
WC49-0879,BROADOAK CARE,Third Party Payments,Private Contractor Fees,73373-RESIDENTIAL & NURSING CARE PLACEMENTS,Revenue,01/10/2014,"3,068.16",Social Care & Inclusion
WC49-0880,BROADWAY LODGE,Third Party Payments,Private Contractor Fees,73373-RESIDENTIAL & NURSING CARE PLACEMENTS,Revenue,07/10/2014,"5,100.00",Social Care & Inclusion
WC49-0881,BROADWAY PHARMACY,Supplies & Services,Services,63000-PROFESSIONAL FEES AND SERVICES,Revenue,29/10/2014,88.50,Neighbourhood Services
WC49-0882,BROADWAY PHARMACY,Supplies & Services,Services,63000-PROFESSIONAL FEES AND SERVICES,Revenue,29/10/2014,157.50,Neighbourhood Services
WC49-0883,BROADWAY PHARMACY,Supplies & Services,Services,63000-PROFESSIONAL FEES AND SERVICES,Revenue,29/10/2014,295.19,Neighbourhood Services
WC49-0884,BROADWAY TRAVEL CONNECTIONS,Transport,Hire,52000-WITH DRIVER-HIRE OF VEHICLES,Revenue,24/10/2014,"1,596.00",Childrens
WC49-0885,BROADWAY TRAVEL CONNECTIONS,Transport,Hire,52000-WITH DRIVER-HIRE OF VEHICLES,Revenue,20/10/2014,"2,660.00",Childrens
WC49-0886,BROADWAY UNITED REFORMED CHURCH,Supplies & Services,Other Supplies & Services,63128-HIRE OF ROOM-SERVICES-FEES,Revenue,07/10/2014,350.00,Resources
WC49-0887,BROOK DESIGN HARDWARE LTD T/A BROOKVENT,Supplies & Services,"Equip,Furniture & Materials",60500-GENERAL MATERIALS,Revenue,28/10/2014,"10,368.27",Social Care & Inclusion
WC49-0888,BROOK STREET BUREAU PLC,Employees,Agency,34305-AGENCY STAFF-EMPLOYEES,Revenue,15/10/2014,355.88,Childrens
WC49-0889,BROOK STREET BUREAU PLC,Employees,Agency,34305-AGENCY STAFF-EMPLOYEES,Revenue,15/10/2014,398.34,Childrens
WC49-0890,BROOK STREET BUREAU PLC,Employees,Agency,34305-AGENCY STAFF-EMPLOYEES,Revenue,15/10/2014,400.36,Childrens
WC49-0891,BROOK STREET BUREAU PLC,Employees,Agency,34305-AGENCY STAFF-EMPLOYEES,Revenue,15/10/2014,410.49,Childrens
WC49-0892,BROOK STREET BUREAU PLC,Employees,Agency,34305-AGENCY STAFF-EMPLOYEES,Revenue,22/10/2014,568.80,Childrens
WC49-0893,BROOK STREET BUREAU PLC,Employees,Agency,34305-AGENCY STAFF-EMPLOYEES,Revenue,22/10/2014,582.75,Childrens
WC49-0894,BROOK STREET BUREAU PLC,Employees,Agency,34305-AGENCY STAFF-EMPLOYEES,Revenue,15/10/2014,598.29,Childrens
WC49-0895,BROOK STREET BUREAU PLC,Employees,Agency,34305-AGENCY STAFF-EMPLOYEES,Revenue,15/10/2014,644.37,Childrens
WC49-0896,BROOK YOUNG PEOPLE,Supplies & Services,Services,63000-PROFESSIONAL FEES AND SERVICES,Revenue,08/10/2014,"5,933.50",Neighbourhood Services
WC49-0897,BROOK YOUNG PEOPLE,Supplies & Services,Services,63000-PROFESSIONAL FEES AND SERVICES,Revenue,08/10/2014,"5,933.50",Neighbourhood Services
WC49-0898,BROWNHILLS ASPHALT TARMACADAM,Premises,Premises-Repairs & Maintenance,"40000-REPAIRS,ALTERATIONS & MAINTENANCE-PREM",Revenue,01/10/2014,340.00,Regeneration
WC49-0899,BROWNHILLS ASPHALT TARMACADAM,Third Party Payments,Private Contractor Fees,73025-PROFESSIONAL SERVICES-PRIV CONTRACTOR & OTHER AGENCIES,Revenue,03/10/2014,475.00,Regeneration
WC49-0900,BROWNHILLS ASPHALT TARMACADAM,Transport,Hire,52102-HIRE OF PLANT,Revenue,08/10/2014,495.00,Neighbourhood Services
WC49-0901,BROWNHILLS ASPHALT TARMACADAM,Premises,Premises-Repairs & Maintenance,"40000-REPAIRS,ALTERATIONS & MAINTENANCE-PREM",Revenue,03/10/2014,500.00,Regeneration
WC49-0902,BROWNHILLS ASPHALT TARMACADAM,Premises,Premises-Repairs & Maintenance,"40000-REPAIRS,ALTERATIONS & MAINTENANCE-PREM",Revenue,09/10/2014,500.00,Regeneration
WC49-0903,BROWNHILLS ASPHALT TARMACADAM,Third Party Payments,Private Contractor Fees,73025-PROFESSIONAL SERVICES-PRIV CONTRACTOR & OTHER AGENCIES,Revenue,16/10/2014,600.00,Regeneration
WC49-0904,BROWNHILLS ASPHALT TARMACADAM,Third Party Payments,Private Contractor Fees,73025-PROFESSIONAL SERVICES-PRIV CONTRACTOR & OTHER AGENCIES,Revenue,21/10/2014,621.00,Neighbourhood Services
WC49-0905,BROWNHILLS ASPHALT TARMACADAM,Premises,Premises-Repairs & Maintenance,"40000-REPAIRS,ALTERATIONS & MAINTENANCE-PREM",Revenue,08/10/2014,800.00,Regeneration
WC49-0906,BROWNHILLS ASPHALT TARMACADAM,Premises,Premises-Repairs & Maintenance,"40000-REPAIRS,ALTERATIONS & MAINTENANCE-PREM",Revenue,22/10/2014,800.00,Regeneration
WC49-0907,BROWNHILLS ASPHALT TARMACADAM,Premises,Premises-Repairs & Maintenance,"40000-REPAIRS,ALTERATIONS & MAINTENANCE-PREM",Revenue,08/10/2014,850.00,Neighbourhood Services
WC49-0908,BROWNHILLS ASPHALT TARMACADAM,Capital,Capital,01006-SITE WORKS MAIN CONTRACTORS,Capital,14/10/2014,"1,000.00",Neighbourhood Services
WC49-0909,BROWNHILLS ASPHALT TARMACADAM,Third Party Payments,Private Contractor Fees,73025-PROFESSIONAL SERVICES-PRIV CONTRACTOR & OTHER AGENCIES,Revenue,21/10/2014,"1,080.00",Regeneration
WC49-0910,BROWNHILLS ASPHALT TARMACADAM,Premises,Premises-Repairs & Maintenance,"40000-REPAIRS,ALTERATIONS & MAINTENANCE-PREM",Revenue,08/10/2014,"1,095.00",Neighbourhood Services
WC49-0911,BROWNHILLS ASPHALT TARMACADAM,Premises,Premises-Repairs & Maintenance,"40000-REPAIRS,ALTERATIONS & MAINTENANCE-PREM",Revenue,15/10/2014,"1,290.00",Neighbourhood Services
WC49-0912,BROWNHILLS ASPHALT TARMACADAM,Supplies & Services,Services,63000-PROFESSIONAL FEES AND SERVICES,Revenue,02/10/2014,"1,320.00",Regeneration
WC49-0913,BROWNHILLS ASPHALT TARMACADAM,Premises,Premises-Repairs & Maintenance,"40000-REPAIRS,ALTERATIONS & MAINTENANCE-PREM",Revenue,02/10/2014,"1,380.00",Regeneration
WC49-0914,BROWNHILLS ASPHALT TARMACADAM,Third Party Payments,Private Contractor Fees,73025-PROFESSIONAL SERVICES-PRIV CONTRACTOR & OTHER AGENCIES,Revenue,09/10/2014,"1,500.00",Regeneration
WC49-0915,BROWNHILLS ASPHALT TARMACADAM,Premises,Premises-Repairs & Maintenance,"40000-REPAIRS,ALTERATIONS & MAINTENANCE-PREM",Revenue,21/10/2014,"1,764.00",Neighbourhood Services
WC49-0916,BROWNHILLS ASPHALT TARMACADAM,Third Party Payments,Private Contractor Fees,73025-PROFESSIONAL SERVICES-PRIV CONTRACTOR & OTHER AGENCIES,Revenue,21/10/2014,"1,824.00",Neighbourhood Services
WC49-0917,BROWNHILLS ASPHALT TARMACADAM,Supplies & Services,"Equip,Furniture & Materials",60009-LEASING/HIRE/RENTAL-EQUIPMENT,Revenue,08/10/2014,"2,065.00",Neighbourhood Services
WC49-0918,BROWNHILLS ASPHALT TARMACADAM,Third Party Payments,Private Contractor Fees,73025-PROFESSIONAL SERVICES-PRIV CONTRACTOR & OTHER AGENCIES,Revenue,08/10/2014,"2,479.00",Regeneration
WC49-0919,BROWNHILLS ASPHALT TARMACADAM,Premises,Premises-Repairs & Maintenance,"40000-REPAIRS,ALTERATIONS & MAINTENANCE-PREM",Revenue,14/10/2014,"3,235.00",Neighbourhood Services
WC49-0920,BROWNHILLS ASPHALT TARMACADAM,Premises,Premises-Repairs & Maintenance,"40000-REPAIRS,ALTERATIONS & MAINTENANCE-PREM",Revenue,27/10/2014,"3,450.00",Regeneration
WC49-0921,BROWNHILLS ASPHALT TARMACADAM,Capital,Capital,01006-SITE WORKS MAIN CONTRACTORS,Capital,29/10/2014,"3,625.00",Childrens
WC49-0922,BROWNHILLS ASPHALT TARMACADAM,Third Party Payments,Private Contractor Fees,73025-PROFESSIONAL SERVICES-PRIV CONTRACTOR & OTHER AGENCIES,Revenue,08/10/2014,"4,287.00",Regeneration
WC49-0923,BROWNHILLS ASPHALT TARMACADAM,Premises,Premises-Repairs & Maintenance,"40000-REPAIRS,ALTERATIONS & MAINTENANCE-PREM",Revenue,29/10/2014,"5,368.00",Neighbourhood Services
WC49-0924,BROWNHILLS ASPHALT TARMACADAM,Capital,Capital,01006-SITE WORKS MAIN CONTRACTORS,Capital,03/10/2014,"10,454.00",Regeneration
WC49-0925,REDACTED,Transfer Payments,Transfer Payments,76422-DIRECT PAYMENTS TO SOCIAL SERVICES CLIENTS,Revenue,13/10/2014,"1,445.00",Social Care & Inclusion
WC49-0926,REDACTED,Supplies & Services,Services,63000-PROFESSIONAL FEES AND SERVICES,Revenue,10/10/2014,750.00,Neighbourhood Services
WC49-0927,REDACTED,Supplies & Services,Other Supplies & Services,63128-HIRE OF ROOM-SERVICES-FEES,Revenue,23/10/2014,680.00,Resources
WC49-0928,B-SURE SECURITY SERVICES LTD,Premises,Premises-Repairs & Maintenance,"40000-REPAIRS,ALTERATIONS & MAINTENANCE-PREM",Revenue,07/10/2014,660.00,Regeneration
WC49-0929,BT,Supplies & Services,Communications & Computing,63601-COSTS (NOT INTERNAL RECHARGES)-TELEPHONES,Revenue,24/10/2014,"7,912.17",Neighbourhood Services
WC49-0930,BT,Supplies & Services,Communications & Computing,63601-COSTS (NOT INTERNAL RECHARGES)-TELEPHONES,Revenue,20/10/2014,"17,870.08",Resources
WC49-0931,BT PLC,Supplies & Services,Communications & Computing,63601-COSTS (NOT INTERNAL RECHARGES)-TELEPHONES,Revenue,13/10/2014,"1,838.08",Resources
WC49-0932,BUPA CARE HOMES (CFHCARE) LTD,Third Party Payments,Private Contractor Fees,73373-RESIDENTIAL & NURSING CARE PLACEMENTS,Revenue,21/10/2014,"1,458.00",Social Care & Inclusion
WC49-0933,BUPA CARE HOMES (CFHCARE) LTD,Third Party Payments,Private Contractor Fees,73373-RESIDENTIAL & NURSING CARE PLACEMENTS,Revenue,21/10/2014,"1,494.00",Social Care & Inclusion
WC49-0934,BUPA CARE HOMES (CFHCARE) LTD,Third Party Payments,Private Contractor Fees,73373-RESIDENTIAL & NURSING CARE PLACEMENTS,Revenue,21/10/2014,"1,544.44",Social Care & Inclusion
WC49-0935,BUPA CARE HOMES (CFHCARE) LTD,Third Party Payments,Private Contractor Fees,73373-RESIDENTIAL & NURSING CARE PLACEMENTS,Revenue,21/10/2014,"1,708.84",Social Care & Inclusion
WC49-0936,BUPA CARE HOMES (CFHCARE) LTD,Third Party Payments,Private Contractor Fees,73373-RESIDENTIAL & NURSING CARE PLACEMENTS,Revenue,21/10/2014,"3,060.92",Social Care & Inclusion
WC49-0937,BUPA HOME HEALTHCARE,Supplies & Services,Services,63000-PROFESSIONAL FEES AND SERVICES,Revenue,24/10/2014,"2,875.28",Childrens
WC49-0938,BUPA HOME HEALTHCARE,Supplies & Services,Services,63000-PROFESSIONAL FEES AND SERVICES,Revenue,03/10/2014,"2,962.66",Childrens
WC49-0939,BUPA HOME HEALTHCARE,Supplies & Services,Services,63000-PROFESSIONAL FEES AND SERVICES,Revenue,24/10/2014,"3,068.32",Childrens
WC49-0940,BUPA HOME HEALTHCARE,Supplies & Services,Services,63000-PROFESSIONAL FEES AND SERVICES,Revenue,24/10/2014,"3,129.28",Childrens
WC49-0941,BUSH HOME LTD,Third Party Payments,Private Contractor Fees,73373-RESIDENTIAL & NURSING CARE PLACEMENTS,Revenue,01/10/2014,730.20,Social Care & Inclusion
WC49-0942,BUXTONS LTD,Supplies & Services,"Equip,Furniture & Materials",61500-CLOTHING & LAUNDRY,Revenue,17/10/2014,345.00,Neighbourhood Services
WC49-0943,BY THE BRIDGE,Third Party Payments,Private Contractor Fees,74037-INDEPENDENT FOSTER CARE-OTH AGENCY PROVISION,Revenue,10/10/2014,"4,295.71",Childrens
WC49-0944,C & D BUSINESS SOLUTIONS LTD,Supplies & Services,Services,63000-PROFESSIONAL FEES AND SERVICES,Revenue,09/10/2014,720.00,Childrens
WC49-0945,C & V ORCHARD MANOR LTD,Third Party Payments,Private Contractor Fees,73373-RESIDENTIAL & NURSING CARE PLACEMENTS,Revenue,01/10/2014,"1,408.24",Social Care & Inclusion
WC49-0946,C & V ORCHARD MANOR LTD,Third Party Payments,Private Contractor Fees,73373-RESIDENTIAL & NURSING CARE PLACEMENTS,Revenue,01/10/2014,"1,439.80",Social Care & Inclusion
WC49-0947,C & V ORCHARD MANOR LTD,Third Party Payments,Private Contractor Fees,73373-RESIDENTIAL & NURSING CARE PLACEMENTS,Revenue,01/10/2014,"1,439.80",Social Care & Inclusion
WC49-0948,C & V ORCHARD MANOR LTD,Third Party Payments,Private Contractor Fees,73373-RESIDENTIAL & NURSING CARE PLACEMENTS,Revenue,21/10/2014,"1,439.80",Social Care & Inclusion
WC49-0949,C & V ORCHARD MANOR LTD,Third Party Payments,Private Contractor Fees,73373-RESIDENTIAL & NURSING CARE PLACEMENTS,Revenue,21/10/2014,"1,439.80",Social Care & Inclusion
WC49-0950,C & V ORCHARD MANOR LTD,Third Party Payments,Private Contractor Fees,73373-RESIDENTIAL & NURSING CARE PLACEMENTS,Revenue,01/10/2014,"1,439.81",Social Care & Inclusion
WC49-0951,C & V ORCHARD MANOR LTD,Third Party Payments,Private Contractor Fees,73373-RESIDENTIAL & NURSING CARE PLACEMENTS,Revenue,21/10/2014,"1,439.81",Social Care & Inclusion
WC49-0952,C & V ORCHARD MANOR LTD,Third Party Payments,Private Contractor Fees,73373-RESIDENTIAL & NURSING CARE PLACEMENTS,Revenue,01/10/2014,"1,460.40",Social Care & Inclusion
WC49-0953,C & V ORCHARD MANOR LTD,Third Party Payments,Private Contractor Fees,73373-RESIDENTIAL & NURSING CARE PLACEMENTS,Revenue,01/10/2014,"1,460.40",Social Care & Inclusion
WC49-0954,C & V ORCHARD MANOR LTD,Third Party Payments,Private Contractor Fees,73373-RESIDENTIAL & NURSING CARE PLACEMENTS,Revenue,01/10/2014,"1,460.40",Social Care & Inclusion
WC49-0955,C & V ORCHARD MANOR LTD,Third Party Payments,Private Contractor Fees,73373-RESIDENTIAL & NURSING CARE PLACEMENTS,Revenue,01/10/2014,"1,460.40",Social Care & Inclusion
WC49-0956,C & V ORCHARD MANOR LTD,Third Party Payments,Private Contractor Fees,73373-RESIDENTIAL & NURSING CARE PLACEMENTS,Revenue,01/10/2014,"1,460.40",Social Care & Inclusion
WC49-0957,C & V ORCHARD MANOR LTD,Third Party Payments,Private Contractor Fees,73373-RESIDENTIAL & NURSING CARE PLACEMENTS,Revenue,21/10/2014,"1,460.40",Social Care & Inclusion
WC49-0958,C & V ORCHARD MANOR LTD,Third Party Payments,Private Contractor Fees,73373-RESIDENTIAL & NURSING CARE PLACEMENTS,Revenue,21/10/2014,"1,460.40",Social Care & Inclusion
WC49-0959,C & V ORCHARD MANOR LTD,Third Party Payments,Private Contractor Fees,73373-RESIDENTIAL & NURSING CARE PLACEMENTS,Revenue,01/10/2014,"1,531.76",Social Care & Inclusion
WC49-0960,C & V ORCHARD MANOR LTD,Third Party Payments,Private Contractor Fees,73373-RESIDENTIAL & NURSING CARE PLACEMENTS,Revenue,01/10/2014,"1,531.76",Social Care & Inclusion
WC49-0961,C & V ORCHARD MANOR LTD,Third Party Payments,Private Contractor Fees,73373-RESIDENTIAL & NURSING CARE PLACEMENTS,Revenue,21/10/2014,"1,531.76",Social Care & Inclusion
WC49-0962,C & V ORCHARD MANOR LTD,Third Party Payments,Private Contractor Fees,73373-RESIDENTIAL & NURSING CARE PLACEMENTS,Revenue,21/10/2014,"1,531.76",Social Care & Inclusion
WC49-0963,C & V ORCHARD MANOR LTD,Third Party Payments,Private Contractor Fees,73373-RESIDENTIAL & NURSING CARE PLACEMENTS,Revenue,01/10/2014,"1,534.12",Social Care & Inclusion
WC49-0964,C & V ORCHARD MANOR LTD,Third Party Payments,Private Contractor Fees,73373-RESIDENTIAL & NURSING CARE PLACEMENTS,Revenue,21/10/2014,"1,534.12",Social Care & Inclusion
WC49-0965,C & V ORCHARD MANOR LTD,Third Party Payments,Private Contractor Fees,73373-RESIDENTIAL & NURSING CARE PLACEMENTS,Revenue,07/10/2014,"1,616.87",Social Care & Inclusion
WC49-0966,C & V ORCHARD RESIDENTIAL LTD,Third Party Payments,Private Contractor Fees,73373-RESIDENTIAL & NURSING CARE PLACEMENTS,Revenue,21/10/2014,417.26,Social Care & Inclusion
WC49-0967,C & V ORCHARD RESIDENTIAL LTD,Third Party Payments,Private Contractor Fees,73373-RESIDENTIAL & NURSING CARE PLACEMENTS,Revenue,21/10/2014,417.26,Social Care & Inclusion
WC49-0968,C & V ORCHARD RESIDENTIAL LTD,Third Party Payments,Private Contractor Fees,73373-RESIDENTIAL & NURSING CARE PLACEMENTS,Revenue,21/10/2014,438.32,Social Care & Inclusion
WC49-0969,C & V ORCHARD RESIDENTIAL LTD,Third Party Payments,Private Contractor Fees,73373-RESIDENTIAL & NURSING CARE PLACEMENTS,Revenue,21/10/2014,730.20,Social Care & Inclusion
WC49-0970,C & V ORCHARD RESIDENTIAL LTD,Third Party Payments,Private Contractor Fees,73373-RESIDENTIAL & NURSING CARE PLACEMENTS,Revenue,21/10/2014,886.67,Social Care & Inclusion
WC49-0971,C & V ORCHARD RESIDENTIAL LTD,Third Party Payments,Private Contractor Fees,73373-RESIDENTIAL & NURSING CARE PLACEMENTS,Revenue,01/10/2014,"1,460.40",Social Care & Inclusion
WC49-0972,C & V ORCHARD RESIDENTIAL LTD,Third Party Payments,Private Contractor Fees,73373-RESIDENTIAL & NURSING CARE PLACEMENTS,Revenue,21/10/2014,"1,460.40",Social Care & Inclusion
WC49-0973,C & V ORCHARD RESIDENTIAL LTD,Third Party Payments,Private Contractor Fees,73373-RESIDENTIAL & NURSING CARE PLACEMENTS,Revenue,01/10/2014,"1,531.00",Social Care & Inclusion
WC49-0974,C & V ORCHARD RESIDENTIAL LTD,Third Party Payments,Private Contractor Fees,73373-RESIDENTIAL & NURSING CARE PLACEMENTS,Revenue,21/10/2014,"1,531.00",Social Care & Inclusion
WC49-0975,C & V ORCHARD RESIDENTIAL LTD,Third Party Payments,Private Contractor Fees,73373-RESIDENTIAL & NURSING CARE PLACEMENTS,Revenue,01/10/2014,"1,531.76",Social Care & Inclusion
WC49-0976,C & V ORCHARD RESIDENTIAL LTD,Third Party Payments,Private Contractor Fees,73373-RESIDENTIAL & NURSING CARE PLACEMENTS,Revenue,01/10/2014,"1,531.76",Social Care & Inclusion
WC49-0977,C & V ORCHARD RESIDENTIAL LTD,Third Party Payments,Private Contractor Fees,73373-RESIDENTIAL & NURSING CARE PLACEMENTS,Revenue,01/10/2014,"1,531.76",Social Care & Inclusion
WC49-0978,C & V ORCHARD RESIDENTIAL LTD,Third Party Payments,Private Contractor Fees,73373-RESIDENTIAL & NURSING CARE PLACEMENTS,Revenue,21/10/2014,"1,531.76",Social Care & Inclusion
WC49-0979,C & V ORCHARD RESIDENTIAL LTD,Third Party Payments,Private Contractor Fees,73373-RESIDENTIAL & NURSING CARE PLACEMENTS,Revenue,21/10/2014,"1,531.76",Social Care & Inclusion
WC49-0980,C & V ORCHARD RESIDENTIAL LTD,Third Party Payments,Private Contractor Fees,73373-RESIDENTIAL & NURSING CARE PLACEMENTS,Revenue,21/10/2014,"1,531.76",Social Care & Inclusion
WC49-0981,C & V ORCHARD RESIDENTIAL LTD,Third Party Payments,Private Contractor Fees,73373-RESIDENTIAL & NURSING CARE PLACEMENTS,Revenue,01/10/2014,"1,534.12",Social Care & Inclusion
WC49-0982,C & V ORCHARD RESIDENTIAL LTD,Third Party Payments,Private Contractor Fees,73373-RESIDENTIAL & NURSING CARE PLACEMENTS,Revenue,01/10/2014,"1,534.12",Social Care & Inclusion
WC49-0983,C & V ORCHARD RESIDENTIAL LTD,Third Party Payments,Private Contractor Fees,73373-RESIDENTIAL & NURSING CARE PLACEMENTS,Revenue,01/10/2014,"1,534.12",Social Care & Inclusion
WC49-0984,C & V ORCHARD RESIDENTIAL LTD,Third Party Payments,Private Contractor Fees,73373-RESIDENTIAL & NURSING CARE PLACEMENTS,Revenue,01/10/2014,"1,534.12",Social Care & Inclusion
WC49-0985,C & V ORCHARD RESIDENTIAL LTD,Third Party Payments,Private Contractor Fees,73373-RESIDENTIAL & NURSING CARE PLACEMENTS,Revenue,01/10/2014,"1,534.12",Social Care & Inclusion
WC49-0986,C & V ORCHARD RESIDENTIAL LTD,Third Party Payments,Private Contractor Fees,73373-RESIDENTIAL & NURSING CARE PLACEMENTS,Revenue,21/10/2014,"1,534.12",Social Care & Inclusion
WC49-0987,C & V ORCHARD RESIDENTIAL LTD,Third Party Payments,Private Contractor Fees,73373-RESIDENTIAL & NURSING CARE PLACEMENTS,Revenue,21/10/2014,"1,534.12",Social Care & Inclusion
WC49-0988,C & V ORCHARD RESIDENTIAL LTD,Third Party Payments,Private Contractor Fees,73373-RESIDENTIAL & NURSING CARE PLACEMENTS,Revenue,21/10/2014,"1,534.12",Social Care & Inclusion
WC49-0989,REDACTED,Supplies & Services,Other Supplies & Services,62515-MISCELLANEOUS SUPPLIES,Revenue,13/10/2014,"4,267.08",Childrens
WC49-0990,REDACTED,Third Party Payments,Private Contractor Fees,74006-HOLIDAY/CHRISTMAS ALLOWANCE-FOSTER CARERS-OTH AGENCY PROVISION,Revenue,13/10/2014,"4,405.70",Childrens
WC49-0991,REDACTED,Supplies & Services,Other Supplies & Services,62515-MISCELLANEOUS SUPPLIES,Revenue,13/10/2014,"1,428.44",Childrens
WC49-0992,REDACTED,Third Party Payments,Private Contractor Fees,74006-HOLIDAY/CHRISTMAS ALLOWANCE-FOSTER CARERS-OTH AGENCY PROVISION,Revenue,13/10/2014,"1,435.40",Childrens
WC49-0993,C P DAVIDSON & SONS LTD,Supplies & Services,"Equip,Furniture & Materials",60514-MATERIALS TO STORES,Revenue,13/10/2014,388.55,Neighbourhood Services
WC49-0994,C P DAVIDSON & SONS LTD,Supplies & Services,"Equip,Furniture & Materials",60514-MATERIALS TO STORES,Revenue,06/10/2014,637.29,Neighbourhood Services
WC49-0995,C&S CARE SERVICES,Employees,Agency,34305-AGENCY STAFF-EMPLOYEES,Revenue,03/10/2014,422.50,Social Care & Inclusion
WC49-0996,REDACTED,Supplies & Services,Services,63000-PROFESSIONAL FEES AND SERVICES,Revenue,20/10/2014,450.00,Neighbourhood Services
WC49-0997,REDACTED,Supplies & Services,Services,63000-PROFESSIONAL FEES AND SERVICES,Revenue,20/10/2014,810.00,Neighbourhood Services
WC49-0998,CABRINI CHILDRENS SOCIETY,Transfer Payments,Transfer Payments,74009-ADOPTION ALLOWANCE,Revenue,15/10/2014,644.00,Childrens
WC49-0999,CACI  LIMITED,Supplies & Services,Communications & Computing,63800-COMPUTER EQUIPMENT AND SUPPLIES,Revenue,06/10/2014,"6,151.90",Childrens
WC49-1000,CALDMORE AREA HOUSING ASS LTD,Third Party Payments,Private Contractor Fees,73373-RESIDENTIAL & NURSING CARE PLACEMENTS,Revenue,01/10/2014,442.38,Social Care & Inclusion
WC49-1001,CALDMORE AREA HOUSING ASS LTD,Third Party Payments,Private Contractor Fees,73374-SUPPORTED & OTHER ACCOMMODATION,Revenue,07/10/2014,515.00,Social Care & Inclusion
WC49-1002,CALDMORE AREA HOUSING ASS LTD,Third Party Payments,Private Contractor Fees,73374-SUPPORTED & OTHER ACCOMMODATION,Revenue,07/10/2014,576.80,Social Care & Inclusion
WC49-1003,CALDMORE AREA HOUSING ASS LTD,Third Party Payments,Private Contractor Fees,73374-SUPPORTED & OTHER ACCOMMODATION,Revenue,07/10/2014,576.80,Social Care & Inclusion
WC49-1004,CALDMORE AREA HOUSING ASS LTD,Third Party Payments,Private Contractor Fees,73374-SUPPORTED & OTHER ACCOMMODATION,Revenue,07/10/2014,576.80,Social Care & Inclusion
WC49-1005,CALDMORE AREA HOUSING ASS LTD,Third Party Payments,Private Contractor Fees,73374-SUPPORTED & OTHER ACCOMMODATION,Revenue,07/10/2014,576.80,Social Care & Inclusion
WC49-1006,CALDMORE AREA HOUSING ASS LTD,Third Party Payments,Private Contractor Fees,73374-SUPPORTED & OTHER ACCOMMODATION,Revenue,07/10/2014,576.80,Social Care & Inclusion
WC49-1007,CALDMORE AREA HOUSING ASS LTD,Third Party Payments,Private Contractor Fees,73374-SUPPORTED & OTHER ACCOMMODATION,Revenue,07/10/2014,576.80,Social Care & Inclusion
WC49-1008,CALDMORE AREA HOUSING ASS LTD,Third Party Payments,Private Contractor Fees,73374-SUPPORTED & OTHER ACCOMMODATION,Revenue,07/10/2014,576.80,Social Care & Inclusion
WC49-1009,CALDMORE AREA HOUSING ASS LTD,Third Party Payments,Private Contractor Fees,73374-SUPPORTED & OTHER ACCOMMODATION,Revenue,07/10/2014,576.80,Social Care & Inclusion
WC49-1010,CALDMORE AREA HOUSING ASS LTD,Third Party Payments,Private Contractor Fees,73374-SUPPORTED & OTHER ACCOMMODATION,Revenue,07/10/2014,576.80,Social Care & Inclusion
WC49-1011,CALDMORE AREA HOUSING ASS LTD,Third Party Payments,Private Contractor Fees,73374-SUPPORTED & OTHER ACCOMMODATION,Revenue,07/10/2014,576.80,Social Care & Inclusion
WC49-1012,CALDMORE AREA HOUSING ASS LTD,Third Party Payments,Private Contractor Fees,73373-RESIDENTIAL & NURSING CARE PLACEMENTS,Revenue,28/10/2014,619.33,Social Care & Inclusion
WC49-1013,CALDMORE AREA HOUSING ASS LTD,Third Party Payments,Private Contractor Fees,73373-RESIDENTIAL & NURSING CARE PLACEMENTS,Revenue,01/10/2014,796.28,Social Care & Inclusion
WC49-1014,CALDMORE AREA HOUSING ASS LTD,Third Party Payments,Private Contractor Fees,73373-RESIDENTIAL & NURSING CARE PLACEMENTS,Revenue,01/10/2014,884.76,Social Care & Inclusion
WC49-1015,CALDMORE AREA HOUSING ASS LTD,Third Party Payments,Private Contractor Fees,73373-RESIDENTIAL & NURSING CARE PLACEMENTS,Revenue,28/10/2014,884.76,Social Care & Inclusion
WC49-1016,CALDMORE AREA HOUSING ASS LTD,Third Party Payments,Private Contractor Fees,73373-RESIDENTIAL & NURSING CARE PLACEMENTS,Revenue,01/10/2014,"1,592.56",Social Care & Inclusion
WC49-1017,CALDMORE AREA HOUSING ASS LTD,Third Party Payments,Private Contractor Fees,73373-RESIDENTIAL & NURSING CARE PLACEMENTS,Revenue,01/10/2014,"2,034.94",Social Care & Inclusion
WC49-1018,CALDMORE AREA HOUSING ASS LTD,Third Party Payments,Private Contractor Fees,73373-RESIDENTIAL & NURSING CARE PLACEMENTS,Revenue,01/10/2014,"2,477.32",Social Care & Inclusion
WC49-1019,CALDMORE AREA HOUSING ASS LTD,Third Party Payments,Private Contractor Fees,73373-RESIDENTIAL & NURSING CARE PLACEMENTS,Revenue,01/10/2014,"2,477.32",Social Care & Inclusion
WC49-1020,CALDMORE AREA HOUSING ASS LTD,Third Party Payments,Private Contractor Fees,73373-RESIDENTIAL & NURSING CARE PLACEMENTS,Revenue,01/10/2014,"2,477.32",Social Care & Inclusion
WC49-1021,CALDMORE AREA HOUSING ASS LTD,Third Party Payments,Private Contractor Fees,73373-RESIDENTIAL & NURSING CARE PLACEMENTS,Revenue,28/10/2014,"3,096.65",Social Care & Inclusion
WC49-1022,CALDMORE AREA HOUSING ASS LTD,Third Party Payments,Private Contractor Fees,73373-RESIDENTIAL & NURSING CARE PLACEMENTS,Revenue,28/10/2014,"3,096.65",Social Care & Inclusion
WC49-1023,CALDMORE AREA HOUSING ASS LTD,Third Party Payments,Private Contractor Fees,73373-RESIDENTIAL & NURSING CARE PLACEMENTS,Revenue,28/10/2014,"3,096.65",Social Care & Inclusion
WC49-1024,CALDMORE AREA HOUSING ASS LTD,Third Party Payments,Private Contractor Fees,73373-RESIDENTIAL & NURSING CARE PLACEMENTS,Revenue,28/10/2014,"3,096.65",Social Care & Inclusion
WC49-1025,CALDMORE AREA HOUSING ASS LTD,Third Party Payments,Private Contractor Fees,70000-SOCIAL SERVICES-FEES TO VOLUNTARY BODIES,Revenue,01/10/2014,"15,000.00",Social Care & Inclusion
WC49-1026,REDACTED,Third Party Payments,Private Contractor Fees,74006-HOLIDAY/CHRISTMAS ALLOWANCE-FOSTER CARERS-OTH AGENCY PROVISION,Revenue,01/10/2014,373.60,Childrens
WC49-1027,REDACTED,Third Party Payments,Private Contractor Fees,74006-HOLIDAY/CHRISTMAS ALLOWANCE-FOSTER CARERS-OTH AGENCY PROVISION,Revenue,27/10/2014,373.60,Childrens
WC49-1028,REDACTED,Transfer Payments,Transfer Payments,76422-DIRECT PAYMENTS TO SOCIAL SERVICES CLIENTS,Revenue,13/10/2014,287.71,Childrens
WC49-1029,CAMBIAN LEARNING DISABILITES MIDLANDS LIMITED,Transfer Payments,Transfer Payments,76010-ACCOMMODATION AND RELATED COSTS-ASSISTANCE TO S/S CLIENTS,Revenue,03/10/2014,"10,557.00",Social Care & Inclusion
WC49-1030,CAMBIAN LEARNING DISABILITES MIDLANDS LIMITED,Transfer Payments,Transfer Payments,76010-ACCOMMODATION AND RELATED COSTS-ASSISTANCE TO S/S CLIENTS,Revenue,01/10/2014,"10,908.90",Social Care & Inclusion
WC49-1031,CAMBIAN WHINFELL SCHOOLS LTD,Third Party Payments,Grants to Other Orgs,66502-TOP UP FUNDING -GRANTS TO SCHOOLS,Revenue,15/10/2014,"13,510.50",Childrens
WC49-1032,CAMBIAN WHINFELL SCHOOLS LTD,Third Party Payments,Grants to Other Orgs,66502-TOP UP FUNDING -GRANTS TO SCHOOLS,Revenue,15/10/2014,"13,510.50",Childrens
WC49-1033,CAMBIAN WHINFELL SCHOOLS LTD,Third Party Payments,Grants to Other Orgs,66502-TOP UP FUNDING -GRANTS TO SCHOOLS,Revenue,15/10/2014,"25,938.13",Childrens
WC49-1034,CAMBIAN WHINFELL SCHOOLS LTD,Third Party Payments,Grants to Other Orgs,66502-TOP UP FUNDING -GRANTS TO SCHOOLS,Revenue,15/10/2014,"30,250.14",Childrens
WC49-1035,CAPITA BUSINESS SERVICES LTD 001,Employees,Training,30030-EXTERNAL TRAINING,Revenue,29/10/2014,"1,300.00",Childrens
WC49-1036,CAPITA EDUCATION RESOURCING,Supplies & Services,Services,63000-PROFESSIONAL FEES AND SERVICES,Revenue,13/10/2014,360.00,Resources
WC49-1037,CAPITA EDUCATION RESOURCING,Supplies & Services,Services,63000-PROFESSIONAL FEES AND SERVICES,Revenue,20/10/2014,750.90,Resources
WC49-1038,CAPITA SPECIALIST INSURANCE SOLUTIONS,Supplies & Services,Other Supplies & Services,67000-MISC INSURANCES - INSURANCE PREMIUMS,Revenue,21/10/2014,317.51,Resources
WC49-1039,CAPITA SPECIALIST INSURANCE SOLUTIONS,Supplies & Services,Other Supplies & Services,67000-MISC INSURANCES - INSURANCE PREMIUMS,Revenue,07/10/2014,"10,393.53",Resources
WC49-1040,CAPITA TREASURY SOLUTIONS LIMITED,Capital,Capital,01018-VEHICLES LEASING,Capital,14/10/2014,"12,150.00",Leasing
WC49-1041,CAPITAL HAIR & BEAUTY LTD,Supplies & Services,Other Supplies & Services,63115-HIRE OF ROOM (duplicate please use 63128)-SERVICES-FEES,Revenue,15/10/2014,600.00,Neighbourhood Services
WC49-1042,CAPSTONE FOSTER CARE (SOUTH EAST) LIMITED,Third Party Payments,Private Contractor Fees,74037-INDEPENDENT FOSTER CARE-OTH AGENCY PROVISION,Revenue,20/10/2014,983.13,Childrens
WC49-1043,CAPSTONE FOSTER CARE (SOUTH EAST) LIMITED,Third Party Payments,Private Contractor Fees,74037-INDEPENDENT FOSTER CARE-OTH AGENCY PROVISION,Revenue,20/10/2014,983.13,Childrens
WC49-1044,CAPSTONE FOSTER CARE (SOUTH EAST) LIMITED,Third Party Payments,Private Contractor Fees,74037-INDEPENDENT FOSTER CARE-OTH AGENCY PROVISION,Revenue,20/10/2014,"1,842.80",Childrens
WC49-1045,CAPSTONE FOSTER CARE (SOUTH EAST) LIMITED,Third Party Payments,Private Contractor Fees,74037-INDEPENDENT FOSTER CARE-OTH AGENCY PROVISION,Revenue,20/10/2014,"1,842.80",Childrens
WC49-1046,CAPSTONE FOSTER CARE (SOUTH EAST) LIMITED,Third Party Payments,Private Contractor Fees,74037-INDEPENDENT FOSTER CARE-OTH AGENCY PROVISION,Revenue,20/10/2014,"3,098.33",Childrens
WC49-1047,CAPSTONE FOSTER CARE (SOUTH EAST) LIMITED,Third Party Payments,Private Contractor Fees,74037-INDEPENDENT FOSTER CARE-OTH AGENCY PROVISION,Revenue,20/10/2014,"3,259.34",Childrens
WC49-1048,CAPSTONE FOSTER CARE (SOUTH EAST) LIMITED,Third Party Payments,Private Contractor Fees,74037-INDEPENDENT FOSTER CARE-OTH AGENCY PROVISION,Revenue,20/10/2014,"3,780.10",Childrens
WC49-1049,CARE 2 U LIMITED,Third Party Payments,Private Contractor Fees,73372-DOMICILIARY CARE,Revenue,27/10/2014,275.43,Social Care & Inclusion
WC49-1050,CARE 2 U LIMITED,Third Party Payments,Private Contractor Fees,73372-DOMICILIARY CARE,Revenue,27/10/2014,280.33,Social Care & Inclusion
WC49-1051,CARE 2 U LIMITED,Third Party Payments,Private Contractor Fees,73372-DOMICILIARY CARE,Revenue,27/10/2014,280.33,Social Care & Inclusion
WC49-1052,CARE 2 U LIMITED,Third Party Payments,Private Contractor Fees,73372-DOMICILIARY CARE,Revenue,27/10/2014,289.85,Social Care & Inclusion
WC49-1053,CARE 2 U LIMITED,Third Party Payments,Private Contractor Fees,73372-DOMICILIARY CARE,Revenue,27/10/2014,321.75,Social Care & Inclusion
WC49-1054,CARE 2 U LIMITED,Third Party Payments,Private Contractor Fees,73372-DOMICILIARY CARE,Revenue,27/10/2014,342.68,Social Care & Inclusion
WC49-1055,CARE 2 U LIMITED,Third Party Payments,Private Contractor Fees,73372-DOMICILIARY CARE,Revenue,27/10/2014,369.22,Social Care & Inclusion
WC49-1056,CARE 2 U LIMITED,Third Party Payments,Private Contractor Fees,73372-DOMICILIARY CARE,Revenue,27/10/2014,375.09,Social Care & Inclusion
WC49-1057,CARE 2 U LIMITED,Third Party Payments,Private Contractor Fees,73372-DOMICILIARY CARE,Revenue,27/10/2014,384.47,Social Care & Inclusion
WC49-1058,CARE 2 U LIMITED,Third Party Payments,Private Contractor Fees,73372-DOMICILIARY CARE,Revenue,27/10/2014,522.01,Social Care & Inclusion
WC49-1059,CARE 2 U LIMITED,Third Party Payments,Private Contractor Fees,73372-DOMICILIARY CARE,Revenue,27/10/2014,538.79,Social Care & Inclusion
WC49-1060,CARE 2 U LIMITED,Third Party Payments,Private Contractor Fees,73372-DOMICILIARY CARE,Revenue,27/10/2014,729.78,Social Care & Inclusion
WC49-1061,CARE 2 U LIMITED,Third Party Payments,Private Contractor Fees,73372-DOMICILIARY CARE,Revenue,27/10/2014,"1,001.60",Social Care & Inclusion
WC49-1062,CARE 2 U LIMITED,Third Party Payments,Private Contractor Fees,73372-DOMICILIARY CARE,Revenue,27/10/2014,"1,091.43",Social Care & Inclusion
WC49-1063,CARE 2 U LIMITED,Third Party Payments,Private Contractor Fees,73372-DOMICILIARY CARE,Revenue,27/10/2014,"1,314.24",Social Care & Inclusion
WC49-1064,CARE 2 U LIMITED,Third Party Payments,Private Contractor Fees,73372-DOMICILIARY CARE,Revenue,28/10/2014,"2,204.53",Social Care & Inclusion
WC49-1065,CARE 2 U LIMITED,Third Party Payments,Private Contractor Fees,73372-DOMICILIARY CARE,Revenue,28/10/2014,"2,433.19",Social Care & Inclusion
WC49-1066,CARE 2 U LIMITED,Third Party Payments,Private Contractor Fees,73372-DOMICILIARY CARE,Revenue,14/10/2014,"9,256.01",Social Care & Inclusion
WC49-1067,CARE 2 U LIMITED,Third Party Payments,Private Contractor Fees,73372-DOMICILIARY CARE,Revenue,14/10/2014,"27,852.64",Social Care & Inclusion
WC49-1068,CARE FIRST MANAGEMENT SERVICES LTD,Third Party Payments,Private Contractor Fees,73372-DOMICILIARY CARE,Revenue,22/10/2014,780.00,Social Care & Inclusion
WC49-1069,CARE LEAVERS,Supplies & Services,Other Supplies & Services,64002-OTHER EXPENSES-EXPENSES,Revenue,27/10/2014,60.00,Childrens
WC49-1070,CARE LEAVERS,Supplies & Services,Other Supplies & Services,63114-OTHER FEES & LICENCES-SERVICES-FEES,Revenue,20/10/2014,81.25,Childrens
WC49-1071,CARE LEAVERS,Third Party Payments,Private Contractor Fees,74500-CARE LEAVERS MTCE PAYMENTS,Revenue,15/10/2014,448.00,Childrens
WC49-1072,CARE LEAVERS,Transfer Payments,Transfer Payments,76400-RESIDENTS PERSONAL EXPENSES-ALLOWANCES TO S/S CLIENTS,Revenue,27/10/2014,516.15,Childrens
WC49-1073,CARE LEAVERS,Third Party Payments,Private Contractor Fees,74500-CARE LEAVERS MTCE PAYMENTS,Revenue,20/10/2014,948.00,Childrens
WC49-1074,CARE LEAVERS,Transfer Payments,Transfer Payments,76400-RESIDENTS PERSONAL EXPENSES-ALLOWANCES TO S/S CLIENTS,Revenue,15/10/2014,"1,055.48",Childrens
WC49-1075,CARE LEAVERS,Supplies & Services,Other Supplies & Services,64002-OTHER EXPENSES-EXPENSES,Revenue,15/10/2014,"1,248.79",Childrens
WC49-1076,CARE LEAVERS,Third Party Payments,Private Contractor Fees,74500-CARE LEAVERS MTCE PAYMENTS,Revenue,27/10/2014,"1,490.00",Childrens
WC49-1077,CARE LEAVERS,Transfer Payments,Transfer Payments,76400-RESIDENTS PERSONAL EXPENSES-ALLOWANCES TO S/S CLIENTS,Revenue,20/10/2014,"2,604.61",Childrens
WC49-1078,CARE LEAVERS,Supplies & Services,Other Supplies & Services,64002-OTHER EXPENSES-EXPENSES,Revenue,20/10/2014,"2,804.78",Childrens
WC49-1079,CARE LEAVERS,Transfer Payments,Transfer Payments,76000-TRANSFER PAYMENTS - SOCIAL SERVICES CLIENTS,Revenue,20/10/2014,"3,683.90",Childrens
WC49-1080,CARE LEAVERS,Transfer Payments,Transfer Payments,76010-ACCOMMODATION AND RELATED COSTS-ASSISTANCE TO S/S CLIENTS,Revenue,27/10/2014,"10,711.68",Childrens
WC49-1081,CARE LEAVERS,Transfer Payments,Transfer Payments,76010-ACCOMMODATION AND RELATED COSTS-ASSISTANCE TO S/S CLIENTS,Revenue,15/10/2014,"11,262.76",Childrens
WC49-1082,CARE LEAVERS,Third Party Payments,Private Contractor Fees,74500-CARE LEAVERS MTCE PAYMENTS,Revenue,01/10/2014,"13,488.28",Childrens
WC49-1083,CARE LEAVERS,Third Party Payments,Private Contractor Fees,74500-CARE LEAVERS MTCE PAYMENTS,Revenue,08/10/2014,"17,932.12",Childrens
WC49-1084,CARE SHOP,Supplies & Services,"Equip,Furniture & Materials",60539-CLEANING MATERIALS,Revenue,29/10/2014,300.25,Social Care & Inclusion
WC49-1085,CARE SHOP,Supplies & Services,"Equip,Furniture & Materials",60520-HEALTH & SAFETY-MATERIALS,Revenue,16/10/2014,614.34,Social Care & Inclusion
WC49-1086,CARE TODAY CHILDRENS SERVICES,Third Party Payments,Private Contractor Fees,74036-EXTERNAL RESIDENTIAL CARE-OTH AGENCY PROVISION,Revenue,13/10/2014,"10,161.60",Childrens
WC49-1087,CARE TODAY CHILDRENS SERVICES,Third Party Payments,Private Contractor Fees,74036-EXTERNAL RESIDENTIAL CARE-OTH AGENCY PROVISION,Revenue,01/10/2014,"10,500.32",Childrens
WC49-1088,CARETECH COMMUNITY SERVICE,Third Party Payments,Private Contractor Fees,73374-SUPPORTED & OTHER ACCOMMODATION,Revenue,08/10/2014,"1,171.37",Social Care & Inclusion
WC49-1089,CARETECH COMMUNITY SERVICE,Third Party Payments,Private Contractor Fees,73374-SUPPORTED & OTHER ACCOMMODATION,Revenue,14/10/2014,"1,210.42",Social Care & Inclusion
WC49-1090,CARETECH COMMUNITY SERVICE,Third Party Payments,Private Contractor Fees,73374-SUPPORTED & OTHER ACCOMMODATION,Revenue,08/10/2014,"4,118.83",Social Care & Inclusion
WC49-1091,CARETECH COMMUNITY SERVICE,Third Party Payments,Private Contractor Fees,73374-SUPPORTED & OTHER ACCOMMODATION,Revenue,14/10/2014,"4,256.12",Social Care & Inclusion
WC49-1092,CAREVIEW SERVICES LTD,Third Party Payments,Private Contractor Fees,73373-RESIDENTIAL & NURSING CARE PLACEMENTS,Revenue,15/10/2014,"6,653.13",Social Care & Inclusion
WC49-1093,CARING CARE LIMITED,Third Party Payments,Private Contractor Fees,73372-DOMICILIARY CARE,Revenue,14/10/2014,"40,909.54",Social Care & Inclusion
WC49-1094,REDACTED,Third Party Payments,Private Contractor Fees,73374-SUPPORTED & OTHER ACCOMMODATION,Revenue,03/10/2014,"4,912.20",Social Care & Inclusion
WC49-1095,REDACTED,Third Party Payments,Private Contractor Fees,73374-SUPPORTED & OTHER ACCOMMODATION,Revenue,23/10/2014,"4,912.20",Social Care & Inclusion
WC49-1096,REDACTED,Transfer Payments,Transfer Payments,76422-DIRECT PAYMENTS TO SOCIAL SERVICES CLIENTS,Revenue,13/10/2014,450.00,Social Care & Inclusion
WC49-1097,REDACTED,Supplies & Services,Other Supplies & Services,62515-MISCELLANEOUS SUPPLIES,Revenue,13/10/2014,533.96,Childrens
WC49-1098,REDACTED,Third Party Payments,Private Contractor Fees,74006-HOLIDAY/CHRISTMAS ALLOWANCE-FOSTER CARERS-OTH AGENCY PROVISION,Revenue,13/10/2014,738.90,Childrens
WC49-1099,REDACTED,Third Party Payments,Private Contractor Fees,74006-HOLIDAY/CHRISTMAS ALLOWANCE-FOSTER CARERS-OTH AGENCY PROVISION,Revenue,01/10/2014,639.40,Childrens
WC49-1100,REDACTED,Third Party Payments,Private Contractor Fees,74006-HOLIDAY/CHRISTMAS ALLOWANCE-FOSTER CARERS-OTH AGENCY PROVISION,Revenue,27/10/2014,639.40,Childrens
WC49-1101,REDACTED,Third Party Payments,Private Contractor Fees,73014-LEGAL FEES-PRIV CONTRACTOR FEES,Revenue,24/10/2014,"2,630.10",Childrens
WC49-1102,CARTER BROWN LTD T/A CARTER BROWN ASSOCIATES,Third Party Payments,Private Contractor Fees,73014-LEGAL FEES-PRIV CONTRACTOR FEES,Revenue,13/10/2014,776.75,Childrens
WC49-1103,CARTER SYNERGY LTD,Premises,Premises-Repairs & Maintenance,40011-SECURITY SYSTEM-OP MTCE,Revenue,24/10/2014,"1,514.54",Neighbourhood Services
WC49-1104,CARTER SYNERGY LTD,Premises,Utilities,42005-OTHER-ENERGY COSTS,Revenue,15/10/2014,"1,827.69",Neighbourhood Services
WC49-1105,CARTER SYNERGY LTD,Premises,Premises-Repairs & Maintenance,40012-FIRE SYSTEM-OP MTCE,Revenue,15/10/2014,"1,861.68",Neighbourhood Services
WC49-1106,CARTER SYNERGY LTD,Premises,Premises-Repairs & Maintenance,40216-OTHER-PLAN MTCE,Revenue,20/10/2014,"9,939.41",Neighbourhood Services
WC49-1107,CASHFRIDAY,Third Party Payments,Private Contractor Fees,73372-DOMICILIARY CARE,Revenue,15/10/2014,254.50,Social Care & Inclusion
WC49-1108,CASHFRIDAY,Third Party Payments,Private Contractor Fees,73374-SUPPORTED & OTHER ACCOMMODATION,Revenue,01/10/2014,288.00,Social Care & Inclusion
WC49-1109,CASHFRIDAY,Third Party Payments,Private Contractor Fees,73372-DOMICILIARY CARE,Revenue,03/10/2014,288.00,Social Care & Inclusion
WC49-1110,CASHFRIDAY,Third Party Payments,Private Contractor Fees,73372-DOMICILIARY CARE,Revenue,01/10/2014,294.00,Social Care & Inclusion
WC49-1111,CASHFRIDAY,Third Party Payments,Private Contractor Fees,73372-DOMICILIARY CARE,Revenue,02/10/2014,294.00,Social Care & Inclusion
WC49-1112,CASHFRIDAY,Third Party Payments,Private Contractor Fees,73372-DOMICILIARY CARE,Revenue,15/10/2014,294.00,Social Care & Inclusion
WC49-1113,CASHFRIDAY,Third Party Payments,Private Contractor Fees,73372-DOMICILIARY CARE,Revenue,15/10/2014,302.00,Social Care & Inclusion
WC49-1114,CASHFRIDAY,Third Party Payments,Private Contractor Fees,73372-DOMICILIARY CARE,Revenue,17/10/2014,323.88,Social Care & Inclusion
WC49-1115,CASHFRIDAY,Third Party Payments,Private Contractor Fees,73372-DOMICILIARY CARE,Revenue,15/10/2014,343.00,Social Care & Inclusion
WC49-1116,CASHFRIDAY,Third Party Payments,Private Contractor Fees,73372-DOMICILIARY CARE,Revenue,20/10/2014,344.25,Social Care & Inclusion
WC49-1117,CASHFRIDAY,Third Party Payments,Private Contractor Fees,73372-DOMICILIARY CARE,Revenue,15/10/2014,349.00,Social Care & Inclusion
WC49-1118,CASHFRIDAY,Third Party Payments,Private Contractor Fees,73372-DOMICILIARY CARE,Revenue,02/10/2014,365.50,Social Care & Inclusion
WC49-1119,CASHFRIDAY,Third Party Payments,Private Contractor Fees,73372-DOMICILIARY CARE,Revenue,15/10/2014,383.25,Social Care & Inclusion
WC49-1120,CASHFRIDAY,Third Party Payments,Private Contractor Fees,73372-DOMICILIARY CARE,Revenue,02/10/2014,388.50,Social Care & Inclusion
WC49-1121,CASHFRIDAY,Third Party Payments,Private Contractor Fees,73372-DOMICILIARY CARE,Revenue,03/10/2014,388.50,Social Care & Inclusion
WC49-1122,CASHFRIDAY,Third Party Payments,Private Contractor Fees,73372-DOMICILIARY CARE,Revenue,14/10/2014,392.00,Social Care & Inclusion
WC49-1123,CASHFRIDAY,Third Party Payments,Private Contractor Fees,73372-DOMICILIARY CARE,Revenue,16/10/2014,392.00,Social Care & Inclusion
WC49-1124,CASHFRIDAY,Third Party Payments,Private Contractor Fees,73372-DOMICILIARY CARE,Revenue,02/10/2014,396.00,Social Care & Inclusion
WC49-1125,CASHFRIDAY,Third Party Payments,Private Contractor Fees,73372-DOMICILIARY CARE,Revenue,15/10/2014,403.00,Social Care & Inclusion
WC49-1126,CASHFRIDAY,Third Party Payments,Private Contractor Fees,73372-DOMICILIARY CARE,Revenue,02/10/2014,406.00,Social Care & Inclusion
WC49-1127,CASHFRIDAY,Third Party Payments,Private Contractor Fees,73372-DOMICILIARY CARE,Revenue,03/10/2014,417.00,Social Care & Inclusion
WC49-1128,CASHFRIDAY,Third Party Payments,Private Contractor Fees,73372-DOMICILIARY CARE,Revenue,01/10/2014,434.00,Social Care & Inclusion
WC49-1129,CASHFRIDAY,Third Party Payments,Private Contractor Fees,73372-DOMICILIARY CARE,Revenue,02/10/2014,434.00,Social Care & Inclusion
WC49-1130,CASHFRIDAY,Third Party Payments,Private Contractor Fees,73372-DOMICILIARY CARE,Revenue,15/10/2014,434.00,Social Care & Inclusion
WC49-1131,CASHFRIDAY,Third Party Payments,Private Contractor Fees,73372-DOMICILIARY CARE,Revenue,14/10/2014,444.50,Social Care & Inclusion
WC49-1132,CASHFRIDAY,Third Party Payments,Private Contractor Fees,73372-DOMICILIARY CARE,Revenue,15/10/2014,444.50,Social Care & Inclusion
WC49-1133,CASHFRIDAY,Third Party Payments,Private Contractor Fees,73372-DOMICILIARY CARE,Revenue,15/10/2014,444.50,Social Care & Inclusion
WC49-1134,CASHFRIDAY,Third Party Payments,Private Contractor Fees,73372-DOMICILIARY CARE,Revenue,01/10/2014,476.00,Social Care & Inclusion
WC49-1135,CASHFRIDAY,Third Party Payments,Private Contractor Fees,73372-DOMICILIARY CARE,Revenue,02/10/2014,476.00,Social Care & Inclusion
WC49-1136,CASHFRIDAY,Third Party Payments,Private Contractor Fees,73372-DOMICILIARY CARE,Revenue,01/10/2014,479.00,Social Care & Inclusion
WC49-1137,CASHFRIDAY,Third Party Payments,Private Contractor Fees,73372-DOMICILIARY CARE,Revenue,02/10/2014,480.50,Social Care & Inclusion
WC49-1138,CASHFRIDAY,Third Party Payments,Private Contractor Fees,73372-DOMICILIARY CARE,Revenue,03/10/2014,489.00,Social Care & Inclusion
WC49-1139,CASHFRIDAY,Third Party Payments,Private Contractor Fees,73372-DOMICILIARY CARE,Revenue,01/10/2014,490.00,Social Care & Inclusion
WC49-1140,CASHFRIDAY,Third Party Payments,Private Contractor Fees,73372-DOMICILIARY CARE,Revenue,02/10/2014,490.00,Social Care & Inclusion
WC49-1141,CASHFRIDAY,Third Party Payments,Private Contractor Fees,73372-DOMICILIARY CARE,Revenue,02/10/2014,509.00,Social Care & Inclusion
WC49-1142,CASHFRIDAY,Third Party Payments,Private Contractor Fees,73372-DOMICILIARY CARE,Revenue,03/10/2014,509.00,Social Care & Inclusion
WC49-1143,CASHFRIDAY,Third Party Payments,Private Contractor Fees,73372-DOMICILIARY CARE,Revenue,20/10/2014,562.00,Social Care & Inclusion
WC49-1144,CASHFRIDAY,Third Party Payments,Private Contractor Fees,73372-DOMICILIARY CARE,Revenue,03/10/2014,571.50,Social Care & Inclusion
WC49-1145,CASHFRIDAY,Third Party Payments,Private Contractor Fees,73372-DOMICILIARY CARE,Revenue,02/10/2014,588.00,Social Care & Inclusion
WC49-1146,CASHFRIDAY,Third Party Payments,Private Contractor Fees,73372-DOMICILIARY CARE,Revenue,03/10/2014,588.00,Social Care & Inclusion
WC49-1147,CASHFRIDAY,Third Party Payments,Private Contractor Fees,73372-DOMICILIARY CARE,Revenue,15/10/2014,656.00,Social Care & Inclusion
WC49-1148,CASHFRIDAY,Third Party Payments,Private Contractor Fees,73372-DOMICILIARY CARE,Revenue,02/10/2014,686.00,Social Care & Inclusion
WC49-1149,CASHFRIDAY,Third Party Payments,Private Contractor Fees,73372-DOMICILIARY CARE,Revenue,03/10/2014,686.00,Social Care & Inclusion
WC49-1150,CASHFRIDAY,Third Party Payments,Private Contractor Fees,73372-DOMICILIARY CARE,Revenue,02/10/2014,698.00,Social Care & Inclusion
WC49-1151,CASHFRIDAY,Third Party Payments,Private Contractor Fees,73372-DOMICILIARY CARE,Revenue,03/10/2014,698.00,Social Care & Inclusion
WC49-1152,CASHFRIDAY,Third Party Payments,Private Contractor Fees,73372-DOMICILIARY CARE,Revenue,02/10/2014,766.50,Social Care & Inclusion
WC49-1153,CASHFRIDAY,Third Party Payments,Private Contractor Fees,73372-DOMICILIARY CARE,Revenue,01/10/2014,784.00,Social Care & Inclusion
WC49-1154,CASHFRIDAY,Third Party Payments,Private Contractor Fees,73372-DOMICILIARY CARE,Revenue,02/10/2014,784.00,Social Care & Inclusion
WC49-1155,CASHFRIDAY,Third Party Payments,Private Contractor Fees,73372-DOMICILIARY CARE,Revenue,03/10/2014,833.00,Social Care & Inclusion
WC49-1156,CASHFRIDAY,Third Party Payments,Private Contractor Fees,73372-DOMICILIARY CARE,Revenue,01/10/2014,889.00,Social Care & Inclusion
WC49-1157,CASHFRIDAY,Third Party Payments,Private Contractor Fees,73372-DOMICILIARY CARE,Revenue,01/10/2014,889.00,Social Care & Inclusion
WC49-1158,CASHFRIDAY,Third Party Payments,Private Contractor Fees,73372-DOMICILIARY CARE,Revenue,02/10/2014,889.00,Social Care & Inclusion
WC49-1159,CASHFRIDAY,Third Party Payments,Private Contractor Fees,73372-DOMICILIARY CARE,Revenue,02/10/2014,889.00,Social Care & Inclusion
WC49-1160,CASHFRIDAY,Third Party Payments,Private Contractor Fees,73372-DOMICILIARY CARE,Revenue,15/10/2014,911.50,Social Care & Inclusion
WC49-1161,CASHFRIDAY,Third Party Payments,Private Contractor Fees,73372-DOMICILIARY CARE,Revenue,03/10/2014,970.50,Social Care & Inclusion
WC49-1162,CASHFRIDAY,Third Party Payments,Private Contractor Fees,73372-DOMICILIARY CARE,Revenue,02/10/2014,"1,149.50",Social Care & Inclusion
WC49-1163,CASHFRIDAY,Third Party Payments,Private Contractor Fees,73372-DOMICILIARY CARE,Revenue,03/10/2014,"1,206.50",Social Care & Inclusion
WC49-1164,CASHFRIDAY,Third Party Payments,Private Contractor Fees,73372-DOMICILIARY CARE,Revenue,01/10/2014,"1,319.25",Social Care & Inclusion
WC49-1165,CATHEDRAL LEASING LTD,Supplies & Services,"Equip,Furniture & Materials",60539-CLEANING MATERIALS,Revenue,15/10/2014,250.89,Childrens
WC49-1166,REDACTED,Transfer Payments,Transfer Payments,76422-DIRECT PAYMENTS TO SOCIAL SERVICES CLIENTS,Revenue,13/10/2014,622.68,Social Care & Inclusion
WC49-1167,REDACTED,Transfer Payments,Transfer Payments,76422-DIRECT PAYMENTS TO SOCIAL SERVICES CLIENTS,Revenue,13/10/2014,690.48,Social Care & Inclusion
WC49-1168,REDACTED,Third Party Payments,Private Contractor Fees,74006-HOLIDAY/CHRISTMAS ALLOWANCE-FOSTER CARERS-OTH AGENCY PROVISION,Revenue,01/10/2014,417.56,Childrens
WC49-1169,REDACTED,Third Party Payments,Private Contractor Fees,74006-HOLIDAY/CHRISTMAS ALLOWANCE-FOSTER CARERS-OTH AGENCY PROVISION,Revenue,27/10/2014,417.56,Childrens
WC49-1170,REDACTED,Transfer Payments,Transfer Payments,76422-DIRECT PAYMENTS TO SOCIAL SERVICES CLIENTS,Revenue,13/10/2014,388.40,Social Care & Inclusion
WC49-1171,REDACTED,Transfer Payments,Transfer Payments,76422-DIRECT PAYMENTS TO SOCIAL SERVICES CLIENTS,Revenue,13/10/2014,"1,014.27",Childrens
WC49-1172,REDACTED,Third Party Payments,Private Contractor Fees,74006-HOLIDAY/CHRISTMAS ALLOWANCE-FOSTER CARERS-OTH AGENCY PROVISION,Revenue,01/10/2014,417.56,Childrens
WC49-1173,REDACTED,Third Party Payments,Private Contractor Fees,74006-HOLIDAY/CHRISTMAS ALLOWANCE-FOSTER CARERS-OTH AGENCY PROVISION,Revenue,27/10/2014,417.56,Childrens
WC49-1174,CCS MEDIA LTD,Supplies & Services,Communications & Computing,63800-COMPUTER EQUIPMENT AND SUPPLIES,Revenue,22/10/2014,275.00,Resources
WC49-1175,CCS MEDIA LTD,Supplies & Services,Communications & Computing,63800-COMPUTER EQUIPMENT AND SUPPLIES,Revenue,21/10/2014,"7,661.54",Resources
WC49-1176,CEDER LODGE NURSING HOME,Third Party Payments,Private Contractor Fees,73373-RESIDENTIAL & NURSING CARE PLACEMENTS,Revenue,21/10/2014,"2,289.94",Social Care & Inclusion
WC49-1177,CEDER LODGE NURSING HOME,Third Party Payments,Private Contractor Fees,73373-RESIDENTIAL & NURSING CARE PLACEMENTS,Revenue,21/10/2014,"3,095.29",Social Care & Inclusion
WC49-1178,CELLARDOOR SALES & LETTING AGENTS,Premises,Rent,43001-RENTS-OTHER,Revenue,15/10/2014,600.00,Resources
WC49-1179,CELSUR PLASTICS LIMITED,Supplies & Services,"Equip,Furniture & Materials",60500-GENERAL MATERIALS,Revenue,27/10/2014,358.80,Resources
WC49-1180,CENTRAL BUSES,Transport,Hire,52000-WITH DRIVER-HIRE OF VEHICLES,Revenue,24/10/2014,"12,267.00",Childrens
WC49-1181,CENTRAL INSULATION & ENVIRONM,Third Party Payments,Private Contractor Fees,73025-PROFESSIONAL SERVICES-PRIV CONTRACTOR & OTHER AGENCIES,Revenue,07/10/2014,"1,200.00",Regeneration
WC49-1182,CENTRAL INSULATION & ENVIRONM,Capital,Capital,01006-SITE WORKS MAIN CONTRACTORS,Capital,08/10/2014,"7,500.00",Regeneration
WC49-1183,CENTRAL POWER SERVICES LIMITED,Premises,Premises-Repairs & Maintenance,"40000-REPAIRS,ALTERATIONS & MAINTENANCE-PREM",Revenue,10/10/2014,419.40,Regeneration
WC49-1184,CENTRAL POWER SERVICES LIMITED,Premises,Premises-Repairs & Maintenance,"40000-REPAIRS,ALTERATIONS & MAINTENANCE-PREM",Revenue,10/10/2014,736.80,Regeneration
WC49-1185,CENTRO WMPTA,Capital,Capital,01006-SITE WORKS MAIN CONTRACTORS,Capital,28/10/2014,"2,434.67",Neighbourhood Services
WC49-1186,REDACTED,Supplies & Services,Services,63000-PROFESSIONAL FEES AND SERVICES,Revenue,10/10/2014,250.00,Neighbourhood Services
WC49-1187,REDACTED,Third Party Payments,Private Contractor Fees,74006-HOLIDAY/CHRISTMAS ALLOWANCE-FOSTER CARERS-OTH AGENCY PROVISION,Revenue,27/10/2014,481.13,Childrens
WC49-1188,CERTAS ENERGY UK LIMITED,Transport,Other Transport,50301-FUEL-TRANSPORT RUN COSTS,Revenue,08/10/2014,594.10,Neighbourhood Services
WC49-1189,CERTAS ENERGY UK LIMITED,Transport,Other Transport,50301-FUEL-TRANSPORT RUN COSTS,Revenue,08/10/2014,773.63,Neighbourhood Services
WC49-1190,CERTAS ENERGY UK LIMITED,Transport,Other Transport,50301-FUEL-TRANSPORT RUN COSTS,Revenue,07/10/2014,895.80,Neighbourhood Services
WC49-1191,CERTAS ENERGY UK LIMITED,Transport,Other Transport,50301-FUEL-TRANSPORT RUN COSTS,Revenue,08/10/2014,"1,670.31",Neighbourhood Services
WC49-1192,CERTAS ENERGY UK LIMITED,Transport,Other Transport,50301-FUEL-TRANSPORT RUN COSTS,Revenue,27/10/2014,"1,696.02",Neighbourhood Services
WC49-1193,CERTAS ENERGY UK LIMITED,Transport,Other Transport,50301-FUEL-TRANSPORT RUN COSTS,Revenue,22/10/2014,"2,860.50",Neighbourhood Services
WC49-1194,CERTAS ENERGY UK LIMITED,Transport,Other Transport,50301-FUEL-TRANSPORT RUN COSTS,Revenue,22/10/2014,"15,778.54",Neighbourhood Services
WC49-1195,CERTAS ENERGY UK LIMITED,Transport,Other Transport,50301-FUEL-TRANSPORT RUN COSTS,Revenue,08/10/2014,"19,012.37",Neighbourhood Services
WC49-1196,CERTAS ENERGY UK LIMITED,Transport,Other Transport,50301-FUEL-TRANSPORT RUN COSTS,Revenue,27/10/2014,"20,531.98",Neighbourhood Services
WC49-1197,CERTAS ENERGY UK LIMITED,Transport,Other Transport,50301-FUEL-TRANSPORT RUN COSTS,Revenue,15/10/2014,"20,635.07",Neighbourhood Services
WC49-1198,CERTAS ENERGY UK LIMITED,Transport,Other Transport,50301-FUEL-TRANSPORT RUN COSTS,Revenue,08/10/2014,"20,852.00",Neighbourhood Services
WC49-1199,CERTAS ENERGY UK LIMITED,Transport,Other Transport,50301-FUEL-TRANSPORT RUN COSTS,Revenue,08/10/2014,"21,103.89",Neighbourhood Services
WC49-1200,CEXC LIMITED,Supplies & Services,Communications & Computing,63800-COMPUTER EQUIPMENT AND SUPPLIES,Revenue,15/10/2014,573.95,Resources
WC49-1201,CEXC LIMITED,Supplies & Services,Communications & Computing,63800-COMPUTER EQUIPMENT AND SUPPLIES,Revenue,10/10/2014,"2,944.70",Resources
WC49-1202,CF ASSET FINANCE LIMITED,Supplies & Services,"Equip,Furniture & Materials",60009-LEASING/HIRE/RENTAL-EQUIPMENT,Revenue,30/10/2014,272.86,Childrens
WC49-1203,CF ASSET FINANCE LIMITED,Supplies & Services,"Equip,Furniture & Materials",60009-LEASING/HIRE/RENTAL-EQUIPMENT,Revenue,02/10/2014,309.70,Resources
WC49-1204,CF ASSET FINANCE LIMITED,Supplies & Services,"Equip,Furniture & Materials",60009-LEASING/HIRE/RENTAL-EQUIPMENT,Revenue,28/10/2014,330.32,Resources
WC49-1205,CF ASSET FINANCE LIMITED,Supplies & Services,"Equip,Furniture & Materials",60009-LEASING/HIRE/RENTAL-EQUIPMENT,Revenue,16/10/2014,334.12,Resources
WC49-1206,CF ASSET FINANCE LIMITED,Supplies & Services,"Printing, Stationery & Office Exp",62001-STATIONERY & GENERAL SUPPLIES-OFFICE EXP,Revenue,06/10/2014,347.18,Neighbourhood Services
WC49-1207,CFT FOSTERING LIMITED,Third Party Payments,Private Contractor Fees,74037-INDEPENDENT FOSTER CARE-OTH AGENCY PROVISION,Revenue,09/10/2014,"5,850.32",Childrens
WC49-1208,REDACTED,Transfer Payments,Transfer Payments,76422-DIRECT PAYMENTS TO SOCIAL SERVICES CLIENTS,Revenue,13/10/2014,748.00,Social Care & Inclusion
WC49-1209,REDACTED,Third Party Payments,Private Contractor Fees,74006-HOLIDAY/CHRISTMAS ALLOWANCE-FOSTER CARERS-OTH AGENCY PROVISION,Revenue,01/10/2014,639.40,Childrens
WC49-1210,REDACTED,Third Party Payments,Private Contractor Fees,74006-HOLIDAY/CHRISTMAS ALLOWANCE-FOSTER CARERS-OTH AGENCY PROVISION,Revenue,27/10/2014,639.40,Childrens
WC49-1211,CHARLIE CATERPILLAR'S DAY NURSERY,Supplies & Services,Other Supplies & Services,63120-CRECHE FACILITIES-SERVICES-FEES,Revenue,15/10/2014,367.50,Neighbourhood Services
WC49-1212,CHARLIE CATERPILLAR'S DAY NURSERY,Supplies & Services,Other Supplies & Services,63120-CRECHE FACILITIES-SERVICES-FEES,Revenue,01/10/2014,372.50,Neighbourhood Services
WC49-1213,CHARLIE CATERPILLAR'S DAY NURSERY,Employees,Agency,34305-AGENCY STAFF-EMPLOYEES,Revenue,01/10/2014,472.50,Childrens
WC49-1214,CHARLIE CATERPILLAR'S DAY NURSERY,Employees,Agency,34305-AGENCY STAFF-EMPLOYEES,Revenue,01/10/2014,480.00,Childrens
WC49-1215,CHARLIE CATERPILLAR'S DAY NURSERY,Employees,Other Staff Costs,32000-MISC FEES AND EXPENSES,Revenue,10/10/2014,546.00,Childrens
WC49-1216,CHARLIE CATERPILLAR'S DAY NURSERY,Supplies & Services,Other Supplies & Services,63120-CRECHE FACILITIES-SERVICES-FEES,Revenue,28/10/2014,900.00,Childrens
WC49-1217,CHARLIE CATERPILLAR'S DAY NURSERY,Employees,Agency,34305-AGENCY STAFF-EMPLOYEES,Revenue,01/10/2014,"2,345.55",Childrens
WC49-1218,CHARLIE CATERPILLAR'S DAY NURSERY,Employees,Agency,34305-AGENCY STAFF-EMPLOYEES,Revenue,01/10/2014,"3,618.00",Childrens
WC49-1219,CHARLIE CATERPILLAR'S DAY NURSERY,Employees,Agency,34305-AGENCY STAFF-EMPLOYEES,Revenue,23/10/2014,"4,004.18",Childrens
WC49-1220,CHARLIE CATERPILLAR'S DAY NURSERY,Third Party Payments,Private Contractor Fees,73014-LEGAL FEES-PRIV CONTRACTOR FEES,Revenue,14/10/2014,"5,245.62",Childrens
WC49-1221,CHARLIE CATERPILLAR'S DAY NURSERY,Employees,Agency,34305-AGENCY STAFF-EMPLOYEES,Revenue,01/10/2014,"5,860.80",Childrens
WC49-1222,CHARLIE CATERPILLAR'S DAY NURSERY,Employees,Agency,34305-AGENCY STAFF-EMPLOYEES,Revenue,07/10/2014,"8,512.00",Childrens
WC49-1223,CHARMEND LTD,Third Party Payments,Private Contractor Fees,73373-RESIDENTIAL & NURSING CARE PLACEMENTS,Revenue,01/10/2014,542.29,Social Care & Inclusion
WC49-1224,CHARMEND LTD,Third Party Payments,Private Contractor Fees,73373-RESIDENTIAL & NURSING CARE PLACEMENTS,Revenue,01/10/2014,"1,037.97",Social Care & Inclusion
WC49-1225,CHARMEND LTD,Third Party Payments,Private Contractor Fees,73373-RESIDENTIAL & NURSING CARE PLACEMENTS,Revenue,01/10/2014,"1,176.38",Social Care & Inclusion
WC49-1226,CHARMEND LTD,Third Party Payments,Private Contractor Fees,73373-RESIDENTIAL & NURSING CARE PLACEMENTS,Revenue,15/10/2014,"2,140.28",Social Care & Inclusion
WC49-1227,CHARMEND LTD,Third Party Payments,Private Contractor Fees,73373-RESIDENTIAL & NURSING CARE PLACEMENTS,Revenue,15/10/2014,"2,145.16",Social Care & Inclusion
WC49-1228,CHARMEND LTD,Third Party Payments,Private Contractor Fees,73373-RESIDENTIAL & NURSING CARE PLACEMENTS,Revenue,15/10/2014,"4,013.52",Social Care & Inclusion
WC49-1229,CHARTER CARE,Third Party Payments,Private Contractor Fees,73372-DOMICILIARY CARE,Revenue,16/10/2014,297.08,Social Care & Inclusion
WC49-1230,CHARTER CARE,Third Party Payments,Private Contractor Fees,73372-DOMICILIARY CARE,Revenue,16/10/2014,806.36,Social Care & Inclusion
WC49-1231,CHARTER CARE,Third Party Payments,Private Contractor Fees,73372-DOMICILIARY CARE,Revenue,16/10/2014,816.97,Social Care & Inclusion
WC49-1232,CHARTER CARE,Third Party Payments,Private Contractor Fees,73372-DOMICILIARY CARE,Revenue,14/10/2014,"34,112.53",Social Care & Inclusion
WC49-1233,CHASE HOUSE AND PARTNER,Third Party Payments,Private Contractor Fees,73373-RESIDENTIAL & NURSING CARE PLACEMENTS,Revenue,15/10/2014,"4,445.68",Social Care & Inclusion
WC49-1234,CHASE HOUSE AND PARTNER,Third Party Payments,Private Contractor Fees,73373-RESIDENTIAL & NURSING CARE PLACEMENTS,Revenue,15/10/2014,"4,455.44",Social Care & Inclusion
WC49-1235,CHASE HOUSE AND PARTNER,Third Party Payments,Private Contractor Fees,73373-RESIDENTIAL & NURSING CARE PLACEMENTS,Revenue,15/10/2014,"4,562.48",Social Care & Inclusion
WC49-1236,CHASE HOUSE AND PARTNER,Third Party Payments,Private Contractor Fees,73373-RESIDENTIAL & NURSING CARE PLACEMENTS,Revenue,15/10/2014,"4,753.76",Social Care & Inclusion
WC49-1237,CHASEVIEW CARE HOME,Third Party Payments,Private Contractor Fees,73373-RESIDENTIAL & NURSING CARE PLACEMENTS,Revenue,15/10/2014,"1,654.07",Social Care & Inclusion
WC49-1238,CHERISH HOME CARE,Third Party Payments,Private Contractor Fees,73372-DOMICILIARY CARE,Revenue,01/10/2014,297.08,Social Care & Inclusion
WC49-1239,CHERISH HOME CARE,Third Party Payments,Private Contractor Fees,73372-DOMICILIARY CARE,Revenue,01/10/2014,297.08,Social Care & Inclusion
WC49-1240,CHERISH HOME CARE,Third Party Payments,Private Contractor Fees,73372-DOMICILIARY CARE,Revenue,14/10/2014,297.08,Social Care & Inclusion
WC49-1241,CHERISH HOME CARE,Third Party Payments,Private Contractor Fees,73372-DOMICILIARY CARE,Revenue,01/10/2014,557.44,Social Care & Inclusion
WC49-1242,CHERISH HOME CARE,Third Party Payments,Private Contractor Fees,73372-DOMICILIARY CARE,Revenue,01/10/2014,657.20,Social Care & Inclusion
WC49-1243,CHERISH HOME CARE,Third Party Payments,Private Contractor Fees,73372-DOMICILIARY CARE,Revenue,01/10/2014,886.58,Social Care & Inclusion
WC49-1244,CHERISH HOME CARE,Third Party Payments,Private Contractor Fees,73372-DOMICILIARY CARE,Revenue,01/10/2014,"1,038.80",Social Care & Inclusion
WC49-1245,CHERISH HOME CARE,Third Party Payments,Private Contractor Fees,73372-DOMICILIARY CARE,Revenue,14/10/2014,"1,194.50",Social Care & Inclusion
WC49-1246,CHERISH HOME CARE,Third Party Payments,Private Contractor Fees,73372-DOMICILIARY CARE,Revenue,01/10/2014,"1,303.80",Social Care & Inclusion
WC49-1247,CHERISH HOME CARE,Third Party Payments,Private Contractor Fees,73372-DOMICILIARY CARE,Revenue,14/10/2014,"1,708.52",Social Care & Inclusion
WC49-1248,CHERISH HOME CARE,Third Party Payments,Private Contractor Fees,73372-DOMICILIARY CARE,Revenue,01/10/2014,"1,846.48",Social Care & Inclusion
WC49-1249,CHERISH HOME CARE,Third Party Payments,Private Contractor Fees,73372-DOMICILIARY CARE,Revenue,01/10/2014,"1,846.48",Social Care & Inclusion
WC49-1250,CHEVIOT TREES LTD,Supplies & Services,"Equip,Furniture & Materials",60500-GENERAL MATERIALS,Revenue,28/10/2014,908.30,Neighbourhood Services
WC49-1251,REDACTED,Transfer Payments,Transfer Payments,76422-DIRECT PAYMENTS TO SOCIAL SERVICES CLIENTS,Revenue,13/10/2014,"1,601.60",Social Care & Inclusion
WC49-1252,CHILDCARE BUREAU LTD,Third Party Payments,Private Contractor Fees,74037-INDEPENDENT FOSTER CARE-OTH AGENCY PROVISION,Revenue,10/10/2014,"3,733.52",Childrens
